Department,Entity,Date,Expense Type,Expense Area,Supplier,Transaction Number,Amount,Description,Supplier Post Code
Department for Transport,Department for Transport,02/01/2014,Agency Staff Costs,Centrally held prog,LA INTERNATIONAL COMPUTER,2000021064,2099.16,#,ST1 5UB
Department for Transport,Department for Transport,02/01/2014,Agency Staff Costs,DASH,ADVANTAGE RESOURCING UK LTD,2000021068,2160,#,RG21 4FF
Department for Transport,Department for Transport,02/01/2014,Agency Staff Costs,DASH,ADVANTAGE RESOURCING UK LTD,2000021068,4320,#,RG21 4FF
Department for Transport,Department for Transport,02/01/2014,Agency Staff Costs,Refran Prog Off,MICHAEL PAGE INTERNATIONAL,2000021066,666.6,#,SL1 3SA
Department for Transport,Department for Transport,02/01/2014,Eurocontrol Contr,Aviation,EUROCONTROL,2000021071,10250207.22,Q1/2014/001,1130
Department for Transport,Department for Transport,02/01/2014,Small Software,Greener Transport & International,POD POINT LTD,2000021067,5400,#,EC1V 4PY
Department for Transport,Department for Transport,02/01/2014,Support Services,Greener Transport & International,VCA Headquarters,2000021062,533.62,#,BS5 6XX
Department for Transport,Department for Transport,02/01/2014,Support Services,General Counsel's Office,Boyes Turner LLP,2000021070,60000,LXF/NSC/JN/68150/1,RG1 3BD
Department for Transport,Department for Transport,02/01/2014,Support Services,General Counsel's Office,Irwin Mitchell,2000021069,35334,PH/SMW/NMS/10133191-0001,S3 8DT
Department for Transport,Department for Transport,02/01/2014,Transport  Consult,Refran Prog Off,PRICEWATERHOUSECOOPERS LLP,2000021065,19336.8,#,E14 9SQ
Department for Transport,Department for Transport,02/01/2014,Transport  Consult,Refran Prog Off,PRICEWATERHOUSECOOPERS LLP,2000021065,25480.8,#,E14 9SQ
Department for Transport,Department for Transport,03/01/2014,Agency Staff Costs,MPL Director's Office,EXPERIS LTD,2000021110,3851.7,#,EC1R 3DR
Department for Transport,Department for Transport,03/01/2014,Agency Staff Costs,Rail and Road Projects,BADENOCH & CLARK,2000021108,2779.92,#,EC4V 4BG
Department for Transport,Department for Transport,03/01/2014,Agency Staff Costs,Rail Commercial Contracts,EXPERIS LTD,2000021110,2892.78,#,EC1R 3DR
Department for Transport,Department for Transport,03/01/2014,Eurotunnel Admin Pay,Rail Commercial Contracts,SNCF Caisse Generale,2000021104,5360870.18,MPL SNCF DEC 13,93633
Department for Transport,Department for Transport,03/01/2014,Eurotunnel Admin Pay,Rail Commercial Contracts,SNCF TRESORERIE ENC RHT VFE,2000021105,5411950.51,MPLSNCFEURODEC13,75014
Department for Transport,Department for Transport,03/01/2014,Financial Consultanc,Group Finance,GOVERNMENT ACTUARY'S DEPARTMENT,2000021121,36128.7,#,EC4A 1AB
Department for Transport,Department for Transport,03/01/2014,Legal Consultancy,Rail and Road Projects,HOGAN LOVELLS,2000021119,105326.4,#,EC1A 2FG
Department for Transport,Department for Transport,03/01/2014,Legal Consultancy,Rail and Road Projects,HOGAN LOVELLS,2000021119,63483.24,#,EC1A 2FG
Department for Transport,Department for Transport,03/01/2014,Legal Consultancy,Transport Security,PHELPS DUNBAR LLP,2000021106,14993.68,#,70130
Department for Transport,Department for Transport,03/01/2014,Prog&ProjMgmt Consul,DASH,PARSONS BRINCKERHOFF LTD,2000021111,2092.59,#,NE4 7YQ
Department for Transport,Department for Transport,03/01/2014,Prog&ProjMgmt Consul,DASH,PARSONS BRINCKERHOFF LTD,2000021111,99688.78,#,NE4 7YQ
Department for Transport,Department for Transport,03/01/2014,Research,Roads,WSP UK LTD T/A,2000021113,47155.92,#,RG21 4HJ
Department for Transport,Department for Transport,03/01/2014,Research,Commercial & Technical Services,PARSONS BRINCKERHOFF LTD,2000021111,31513.87,#,NE4 7YQ
Department for Transport,Department for Transport,03/01/2014,Support Services,Group Finance,DD ACCRAILWAY PENS TRUSTEE,2000021117,3505.34,#,DL3 6XR
Department for Transport,Department for Transport,03/01/2014,Training,Portfolio Office,THE RAILWAY CONSULTANCY LTD,2000021118,1300,#,SE19 2LT
Department for Transport,Department for Transport,03/01/2014,Transport  Consult,Refran Prog Off,ATKINS LTD (TRANSPORT PLANNING),2000021107,105656.16,#,WR5 1TX
Department for Transport,Department for Transport,03/01/2014,Transport  Consult,Refran Prog Off,PARSONS BRINCKERHOFF LTD,2000021111,37584.22,#,NE4 7YQ
Department for Transport,Department for Transport,03/01/2014,Transport  Consult,Refran Prog Off,PARSONS BRINCKERHOFF LTD,2000021111,14483.94,#,NE4 7YQ
Department for Transport,Department for Transport,06/01/2014,Agency Staff Costs,Business Transformation,NETWORKERS INTERNATIONAL (UK) PLC,2000021210,1013.52,#,BR1 1HP
Department for Transport,Department for Transport,06/01/2014,Agency Staff Costs,Group HR,HAYS PERSONNEL SERVICE LTD,2000021191,5352,#,KT3 4JQ
Department for Transport,Department for Transport,06/01/2014,Agency Staff Costs,Group Finance,BADENOCH & CLARK,2000021194,3347.7,#,EC4V 4BG
Department for Transport,Department for Transport,06/01/2014,Agency Staff Costs,Group Finance,BADENOCH & CLARK,2000021194,3347.7,#,EC4V 4BG
Department for Transport,Department for Transport,06/01/2014,Agency Staff Costs,Group Finance,BADENOCH & CLARK,2000021194,4036.38,#,EC4V 4BG
Department for Transport,Department for Transport,06/01/2014,Agency Staff Costs,Group Finance,MICHAEL PAGE INTERNATIONAL,2000021206,6528,#,SL1 3SA
Department for Transport,Department for Transport,06/01/2014,Agency Staff Costs,Group HR,SPRING TECHNOLOGY LTD  ALSO T/A,2000021212,2970,#,B37 7YE
Department for Transport,Department for Transport,06/01/2014,Agency Staff Costs,Rail and Road Projects,SPRING TECHNOLOGY LTD  ALSO T/A,2000021212,1320,#,B37 7YE
Department for Transport,Department for Transport,06/01/2014,Agency Staff Costs,Rail,CAPITA RESOURCING LTD,2000021208,4026,#,DL1 9HN
Department for Transport,Department for Transport,06/01/2014,Agency Staff Costs,Rail,CAPITA RESOURCING LTD,2000021208,4026,#,DL1 9HN
Department for Transport,Department for Transport,06/01/2014,Agency Staff Costs,Rail,EXPERIS LTD,2000021197,4528.43,#,EC1R 3DR
Department for Transport,Department for Transport,06/01/2014,Agency Staff Costs,Group Finance,SPRING TECHNOLOGY LTD  ALSO T/A,2000021212,626.52,#,B37 7YE
Department for Transport,Department for Transport,06/01/2014,Agency Staff Costs,Group Finance,SPRING TECHNOLOGY LTD  ALSO T/A,2000021212,1566.3,#,B37 7YE
Department for Transport,Department for Transport,06/01/2014,Agency Staff Costs,Group Finance,SPRING TECHNOLOGY LTD  ALSO T/A,2000021212,1566.3,#,B37 7YE
Department for Transport,Department for Transport,06/01/2014,Agency Staff Costs,Group Finance,SPRING TECHNOLOGY LTD  ALSO T/A,2000021212,1566.3,#,B37 7YE
Department for Transport,Department for Transport,06/01/2014,Agency Staff Costs,Group Finance,SPRING TECHNOLOGY LTD  ALSO T/A,2000021212,1503.65,#,B37 7YE
Department for Transport,Department for Transport,06/01/2014,Agency Staff Costs,Strategic Roads,CAPITA RESOURCING LTD,2000021208,7493.81,#,DL1 9HN
Department for Transport,Department for Transport,06/01/2014,Agency Staff Costs,Refran Prog Off,CAPITA RESOURCING LTD,2000021208,16236.61,#,DL1 9HN
Department for Transport,Department for Transport,06/01/2014,Agency Staff Costs,Group Finance,PARITY RESOURCES LTD,2000021207,21600,#,SW19 3RU
Department for Transport,Department for Transport,06/01/2014,Agency Staff Costs,Group Finance,PARITY RESOURCES LTD,2000021207,-21600,#,SW19 3RU
Department for Transport,Department for Transport,06/01/2014,Agency Staff Costs,Group Finance,PARITY RESOURCES LTD,2000021207,23040,#,SW19 3RU
Department for Transport,Department for Transport,06/01/2014,Agency Staff Costs,Group Finance,PARITY RESOURCES LTD,2000021207,16650,#,SW19 3RU
Department for Transport,Department for Transport,06/01/2014,Agency Staff Costs,Refran Prog Off,BADENOCH & CLARK,2000021194,3270.3,#,EC4V 4BG
Department for Transport,Department for Transport,06/01/2014,Agency Staff Costs,Refran Prog Off,BADENOCH & CLARK,2000021194,-3270.3,#,EC4V 4BG
Department for Transport,Department for Transport,06/01/2014,Agency Staff Costs,Refran Prog Off,BADENOCH & CLARK,2000021194,3270.3,#,EC4V 4BG
Department for Transport,Department for Transport,06/01/2014,Agency Staff Costs,Refran Prog Off,CAPITA RESOURCING LTD,2000021208,32606.27,#,DL1 9HN
Department for Transport,Department for Transport,06/01/2014,Agency Staff Costs,Refran Prog Off,CAPITA RESOURCING LTD,2000021208,4266,#,DL1 9HN
Department for Transport,Department for Transport,06/01/2014,Agency Staff Costs,Rail Commercial Contracts,LA INTERNATIONAL COMPUTER,2000021199,10149.05,#,ST1 5UB
Department for Transport,Department for Transport,06/01/2014,Cap Grt Pri Sec-Cos.,Rail,NETWORK RAIL INFRASTUCTURE LTD,2000021209,268631822.2,Period Network Rail Grant - 11th Payment,N1 9AG
Department for Transport,Department for Transport,06/01/2014,Computer equipment,Business Transformation,SPECIALIST COMPUTER CENTRES PLC,2000021211,561.02,#,B11 2LE
Department for Transport,Department for Transport,06/01/2014,Computer equipment,Marine Accident Investigation Branch,Probrand Ltd,2000021192,12.01,Delivery Charge,B1 3BP
Department for Transport,Department for Transport,06/01/2014,Computer equipment,Marine Accident Investigation Branch,Probrand Ltd,2000021192,37.58,Slim USB Portable DVD Burner,B1 3BP
Department for Transport,Department for Transport,06/01/2014,Computer equipment,Marine Accident Investigation Branch,Probrand Ltd,2000021192,1785.4,ThinkPad Helix 3698,B1 3BP
Department for Transport,Department for Transport,06/01/2014,Computer equipment,Marine Accident Investigation Branch,Probrand Ltd,2000021192,121.46,ThinkPad Ultrbay DVD Burner,B1 3BP
Department for Transport,Department for Transport,06/01/2014,Eurotunnel Admin Pay,Rail Commercial Contracts,EUROTUNNEL,2000021142,4675707.92,OPEX AND USAGE CHARGE FOR DEC 13,CT18 8XY
Department for Transport,Department for Transport,06/01/2014,Eurotunnel Admin Pay,Rail Commercial Contracts,EUROTUNNEL (EURO PAYMENTS),2000021141,4863189.95,#,CT18 8X
Department for Transport,Department for Transport,06/01/2014,IT Consultancy,Marine Accident Investigation Branch,AVENCA LTD,2000021193,1665,#,SP5 3PJ
Department for Transport,Department for Transport,06/01/2014,IT Equip Cap Cost,Commercial & Technical Services,Probrand Ltd,2000021192,732,USB Keyboards,B1 3BP
Department for Transport,Department for Transport,06/01/2014,IT Equip Cap Cost,Commercial & Technical Services,Probrand Ltd,2000021192,6,USB Mice / Keyboards: Shipping,B1 3BP
Department for Transport,Department for Transport,06/01/2014,IT Equip Cap Cost,Commercial & Technical Services,Probrand Ltd,2000021192,482.4,USB Optical Mice,B1 3BP
Department for Transport,Department for Transport,06/01/2014,L&B Excl Dwellings,Maritime,FAITHFUL & GOULD LTD,2000021220,14419.2,#,CF24 0AD
Department for Transport,Department for Transport,06/01/2014,Legal Consultancy,DASH,WINCKWORTH SHERWOOD,2000021204,302817.66,#,SE1 9BB
Department for Transport,Department for Transport,06/01/2014,Machinery Rental,Business Transformation,DANWOOD GROUP LTD,2000021195,568.14,#,LN6 3DG
Department for Transport,Department for Transport,06/01/2014,Mobile Phone charges,Group Finance,T-MOBILE (UK) LTD,2000021202,655.82,T-Mobile - 43361515 - To Dec 13,AL10 9BW
Department for Transport,Department for Transport,06/01/2014,Mobile Phone charges,Group Finance,VODAFONE LTD,2000021205,5580,BB Curve 9320 Black Gov SP,RG14 5FF
Department for Transport,Department for Transport,06/01/2014,Printing,DASH,WILLIAMS LEA LIMITED,2000021217,4564.56,#,NR3 1PD
Department for Transport,Department for Transport,06/01/2014,Printing,DASH,WILLIAMS LEA LIMITED,2000021217,2521.2,#,NR3 1PD
Department for Transport,Department for Transport,06/01/2014,Printing,DASH,WILLIAMS LEA LIMITED,2000021217,-2521.2,#,NR3 1PD
Department for Transport,Department for Transport,06/01/2014,Printing,DASH,WILLIAMS LEA LIMITED,2000021217,-4564.56,#,NR3 1PD
Department for Transport,Department for Transport,06/01/2014,Recruitment,Group HR,RUSSELL REYNOLDS ASSOCIATES LTD,2000021213,16666.67,#,SW1Y 4HZ
Department for Transport,Department for Transport,06/01/2014,Storage & Distributi,Business Transformation,WILLIAMS LEA LIMITED,2000021217,9612.61,#,NR3 1PD
Department for Transport,Department for Transport,06/01/2014,Telecom Equipment,Business Transformation,AZZURRI COMMUNICATIONS LTD,2000021214,4500,5 Days Senior Engr - 20.12.2013,WS9 0RB
Department for Transport,Department for Transport,06/01/2014,Training,Rail,Systra Ltd,2000021201,3750,#,GU21 5BH
Department for Transport,Department for Transport,06/01/2014,Transport  Consult,Refran Prog Off,TRANSPORT RESEARCH LABORATORY,2000021203,113111.6,#,RG40 3GA
Department for Transport,Department for Transport,07/01/2014,Agency Staff Costs,Group HR,HAYS PERSONNEL SERVICE LTD,2000021269,5352,#,KT3 4JQ
Department for Transport,Department for Transport,07/01/2014,Agency Staff Costs,Local,SPRING TECHNOLOGY LTD  ALSO T/A,2000021285,762.48,#,B37 7YE
Department for Transport,Department for Transport,07/01/2014,Agency Staff Costs,Local,SPRING TECHNOLOGY LTD  ALSO T/A,2000021285,612.72,#,B37 7YE
Department for Transport,Department for Transport,07/01/2014,Agency Staff Costs,Rail and Road Projects,BADENOCH & CLARK,2000021271,3088.8,#,EC4V 4BG
Department for Transport,Department for Transport,07/01/2014,Agency Staff Costs,Rail and Road Projects,EXPERIS LTD,2000021276,12080.04,#,EC1R 3DR
Department for Transport,Department for Transport,07/01/2014,Agency Staff Costs,Rail Commercial Contracts,NETWORKERS INTERNATIONAL (UK) PLC,2000021282,836.51,#,BR1 1HP
Department for Transport,Department for Transport,07/01/2014,Agency Staff Costs,Rail Commercial Contracts,NETWORKERS INTERNATIONAL (UK) PLC,2000021282,4182.54,#,BR1 1HP
Department for Transport,Department for Transport,07/01/2014,Agency Staff Costs,Rail Commercial Contracts,NETWORKERS INTERNATIONAL (UK) PLC,2000021282,3764.29,#,BR1 1HP
Department for Transport,Department for Transport,07/01/2014,Agency Staff Costs,Commercial & Technical Services,ATKINS LTD (TRANSPORT PLANNING),2000021270,8486.4,#,WR5 1TX
Department for Transport,Department for Transport,07/01/2014,Agency Staff Costs,Group Finance,EXPERIS LTD,2000021276,3850.32,#,EC1R 3DR
Department for Transport,Department for Transport,07/01/2014,Agency Staff Costs,Refran Prog Off,EXPERIS LTD,2000021276,16580.16,#,EC1R 3DR
Department for Transport,Department for Transport,07/01/2014,Agency Staff Costs,Refran Prog Off,EXPERIS LTD,2000021276,2682.43,#,EC1R 3DR
Department for Transport,Department for Transport,07/01/2014,Cap Grt Pri Sec-Cos.,Greener Transport & International,BMW UK Ltd,2000021295,40000,PiCG BMW Oct 2013 #40k,RG12 8TA
Department for Transport,Department for Transport,07/01/2014,Computer equipment,Business Transformation,SPECIALIST COMPUTER CENTRES PLC,2000021283,7017.19,#,B11 2LE
Department for Transport,Department for Transport,07/01/2014,CurrGrt Las in AEF/A,London and Olympics,GREATER LONDON AUTHORITY,2000021296,76479000,GLA GRANT PAYMENT,SE1 2UT
Department for Transport,Department for Transport,07/01/2014,CurrGrtOth to NDPBs,Aviation,NORWICH AIRPORT LIMITED,2000021289,320429.33,Norwich principal application - final payment,NR6 6JA
Department for Transport,Department for Transport,07/01/2014,Legal Consultancy,Group HR,TREASURY SOLICITOR,2000021297,3338.16,#,WC2B 4TS
Department for Transport,Department for Transport,07/01/2014,Legal Consultancy,Refran Prog Off,NORTON ROSE LLP,2000021284,66306.37,#,SE1 2AQ
Department for Transport,Department for Transport,07/01/2014,Legal Consultancy,Refran Prog Off,DLA PIPER UK LLP,2000021275,4498.56,#,M2 3DL
Department for Transport,Department for Transport,07/01/2014,Printing,Air Accident Investigation Branch,WILLIAMS LEA LIMITED,100026852,-2332,#,NR3 1PD
Department for Transport,Department for Transport,07/01/2014,Printing,Air Accident Investigation Branch,WILLIAMS LEA LIMITED,100026852,2332,#,NR3 1PD
Department for Transport,Department for Transport,07/01/2014,Printing,Air Accident Investigation Branch,WILLIAMS LEA LIMITED,2000021288,1522.71,#,NR3 1PD
Department for Transport,Department for Transport,07/01/2014,Printing,Business Transformation,WILLIAMS LEA LIMITED,2000021288,17820,#,NR3 1PD
Department for Transport,Department for Transport,07/01/2014,Printing,Roads,WILLIAMS LEA LIMITED,2000021288,2197.8,#,NR3 1PD
Department for Transport,Department for Transport,07/01/2014,Printing,Aviation,WILLIAMS LEA LIMITED,2000021288,10425.8,#,NR3 1PD
Department for Transport,Department for Transport,07/01/2014,Rent - L&B (non-PFI),Business Transformation,DWP SHARED SERVICES,2000021298,1001.58,#,CF14 3UW
Department for Transport,Department for Transport,07/01/2014,Research,Greener Transport & International,INSPEC INTERNATIONAL LTD,2000021277,7841.96,#,M6 6AJ
Department for Transport,Department for Transport,07/01/2014,Research,Greener Transport & International,Systra Ltd,2000021278,18844,#,GU21 5BH
Department for Transport,Department for Transport,07/01/2014,Subscriptions to Pro,Business Transformation,CHARTERED INST OF PURCHASING & SUPP,2000021272,3600,#,PE9 3NZ
Department for Transport,Department for Transport,07/01/2014,Support Services,Aviation,CIVIL AVIATION AUTHORITY,2000021273,7310.25,#,RH10 0YR
Department for Transport,Department for Transport,07/01/2014,Support Services,Group Finance,DD ACCRAILWAY PENS TRUSTEE,2000021280,987.04,#,DL3 6XR
Department for Transport,Department for Transport,07/01/2014,Support Services,General Counsel's Office,Irwin Mitchell,2000021292,88608,Industrial Injury Claim,S3 8DT
Department for Transport,Department for Transport,07/01/2014,Training,Group HR,SCT CONSULTANTS LTD,2000021287,4000,#,W8 5RL
Department for Transport,Department for Transport,07/01/2014,Training,Transport Security,Perpetuity Training Ltd,2000021294,1467,#,LE18 4XH
Department for Transport,Department for Transport,07/01/2014,Transport  Consult,Refran Prog Off,GRANT THORNTON UK LLP,2000021281,23779.97,#,NN4 7YE
Department for Transport,Department for Transport,07/01/2014,Transport  Consult,Portfolio Office,Portfolio Solutions Ltd,2000021293,3360,#,WD17 4UW
Department for Transport,Department for Transport,08/01/2014,Agency Staff Costs,Business Transformation,NETWORKERS INTERNATIONAL (UK) PLC,2000021346,1013.52,#,BR1 1HP
Department for Transport,Department for Transport,08/01/2014,Agency Staff Costs,Business Transformation,COMPUTACENTER (UK) LTD,2000021331,8568,#,AL10 9TW
Department for Transport,Department for Transport,08/01/2014,Agency Staff Costs,Local,SPRING TECHNOLOGY LTD  ALSO T/A,2000021348,609.98,#,B37 7YE
Department for Transport,Department for Transport,08/01/2014,Agency Staff Costs,Local,SPRING TECHNOLOGY LTD  ALSO T/A,2000021348,762.48,#,B37 7YE
Department for Transport,Department for Transport,08/01/2014,Agency Staff Costs,Local,EXPERIS LTD,2000021336,1341.18,#,EC1R 3DR
Department for Transport,Department for Transport,08/01/2014,Agency Staff Costs,Rail,EXPERIS LTD,2000021336,2383.38,#,EC1R 3DR
Department for Transport,Department for Transport,08/01/2014,Agency Staff Costs,Refran Prog Off,EXPERIS LTD,2000021336,4470.72,#,EC1R 3DR
Department for Transport,Department for Transport,08/01/2014,Agents Fees,Managing Director Motoring Services,DRIVER & VEHICLE LICENSING AGENCY,2000021335,4720.3,#,SA6 7JL
Department for Transport,Department for Transport,08/01/2014,Agents Fees,Managing Director Motoring Services,DRIVER & VEHICLE LICENSING AGENCY,2000021335,8213.89,#,SA6 7JL
Department for Transport,Department for Transport,08/01/2014,Computer Consumables,Transport Security - Security Compliance Division ,XMA LIMITED GOSC,2000021353,1052.49,#,NG11 7EP
Department for Transport,Department for Transport,08/01/2014,IT Equip Cap Cost,Commercial & Technical Services,KONICA MINOLTA BUS. SOLUTIONS  (UK),2000021329,2110.7,#,SS14 3AR
Department for Transport,Department for Transport,08/01/2014,IT Equip Cap Cost,Commercial & Technical Services,KONICA MINOLTA BUS. SOLUTIONS  (UK),2000021329,2110.7,#,SS14 3AR
Department for Transport,Department for Transport,08/01/2014,IT Ser Running Costs,Business Transformation,SPECIALIST COMPUTER CENTRES PLC,2000021347,11016,#,B11 2LE
Department for Transport,Department for Transport,08/01/2014,Legal Consultancy,Refran Prog Off,DLA PIPER UK LLP,2000021333,13520.64,#,M2 3DL
Department for Transport,Department for Transport,08/01/2014,Machinery Rental,Local,RICOH UK LTD,2000021337,1921.67,#,NN4 7YB
Department for Transport,Department for Transport,08/01/2014,Machinery Rental,Transport Security Strategy,RICOH UK LTD,2000021337,490.99,#,NN4 7YB
Department for Transport,Department for Transport,08/01/2014,Pip - Rtoc,Rail Commercial Contracts,CHILTERN RAILWAYS,2000021344,-5409.65,1410 Wk4 PIP P1409 - The Chiltern Railway Company,HP20 2RX
Department for Transport,Department for Transport,08/01/2014,Rates,Group Finance,THE FINANCIAL REPORTING COUNCIL,2000021351,7033,#,LN5 5ET
Department for Transport,Department for Transport,08/01/2014,Recruitment Fees,Group HR,ODGERS RAY & BERNDSTON,2000021339,7200,#,EC4M 6XD
Department for Transport,Department for Transport,08/01/2014,Research,Aviation,CIVIL AVIATION AUTHORITY,2000021330,37635.88,#,RH10 0YR
Department for Transport,Department for Transport,08/01/2014,Schedule 8 Fixed Per,Rail Commercial Contracts,ARRIVA TRAINS WALES,2000021345,1152761.55,1410 Wk4 CP2SR P1409 - Arriva Trains Wales Limited,CF10 5DJ
Department for Transport,Department for Transport,08/01/2014,Schedule 8 Fixed Per,Rail Commercial Contracts,ARRIVA TRAINS WALES,2000021345,-66641.08,1410 Wk4 RTMRE P1409 - Arriva Trains Wales Limited,CF10 5DJ
Department for Transport,Department for Transport,08/01/2014,Schedule 8 Fixed Per,Rail Commercial Contracts,ARRIVA TRAINS WALES,2000021345,54238.85,1410 Wk4 TS8A  P1409 - Arriva Trains Wales Limited,CF10 5DJ
Department for Transport,Department for Transport,08/01/2014,Schedule 8 Fixed Per,Rail Commercial Contracts,CHILTERN RAILWAYS,2000021344,31562.92,1410 Wk4 CP2SR P1409 - The Chiltern Railway Compan,HP20 2RX
Department for Transport,Department for Transport,08/01/2014,Schedule 8 Fixed Per,Rail Commercial Contracts,CHILTERN RAILWAYS,2000021344,-24490.71,1410 Wk4 RTMRE P1409 - The Chiltern Railway Compan,HP20 2RX
Department for Transport,Department for Transport,08/01/2014,Schedule 8 Fixed Per,Rail Commercial Contracts,CHILTERN RAILWAYS,2000021344,15037.09,1410 Wk4 TS8A P1409 - The Chiltern Railway Company,HP20 2RX
Department for Transport,Department for Transport,08/01/2014,SFIP,Rail Commercial Contracts,CHILTERN RAILWAYS,2000021344,-6011.09,1410 Wk4 SFIP P1409 - The Chiltern Railway Company,HP20 2RX
Department for Transport,Department for Transport,08/01/2014,Subscriptions to Pro,Group HR,BUSINESS IN THE COMMUNITY,2000021350,6300,#,N1 7RQ
Department for Transport,Department for Transport,08/01/2014,Support Services,Aviation,NATIONAL AIR TRAFFIC SERV (ENROUTE),2000021343,119188.75,#,EH4 1PU
Department for Transport,Department for Transport,08/01/2014,Support Services,Aviation,NORWICH AIRPORT LTD,2000021338,29988,#,NR6 6JA
Department for Transport,Department for Transport,08/01/2014,Support Services,Rail and Road Projects,NETWORK RAIL,2000021328,444790.8,#,M60 7RT
Department for Transport,Department for Transport,08/01/2014,Support Services,Transport Security Strategy,HIGHWAYS AGENCY,2000021327,690,#,B1 1RN
Department for Transport,Department for Transport,08/01/2014,Transport  Consult,Rail,TRANSPORT RESEARCH LABORATORY,2000021341,24000,#,RG40 3GA
Department for Transport,Department for Transport,09/01/2014,Agency Staff Costs,Business Transformation,LA INTERNATIONAL COMPUTER,2000021409,4014.72,#,ST1 5UB
Department for Transport,Department for Transport,09/01/2014,Agency Staff Costs,Rail Commercial Contracts,BADENOCH & CLARK,2000021402,688.49,#,EC4V 4BG
Department for Transport,Department for Transport,09/01/2014,Agency Staff Costs,Rail Commercial Contracts,BADENOCH & CLARK,2000021402,1721.22,#,EC4V 4BG
Department for Transport,Department for Transport,09/01/2014,Agency Staff Costs,Rail Commercial Contracts,BADENOCH & CLARK,2000021402,2409.72,#,EC4V 4BG
Department for Transport,Department for Transport,09/01/2014,Agency Staff Costs,Rail Commercial Contracts,BADENOCH & CLARK,2000021402,2289.24,#,EC4V 4BG
Department for Transport,Department for Transport,09/01/2014,Agency Staff Costs,Rail Commercial Contracts,BADENOCH & CLARK,2000021402,1721.22,#,EC4V 4BG
Department for Transport,Department for Transport,09/01/2014,Agency Staff Costs,Rail Commercial Contracts,BADENOCH & CLARK,2000021402,1721.22,#,EC4V 4BG
Department for Transport,Department for Transport,09/01/2014,Agency Staff Costs,Rail Commercial Contracts,BADENOCH & CLARK,2000021402,1549.1,#,EC4V 4BG
Department for Transport,Department for Transport,09/01/2014,Agency Staff Costs,Rail Commercial Contracts,BADENOCH & CLARK,2000021402,2409.72,#,EC4V 4BG
Department for Transport,Department for Transport,09/01/2014,Agency Staff Costs,General Counsel's Office,BADENOCH & CLARK,2000021402,3098.16,#,EC4V 4BG
Department for Transport,Department for Transport,09/01/2014,Agency Staff Costs,General Counsel's Office,BADENOCH & CLARK,2000021402,3098.16,#,EC4V 4BG
Department for Transport,Department for Transport,09/01/2014,Agency Staff Costs,General Counsel's Office,BADENOCH & CLARK,2000021402,3098.16,#,EC4V 4BG
Department for Transport,Department for Transport,09/01/2014,Agency Staff Costs,General Counsel's Office,BADENOCH & CLARK,2000021402,3098.16,#,EC4V 4BG
Department for Transport,Department for Transport,09/01/2014,Agency Staff Costs,Highspeed 2,BADENOCH & CLARK,2000021402,2928,#,EC4V 4BG
Department for Transport,Department for Transport,09/01/2014,Agency Staff Costs,Highspeed 2,BADENOCH & CLARK,2000021402,3660,#,EC4V 4BG
Department for Transport,Department for Transport,09/01/2014,Agency Staff Costs,Highspeed 2,BADENOCH & CLARK,2000021402,3660,#,EC4V 4BG
Department for Transport,Department for Transport,09/01/2014,Agency Staff Costs,Refran Prog Off,BADENOCH & CLARK,100026939,4062,#,EC4V 4BG
Department for Transport,Department for Transport,09/01/2014,Agency Staff Costs,Refran Prog Off,BADENOCH & CLARK,100026939,-4062,#,EC4V 4BG
Department for Transport,Department for Transport,09/01/2014,Agency Staff Costs,Refran Prog Off,BADENOCH & CLARK,100026940,4062,#,EC4V 4BG
Department for Transport,Department for Transport,09/01/2014,Agency Staff Costs,Refran Prog Off,BADENOCH & CLARK,100026940,-4062,#,EC4V 4BG
Department for Transport,Department for Transport,09/01/2014,Agency Staff Costs,Refran Prog Off,BADENOCH & CLARK,2000021402,4062,#,EC4V 4BG
Department for Transport,Department for Transport,09/01/2014,Agency Staff Costs,Refran Prog Off,BADENOCH & CLARK,2000021402,4062,#,EC4V 4BG
Department for Transport,Department for Transport,09/01/2014,Agency Staff Costs,Refran Prog Off,BADENOCH & CLARK,2000021402,4942.38,#,EC4V 4BG
Department for Transport,Department for Transport,09/01/2014,Agency Staff Costs,Refran Prog Off,BADENOCH & CLARK,2000021402,2836.56,#,EC4V 4BG
Department for Transport,Department for Transport,09/01/2014,Agency Staff Costs,Refran Prog Off,BADENOCH & CLARK,2000021402,4062,#,EC4V 4BG
Department for Transport,Department for Transport,09/01/2014,Agency Staff Costs,Refran Prog Off,BADENOCH & CLARK,2000021402,4942.38,#,EC4V 4BG
Department for Transport,Department for Transport,09/01/2014,Agency Staff Costs,Motoring Services,BADENOCH & CLARK,2000021402,3705,#,EC4V 4BG
Department for Transport,Department for Transport,09/01/2014,Agency Staff Costs,Refran Prog Off,BADENOCH & CLARK,2000021402,4942.38,#,EC4V 4BG
Department for Transport,Department for Transport,09/01/2014,Agency Staff Costs,Motoring Services,BADENOCH & CLARK,2000021402,2964,#,EC4V 4BG
Department for Transport,Department for Transport,09/01/2014,Agency Staff Costs,Refran Prog Off,BADENOCH & CLARK,2000021402,4062,#,EC4V 4BG
Department for Transport,Department for Transport,09/01/2014,Agency Staff Costs,Refran Prog Off,BADENOCH & CLARK,2000021402,4448.15,#,EC4V 4BG
Department for Transport,Department for Transport,09/01/2014,Agency Staff Costs,Refran Prog Off,BADENOCH & CLARK,2000021402,4942.38,#,EC4V 4BG
Department for Transport,Department for Transport,09/01/2014,Agency Staff Costs,Refran Prog Off,BADENOCH & CLARK,2000021402,4942.38,#,EC4V 4BG
Department for Transport,Department for Transport,09/01/2014,Agency Staff Costs,Motoring Services,BADENOCH & CLARK,2000021402,3705,#,EC4V 4BG
Department for Transport,Department for Transport,09/01/2014,Agency Staff Costs,Refran Prog Off,BADENOCH & CLARK,2000021402,3594.74,#,EC4V 4BG
Department for Transport,Department for Transport,09/01/2014,Agency Staff Costs,Refran Prog Off,BADENOCH & CLARK,2000021402,2127.42,#,EC4V 4BG
Department for Transport,Department for Transport,09/01/2014,Agency Staff Costs,Refran Prog Off,BADENOCH & CLARK,2000021402,3545.7,#,EC4V 4BG
Department for Transport,Department for Transport,09/01/2014,Agency Staff Costs,Refran Prog Off,BADENOCH & CLARK,2000021402,4062,#,EC4V 4BG
Department for Transport,Department for Transport,09/01/2014,Agency Staff Costs,Refran Prog Off,BADENOCH & CLARK,2000021402,4062,#,EC4V 4BG
Department for Transport,Department for Transport,09/01/2014,Agency Staff Costs,Refran Prog Off,EXPERIS LTD,2000021407,2458.9,#,EC1R 3DR
Department for Transport,Department for Transport,09/01/2014,Cap Grt Pri Sec-Cos.,DASH,Eversheds LLP,2000021436,824750,HS2 Property Purchase - North Park,CF10 5BT
Department for Transport,Department for Transport,09/01/2014,Cap Grt Pri Sec-Cos.,DASH,Eversheds LLP,2000021436,299500,HS2 Property Purchase - Caswell,CF10 5BT
Department for Transport,Department for Transport,09/01/2014,Cap Grt Pri Sec-Cos.,Greener Transport & International,British Gas Ltd,2000021431,230000,Domestic chargepoint British Gas Nov 2013 #175k,S60 1BY
Department for Transport,Department for Transport,09/01/2014,CapGrtPriSec-P&NPISH,Greener Transport & International,CENEX,2000021420,4875,CEN-PR- 684 #4.875,LE11 3TU
Department for Transport,Department for Transport,09/01/2014,Car Hire and Leasing,Group Finance,ENTERPRISE RENT-A-CAR,2000021425,10627.91,Enterprise - Car Hire - December 2013,TW20 8RX
Department for Transport,Department for Transport,09/01/2014,Catering,Aviation,COMPASS GROUP UK & IRELAND,2000021399,542.88,#,B45 9PZ
Department for Transport,Department for Transport,09/01/2014,Data Supply - TD,Transport Direct and Travel information,BASEMAP LIMITED,2000021428,2848.99,#,GU2 7YG
Department for Transport,Department for Transport,09/01/2014,Financial Consultanc,Business Transformation,PRGX UK LIMITED,2000021424,8176.8,#,LU1 3LU
Department for Transport,Department for Transport,09/01/2014,Investigation Servic,Managing Director Motoring Services,Procordia Ltd,2000021432,2054,#,TN39 4SR
Department for Transport,Department for Transport,09/01/2014,Investigation Servic,Managing Director Motoring Services,Procordia Ltd,2000021432,617.7,#,TN39 4SR
Department for Transport,Department for Transport,09/01/2014,IT Equip Cap Cost,Commercial & Technical Services,SPECIALIST COMPUTER CENTRES PLC,2000021418,5738.88,#,B11 2LE
Department for Transport,Department for Transport,09/01/2014,IT Ser Running Costs,Business Transformation,SOFTWARE BOX LTD,2000021412,12787.2,#,YO61 1ET
Department for Transport,Department for Transport,09/01/2014,IT Ser Running Costs,Business Transformation,SOFTWARE BOX LTD,2000021412,4754.4,#,YO61 1ET
Department for Transport,Department for Transport,09/01/2014,Machinery Rental,Business Transformation,DANWOOD GROUP LTD,2000021406,1276.11,#,LN6 3DG
Department for Transport,Department for Transport,09/01/2014,Machinery Rental,Marine Accident Investigation Branch,CANON (UK) LTD,2000021405,3851.49,#,RH2 8BF
Department for Transport,Department for Transport,09/01/2014,Mobile Phone charges,Group Finance,VODAFONE LTD,2000021417,2310.36,Vodafone -Service Charges December 1st 2013,RG14 5FF
Department for Transport,Department for Transport,09/01/2014,Publications for Res,Business Transformation,CREATIVE CHOICE CIC,2000021426,1545,#,SW1H 0DJ
Department for Transport,Department for Transport,09/01/2014,Publications for Res,Aviation,CREATIVE CHOICE CIC,2000021426,4400,#,SW1H 0DJ
Department for Transport,Department for Transport,09/01/2014,Publications for Res,Aviation,CREATIVE CHOICE CIC,2000021426,6675,#,SW1H 0DJ
Department for Transport,Department for Transport,09/01/2014,Purchasing Card Char,Group Finance,BARCLAYS BANK PLC,2000021403,1353.81,Barclays - DFT RT&L- 01 Jan 2014,NN4 7SG
Department for Transport,Department for Transport,09/01/2014,Purchasing Card Char,Group Finance,BARCLAYS BANK PLC,2000021403,23468.5,Barclays - DFT/RT&L - 01 Jan 2014,NN4 7SG
Department for Transport,Department for Transport,09/01/2014,Purchasing Card Char,Centrally held prog,BARCLAYS BANK PLC,2000021403,32673.76,Barclays - DFT/R&S - December 2013,NN4 7SG
Department for Transport,Department for Transport,09/01/2014,Purchasing Card Char,Centrally held prog,BARCLAYS BANK PLC,2000021403,29293.99,Barclays - DFT/ISE - December 2013ember 2013,NN4 7SG
Department for Transport,Department for Transport,09/01/2014,Purchasing Card Char,Group Finance,BARCLAYS BANK PLC,2000021403,1925.36,Barclays - DFT/R&S - December 2013,NN4 7SG
Department for Transport,Department for Transport,09/01/2014,Purchasing Card Char,Group Finance,BARCLAYS BANK PLC,2000021403,25382.91,Barclays - DFT/R&S - 01 Jan 2014,NN4 7SG
Department for Transport,Department for Transport,09/01/2014,Research,Local,HALCROW GROUP LTD,2000021408,5769.46,#,W6 7BY
Department for Transport,Department for Transport,09/01/2014,Services prov by OGD,Motoring Services,VEHICLE & OPERATOR SERVICES AGENCY,2000021396,1965.3,#,SA1 8AN
Department for Transport,Department for Transport,09/01/2014,Small Software,Transport Direct and Travel information,TRAPEZE GROUP (UK) LTD,2000021414,17293.2,#,BA14 6PH
Department for Transport,Department for Transport,09/01/2014,Support Services,Air Accident Investigation Branch,DFT ONE TIME VENDOR,2000021437,23610,Accident Investigation,SW1P 4DR
Department for Transport,Department for Transport,09/01/2014,Support Services,Aviation,CORNWALL AIRPORT LTD,2000021421,29988,#,TR8 4RQ
Department for Transport,Department for Transport,09/01/2014,Support Services,Aviation,INFRATIL KENT AIRPORT LTD,2000021422,24501,#,CT12 5BP
Department for Transport,Department for Transport,09/01/2014,Support Services,Aviation,TAG FARNBOROUGH AIRPORT LTD,2000021413,29988,#,GU14 6XA
Department for Transport,Department for Transport,09/01/2014,Support Services,General Counsel's Office,Crawford & Co Adjusters (UK) Ltd,2000021433,304180.34,Jan 14 - Top up,B2 2PF
Department for Transport,Department for Transport,09/01/2014,Support Services,General Counsel's Office,Irwin Mitchell,2000021434,30000,#,S3 8DT
Department for Transport,Department for Transport,09/01/2014,Training,Marine Accident Investigation Branch,Nederlands Forensisch Instituut,2000021398,1612.32,#,2490
Department for Transport,Department for Transport,09/01/2014,Transport  Consult,Aviation,PRICEWATERHOUSECOOPERS LLP,2000021411,5397.6,#,E14 9SQ
Department for Transport,Department for Transport,09/01/2014,Transport  Consult,Aviation,PRICEWATERHOUSECOOPERS LLP,2000021411,36652.8,#,E14 9SQ
Department for Transport,Department for Transport,09/01/2014,Travel Expenses UK,Air Accident Investigation Branch,REDFERN TRAVEL LTD,2000021423,16081.88,Travel Statement Dec 2013 Inv 071831,BD1 3AZ
Department for Transport,Department for Transport,09/01/2014,Travel Expenses UK,Group Finance,REDFERN TRAVEL LTD,2000021423,124914.44,Travel Statement Dec 2013 071559,BD1 3AZ
Department for Transport,Department for Transport,09/01/2014,Travel Expenses UK,Group Finance,REDFERN TRAVEL LTD,2000021423,0.12,#,BD1 3AZ
Department for Transport,Department for Transport,09/01/2014,Travel Expenses UK,Group Finance,REDFERN TRAVEL LTD,2000021423,3120.74,Travel Statement Dec 2013 Inv 071840,BD1 3AZ
Department for Transport,Department for Transport,10/01/2014,Agency Staff Costs,Business Transformation,NETWORKERS INTERNATIONAL (UK) PLC,2000021516,7486.39,#,BR1 1HP
Department for Transport,Department for Transport,10/01/2014,Agency Staff Costs,Group Finance,MICHAEL PAGE INTERNATIONAL,2000021513,1926,#,SL1 3SA
Department for Transport,Department for Transport,10/01/2014,Agency Staff Costs,Group Finance,NETWORKERS INTERNATIONAL (UK) PLC,2000021516,6787.2,#,BR1 1HP
Department for Transport,Department for Transport,10/01/2014,Agency Staff Costs,Local,SPRING TECHNOLOGY LTD  ALSO T/A,2000021517,762.48,#,B37 7YE
Department for Transport,Department for Transport,10/01/2014,Agency Staff Costs,MPL Director's Office,EXPERIS LTD,2000021494,6162.72,#,EC1R 3DR
Department for Transport,Department for Transport,10/01/2014,Agency Staff Costs,Rail Commercial Contracts,NETWORKERS INTERNATIONAL (UK) PLC,2000021516,836.51,#,BR1 1HP
Department for Transport,Department for Transport,10/01/2014,Agency Staff Costs,Group Finance,NETWORKERS INTERNATIONAL (UK) PLC,2000021516,861,#,BR1 1HP
Department for Transport,Department for Transport,10/01/2014,Agency Staff Costs,Highspeed 2,BADENOCH & CLARK,2000021487,3660,#,EC4V 4BG
Department for Transport,Department for Transport,10/01/2014,Agency Staff Costs,Rail Commercial Contracts,MICHAEL PAGE INTERNATIONAL,2000021513,3108,#,SL1 3SA
Department for Transport,Department for Transport,10/01/2014,Agents Fees,Roads,PSHE Association,2000021541,2500,#,SE1 0EH
Department for Transport,Department for Transport,10/01/2014,Books,General Counsel's Office,SWETS INFORMATION SERVICES,2000021482,2655.05,#,OX14 1UQ
Department for Transport,Department for Transport,10/01/2014,Building Service Cha,Business Transformation,AMEY COMMUNITY LTD,2000021545,225358.01,#,OX4 4DQ
Department for Transport,Department for Transport,10/01/2014,Cap Grt Loc Auth,Local,CITY OF YORK COUNCIL,2000021550,413000,"IT Block, 3rd Payment 2013/14",Y01 7WH
Department for Transport,Department for Transport,10/01/2014,Car Tax & Insurance,Motoring Services,Ford Retail Ltd,2000021534,660.57,#,BS3 2TN
Department for Transport,Department for Transport,10/01/2014,Cars Maintenance,Motoring Services,ATS Euromaster Ltd,2000021483,5923.05,#,EN11 1HH
Department for Transport,Department for Transport,10/01/2014,Cars Maintenance,Motoring Services,Goodyear Dunlop Tyres UK Ltd,2000021535,586.21,#,B24 9HY
Department for Transport,Department for Transport,10/01/2014,CurrGrt LAs out AEF/,Transport Direct and Travel information,CAMBRIDGESHIRE COUNTY COUNCIL,2000021549,52500,Transport Direct Cambridge County Council Grant,CB3 0AP
Department for Transport,Department for Transport,10/01/2014,CurrGrtPriSec-P&NPIS,Roads,SRSA LTD,2000021525,10000,Student Road safety Awards Final,CV34 6PR
Department for Transport,Department for Transport,10/01/2014,IT Equip Cap Cost,Commercial & Technical Services,MISCO,2000021500,11.99,Delivery Charge,NN8 6GS
Department for Transport,Department for Transport,10/01/2014,IT Equip Cap Cost,Commercial & Technical Services,MISCO,2000021500,2196.48,Hypertec Dell equivalent 1GB PC6400DDR2R,NN8 6GS
Department for Transport,Department for Transport,10/01/2014,IT Equip Cap Cost,Commercial & Technical Services,MISCO,2000021500,4301.89,#,NN8 6GS
Department for Transport,Department for Transport,10/01/2014,IT Equip Cap Cost,Commercial & Technical Services,MISCO,2000021500,1535.89,#,NN8 6GS
Department for Transport,Department for Transport,10/01/2014,IT Ser Running Costs,Roads,WILLIAMS LEA LIMITED,2000021526,4247.64,#,NR3 1PD
Department for Transport,Department for Transport,10/01/2014,IVR Costs,Business Transformation,CABLE & WIRELESS,2000021490,64180.5,C&W  - Message Labs - 01/10/13 - 31/12/13,MK3 5JP
Department for Transport,Department for Transport,10/01/2014,L&B Excl Dwellings,Maritime,FAITHFUL & GOULD LTD,2000021544,9613.2,#,CF24 0AD
Department for Transport,Department for Transport,10/01/2014,Maintenance Other,Motoring Services,ARVAL PHH,2000021484,4195.66,#,SN5 6PE
Department for Transport,Department for Transport,10/01/2014,Media & Press,Business Transformation,"GORKANA GROUP LTD (""GCL"")",2000021523,5138.64,#,EC1Y 8QE
Department for Transport,Department for Transport,10/01/2014,Postage,DASH,ROYAL MAIL,2000021504,1825.5,#,PE4 5PG
Department for Transport,Department for Transport,10/01/2014,Printing,DASH,WILLIAMS LEA LIMITED,2000021526,1944.8,#,NR3 1PD
Department for Transport,Department for Transport,10/01/2014,Prog&ProjMgmt Consul,Local,STEER DAVIES & GLEAVE LTD,2000021507,61398.12,#,SE1 9PD
Department for Transport,Department for Transport,10/01/2014,Property Maintenance,Air Accident Investigation Branch,INTERSERVE,2000021522,28639.04,#,BS32 4NH
Department for Transport,Department for Transport,10/01/2014,Publicity,Roads,FORSTER LAMOND LTD,2000021528,16038.71,#,SE1 1RU
Department for Transport,Department for Transport,10/01/2014,Purchasing Card Char,Highspeed 2,BARCLAYS BANK PLC,2000021488,1472.4,Barclays - DFT/HS2 - December 2013,NN4 7SG
Department for Transport,Department for Transport,10/01/2014,Rates,Air Accident Investigation Branch,VODAFONE LTD,2000021511,2097.9,#,RG14 5FF
Department for Transport,Department for Transport,10/01/2014,Research,Rail,PARSONS BRINCKERHOFF LTD,2000021502,5877.28,#,NE4 7YQ
Department for Transport,Department for Transport,10/01/2014,Security,Air Accident Investigation Branch,INTERSERVE,2000021522,2173.5,#,BS32 4NH
Department for Transport,Department for Transport,10/01/2014,Services prov by OGD,Business Transformation,London & Continental Railways Ltd,2000021520,4363.5,#,WC2B 4AN
Department for Transport,Department for Transport,10/01/2014,Services prov by OGD,Business Transformation,VEHICLE & OPERATOR SERVICES AGENCY,2000021547,395944.23,#,SA1 8AN
Department for Transport,Department for Transport,10/01/2014,Storage & Distributi,DASH,WILLIAMS LEA LIMITED,2000021526,915.98,#,NR3 1PD
Department for Transport,Department for Transport,10/01/2014,Storage & Distributi,DASH,WILLIAMS LEA LIMITED,2000021526,560.23,#,NR3 1PD
Department for Transport,Department for Transport,10/01/2014,Subscriptions to Pro,Strategic Roads,SMARTEX LTD,2000021505,3000,#,CB9 7RL
Department for Transport,Department for Transport,10/01/2014,Subsidies Private Se,Roads,MSRS Freight Grant,2000021512,24907.69,MSRS Freight Grant,xxxxxx
Department for Transport,Department for Transport,10/01/2014,Subsidies Private Se,Roads,MSRS Freight Grant,2000021524,13335.84,MSRS Freight Grant,xxxxxx
Department for Transport,Department for Transport,10/01/2014,Subsidies Private Se,Roads,MSRS Freight Grant,2000021524,10459.26,MSRS Freight Grant,xxxxxx
Department for Transport,Department for Transport,10/01/2014,Support Services,Roads,HIGHWAYS AGENCY,2000021548,5754.17,#,B1 1RN
Department for Transport,Department for Transport,10/01/2014,Support Services,Aviation,BRISTOL INTERNATIONAL AIRPORT,2000021489,29988,#,BS48 3DY
Department for Transport,Department for Transport,10/01/2014,Support Services,Aviation,MET OFFICE,2000021499,118783.2,#,EX1 3PB
Department for Transport,Department for Transport,10/01/2014,Support Services,Aviation,ENVIRONMENT AGENCY,2000021518,8500,#,PE2 8YD
Department for Transport,Department for Transport,10/01/2014,Support Services,Group Finance,DD ACCRAILWAY PENS TRUSTEE,2000021514,701.94,#,DL3 6XR
Department for Transport,Department for Transport,10/01/2014,Support Services,Group Finance,DD ACCRAILWAY PENS TRUSTEE,2000021514,3246.61,#,DL3 6XR
Department for Transport,Department for Transport,10/01/2014,Support Services,Group Finance,RAILWAYS PENSION MANAGEMENT LT,2000021515,900000,#,DL3 6EH
Department for Transport,Department for Transport,10/01/2014,Telephone Line Rent,Business Transformation,CABLE & WIRELESS,2000021490,6120,#,MK3 5JP
Department for Transport,Department for Transport,10/01/2014,Telephone Line Rent,Business Transformation,CABLE & WIRELESS,2000021490,13554.2,C&W - MessageLabs -01/01/14 - 31/01/2014,MK3 5JP
Department for Transport,Department for Transport,10/01/2014,Telephone Line Rent,Business Transformation,CABLE & WIRELESS,2000021490,2310.36,Rental charges 01/01/14 - 31/01/14,MK3 5JP
Department for Transport,Department for Transport,10/01/2014,Traffic Survey & Cou,Roads,JACOBS UK LTD,2000021496,2684,#,G2 7HX
Department for Transport,Department for Transport,10/01/2014,Traffic Survey & Cou,Roads,JACOBS UK LTD,2000021496,5334,#,G2 7HX
Department for Transport,Department for Transport,10/01/2014,Training,Air Accident Investigation Branch,HELI AIR LIMITED,2000021530,762,#,CV35 9EU
Department for Transport,Department for Transport,10/01/2014,Transport  Consult,Business Transformation,xxxxxx,2000021519,5161.2,#,xxxxxx
Department for Transport,Department for Transport,10/01/2014,Transport  Consult,MPL Director's Office,DELOITTE LLP,2000021493,57567,#,MK9 1FD
Department for Transport,Department for Transport,10/01/2014,Travel Exp Overseas,Rail Accident Investigation Branch,A1 RUSHMOOR RADIO TAXIS LTD,2000021529,528,#,GU11 1SJ
Department for Transport,Department for Transport,10/01/2014,Treasury Solicitors,Group HR,TREASURY SOLICITOR,2000021546,2556.72,#,WC2B 4TS
Department for Transport,Department for Transport,13/01/2014,Agency Staff Costs,Group Finance,MICHAEL PAGE INTERNATIONAL,2000021635,1632,#,SL1 3SA
Department for Transport,Department for Transport,13/01/2014,Agency Staff Costs,Rail Commercial Contracts,NETWORKERS INTERNATIONAL (UK) PLC,2000021636,4182.54,#,BR1 1HP
Department for Transport,Department for Transport,13/01/2014,Car Hire and Leasing,Motoring Services,LEX AUTOLEASE LTD,2000021614,433.94,#,BL9 8RT
Department for Transport,Department for Transport,13/01/2014,Car Hire and Leasing,Motoring Services,LEX AUTOLEASE LTD,2000021614,461.43,#,BL9 8RT
Department for Transport,Department for Transport,13/01/2014,Cars Maintenance,Motoring Services,Goodyear Dunlop Tyres UK Ltd,2000021643,1539.84,#,B24 9HY
Department for Transport,Department for Transport,13/01/2014,Cars Maintenance,Motoring Services,SW Automotive,2000021644,623.64,#,BR2 9QL
Department for Transport,Department for Transport,13/01/2014,Courier Charges,Business Transformation,DX NETWORK SERVICES LTD,2000021615,1488.66,#,NN3 6YG
Department for Transport,Department for Transport,13/01/2014,IT Equip Cap Cost,Air Accident Investigation Branch,BASSOM COMPUTER CONSULTANCY,2000021619,10459.82,#,GU9 8LS
Department for Transport,Department for Transport,13/01/2014,Legal Consultancy,General Counsel's Office,LANDMARK CHAMBERS,2000021624,3168,#,EC4A 2HG
Department for Transport,Department for Transport,13/01/2014,Legal Consultancy,General Counsel's Office,LANDMARK CHAMBERS,2000021624,5184,#,EC4A 2HG
Department for Transport,Department for Transport,13/01/2014,Newspapers,Business Transformation,JONES YARRELL LEADENHALL,2000021623,543.26,Group Comms Serials & Periodicals 13/14,E3 3JH
Department for Transport,Department for Transport,13/01/2014,Printing,DASH,WILLIAMS LEA LIMITED,2000021640,4730,#,NR3 1PD
Department for Transport,Department for Transport,13/01/2014,Purchasing Card Char,Group Finance,BARCLAYS BANK PLC,2000021618,6471.89,Barclays (DG Group) 1st Nov 2013,NN4 7SG
Department for Transport,Department for Transport,13/01/2014,Purchasing Card Char,Group Finance,BARCLAYS BANK PLC,2000021618,4713.65,Barclays - CB&LC DFT/Rail Dec 2013,NN4 7SG
Department for Transport,Department for Transport,13/01/2014,Rent - L&B (non-PFI),Business Transformation,DWP SHARED SERVICES,2000021612,23319.4,#,CF14 3UW
Department for Transport,Department for Transport,13/01/2014,Small Software,Business Transformation,PROCSERVE SHARED SERVICES LTD,2000021639,22196,#,SW1W 9SR
Department for Transport,Department for Transport,13/01/2014,Support Services,DASH,Environmental Scientifics Group,2000021616,4910.4,#,OX9 3SZ
Department for Transport,Department for Transport,13/01/2014,Support Services,Aviation,NEWCASTLE INTERNATIONAL AIRPORT LTD,2000021626,29988,#,NE13 8BZ
Department for Transport,Department for Transport,13/01/2014,Support Services,General Counsel's Office,Corries Solicitors Ltd,2000021647,28000,Industrial Injury Claim,YO1 9XF
Department for Transport,Department for Transport,13/01/2014,Training,Air Accident Investigation Branch,BRITISH AIRWAYS,2000021620,31900,#,UB7 0GB
Department for Transport,Department for Transport,13/01/2014,Transport  Consult,Rail and Road Projects,JACOBS UK LTD,2000021622,180019.8,#,G2 7HX
Department for Transport,Department for Transport,14/01/2014,Agency Staff Costs,Corporate Governance,PARITY RESOURCES LTD,2000021728,12053.88,#,SW19 3RU
Department for Transport,Department for Transport,14/01/2014,Agency Staff Costs,Group Finance,ALLEN LANE FINANCIAL RECRUITMENT,2000021703,3263.26,#,BN11 2BW
Department for Transport,Department for Transport,14/01/2014,Agency Staff Costs,Group Finance,ALLEN LANE FINANCIAL RECRUITMENT,2000021703,3263.26,#,BN11 2BW
Department for Transport,Department for Transport,14/01/2014,Agency Staff Costs,Group Finance,ALLEN LANE FINANCIAL RECRUITMENT,2000021703,4036.38,#,BN11 2BW
Department for Transport,Department for Transport,14/01/2014,Agency Staff Costs,Group Finance,ALLEN LANE FINANCIAL RECRUITMENT,2000021703,4036.38,#,BN11 2BW
Department for Transport,Department for Transport,14/01/2014,Agency Staff Costs,Group Finance,ALLEN LANE FINANCIAL RECRUITMENT,2000021703,3263.26,#,BN11 2BW
Department for Transport,Department for Transport,14/01/2014,Agency Staff Costs,Group Finance,ALLEN LANE FINANCIAL RECRUITMENT,2000021703,3229.1,#,BN11 2BW
Department for Transport,Department for Transport,14/01/2014,Agency Staff Costs,Group Finance,MICHAEL PAGE INTERNATIONAL,2000021727,1926,#,SL1 3SA
Department for Transport,Department for Transport,14/01/2014,Agency Staff Costs,Rail and Road Projects,BADENOCH & CLARK,2000021708,3088.8,#,EC4V 4BG
Department for Transport,Department for Transport,14/01/2014,Agency Staff Costs,Rail Commercial Contracts,CAPITA RESOURCING LTD,2000021729,8261.17,#,DL1 9HN
Department for Transport,Department for Transport,14/01/2014,Agency Staff Costs,Rail Commercial Contracts,EXPERIS LTD,2000021716,1124.98,#,EC1R 3DR
Department for Transport,Department for Transport,14/01/2014,Agency Staff Costs,Roads,EXPERIS LTD,2000021716,9374.76,#,EC1R 3DR
Department for Transport,Department for Transport,22/01/2014,Agency Staff Costs,Roads,EXPERIS LTD,2000022563,5624.86,#,EC1R 3DR
Department for Transport,Department for Transport,23/01/2014,Agency Staff Costs,Roads,EXPERIS LTD,2000022679,5624.86,#,EC1R 3DR
Department for Transport,Department for Transport,14/01/2014,Agency Staff Costs,Group Finance,ALLEN LANE FINANCIAL RECRUITMENT,2000021703,2463.84,#,BN11 2BW
Department for Transport,Department for Transport,14/01/2014,Agency Staff Costs,Highspeed 2,CAPITA RESOURCING LTD,2000021729,15960,#,DL1 9HN
Department for Transport,Department for Transport,14/01/2014,Agency Staff Costs,Refran Prog Off,MICHAEL PAGE INTERNATIONAL,2000021727,533.28,#,SL1 3SA
Department for Transport,Department for Transport,14/01/2014,Agency Staff Costs,Group Finance,PARITY RESOURCES LTD,2000021728,12240,#,SW19 3RU
Department for Transport,Department for Transport,14/01/2014,Agency Staff Costs,Group Finance,PARITY RESOURCES LTD,2000021728,9360,#,SW19 3RU
Department for Transport,Department for Transport,14/01/2014,Agency Staff Costs,Group Finance,PARITY RESOURCES LTD,2000021728,20520,#,SW19 3RU
Department for Transport,Department for Transport,14/01/2014,Agency Staff Costs,Group Finance,PARITY RESOURCES LTD,2000021728,3510,#,SW19 3RU
Department for Transport,Department for Transport,14/01/2014,Agency Staff Costs,Refran Prog Off,CAPITA RESOURCING LTD,2000021729,19440,#,DL1 9HN
Department for Transport,Department for Transport,14/01/2014,Agency Staff Costs,Refran Prog Off,CAPITA RESOURCING LTD,2000021729,27880.85,#,DL1 9HN
Department for Transport,Department for Transport,14/01/2014,Agency Staff Costs,Refran Prog Off,CAPITA RESOURCING LTD,2000021729,2844,#,DL1 9HN
Department for Transport,Department for Transport,14/01/2014,Agency Staff Costs,Refran Prog Off,CAPITA RESOURCING LTD,2000021729,11280,#,DL1 9HN
Department for Transport,Department for Transport,14/01/2014,Agency Staff Costs,Refran Prog Off,CAPITA RESOURCING LTD,2000021729,4145.04,#,DL1 9HN
Department for Transport,Department for Transport,14/01/2014,Agency Staff Costs,Refran Prog Off,CAPITA RESOURCING LTD,2000021729,9887.4,#,DL1 9HN
Department for Transport,Department for Transport,14/01/2014,Agency Staff Costs,Refran Prog Off,CAPITA RESOURCING LTD,2000021729,17472,#,DL1 9HN
Department for Transport,Department for Transport,14/01/2014,Agency Staff Costs,Refran Prog Off,MICHAEL PAGE INTERNATIONAL,2000021727,4666.2,#,SL1 3SA
Department for Transport,Department for Transport,14/01/2014,Books,General Counsel's Office,SWETS INFORMATION SERVICES,2000021698,5221.74,#,OX14 1UQ
Department for Transport,Department for Transport,14/01/2014,Cap Grt Pri Sec-Cos.,Local,FIRST WEST YORKSHIRE LTD,2000021736,566434,Green Bus Fund bus operator payment,LS10 1PL
Department for Transport,Department for Transport,14/01/2014,Cap Grt Pri Sec-Cos.,Rail and Road Projects,SCOTTISH EXECUTIVE,2000021737,856259,Scottish AFA 13-14,G4 0HF
Department for Transport,Department for Transport,14/01/2014,Cap Grt Pri Sec-Cos.,Greener Transport & International,Rolec Services Limited,2000021743,400000,Rolec Nov #400k,PE20 1Q
Department for Transport,Department for Transport,14/01/2014,Cars Fuel,Air Accident Investigation Branch,ALLSTAR BUSINESS SOLUTIONS LIMITED,2000021704,1520.27,#,SN5 6PS
Department for Transport,Department for Transport,14/01/2014,Computer Consumables,Business Transformation,XMA LIMITED GOSC,2000021742,731.23,#,NG11 7EP
Department for Transport,Department for Transport,14/01/2014,Computer equipment,Marine Accident Investigation Branch,Probrand Ltd,2000021700,1466.87,#,B1 3BP
Department for Transport,Department for Transport,14/01/2014,CurrGrt Las in AEF/A,Local,Basingstoke & Deane Borough Council,2000021870,6522,Basingstoke and Deane Borough Council,RG21 4AH
Department for Transport,Department for Transport,14/01/2014,CurrGrt Las in AEF/A,Local,BATH & NE SOMERSET DC,2000021754,61562,Bath & North East Somerset Council,BA1 5AW
Department for Transport,Department for Transport,14/01/2014,CurrGrt Las in AEF/A,Local,BEDFORD BC,2000021755,53737,Bedford Borough Council,MK40 1SJ
Department for Transport,Department for Transport,14/01/2014,CurrGrt Las in AEF/A,Local,BLACKBURN WITH DARWEN BC,2000021816,19998,Blackburn with Darwen BC,BB1 7DY
Department for Transport,Department for Transport,14/01/2014,CurrGrt Las in AEF/A,Local,Blackpool Borough Council,2000021871,2473,Blackpool Borough Council,FY4 2TS
Department for Transport,Department for Transport,14/01/2014,CurrGrt Las in AEF/A,Local,BOURNEMOUTH BC,2000021756,19183,Bournemouth Borough Council,BH2 6DY
Department for Transport,Department for Transport,14/01/2014,CurrGrt Las in AEF/A,Local,BRACKNELL FOREST BC,2000021749,23828,Bracknell Forest,RG12 1AQ
Department for Transport,Department for Transport,14/01/2014,CurrGrt Las in AEF/A,Local,BRADFORD METRO DISTRICT COUNCIL,2000021845,41326,Bradford MBC,BD1 1HX
Department for Transport,Department for Transport,14/01/2014,CurrGrt Las in AEF/A,Local,BRENT COMMUNITY TRANSPORT,2000021797,8025,London Borough of Brent,HA9 7RG
Department for Transport,Department for Transport,14/01/2014,CurrGrt Las in AEF/A,Local,BRIGHTON & HOVE COUNCIL,2000021757,43248,Brighton and Hove City Council,BN3 2SR
Department for Transport,Department for Transport,14/01/2014,CurrGrt Las in AEF/A,Local,Bristol City Council,2000021872,112087,Bristol City Council,BS1 5TR
Department for Transport,Department for Transport,14/01/2014,CurrGrt Las in AEF/A,Local,BUCKINGHAMSHIRE CC (REVENUE),2000021758,116152,Buckinghamshire County Council,HP20 1UD
Department for Transport,Department for Transport,14/01/2014,CurrGrt Las in AEF/A,Local,BURY MBC,2000021799,9497,Bury MBC,BL9 0DN
Department for Transport,Department for Transport,14/01/2014,CurrGrt Las in AEF/A,Local,CALDERDALE MBC,2000021801,21349,Calderdale MBC,HX1 4PL
Department for Transport,Department for Transport,14/01/2014,CurrGrt Las in AEF/A,Local,CAMBRIDGESHIRE COUNTY COUNCIL,2000021759,78412,Cambridgeshire County Council,CB3 0AP
Department for Transport,Department for Transport,14/01/2014,CurrGrt Las in AEF/A,Local,CENTRAL BEDFORDSHIRE COUNCIL,2000021835,34099,Central Bedfordshire Council,MK42 9BD
Department for Transport,Department for Transport,14/01/2014,CurrGrt Las in AEF/A,Local,CENTRO,2000021827,448065,CENTRO,B19 3SD
Department for Transport,Department for Transport,14/01/2014,CurrGrt Las in AEF/A,Local,CHESHIRE EAST BOROUGH COUNCIL,2000021833,92323,Cheshire East,CW11 1HZ
Department for Transport,Department for Transport,14/01/2014,CurrGrt Las in AEF/A,Local,CHESHIRE WEST &,2000021834,89978,Cheshire West and Chester,CH1 9PS
Department for Transport,Department for Transport,14/01/2014,CurrGrt Las in AEF/A,Local,City of Lincoln Council,2000021857,1783,City of Lincoln Council,LN1 1DD
Department for Transport,Department for Transport,14/01/2014,CurrGrt Las in AEF/A,Local,CITY OF SALFORD COM & SOC SERV,2000021811,10739,Salford City Council,M50 1SW
Department for Transport,Department for Transport,14/01/2014,CurrGrt Las in AEF/A,Local,City of Stoke on Trent,2000021859,10015,Stoke-on-Trent City Council,ST4 1RN
Department for Transport,Department for Transport,14/01/2014,CurrGrt Las in AEF/A,Local,CITY OF YORK COUNCIL,2000021760,40655,City of York Council,Y01 7WH
Department for Transport,Department for Transport,14/01/2014,CurrGrt Las in AEF/A,Local,CORNWALL COUNTY COUNCIL,2000021814,191280,Cornwall County Council,TR1 3AY
Department for Transport,Department for Transport,14/01/2014,CurrGrt Las in AEF/A,Local,CUMBRIA COUNTY COUNCIL,2000021848,120401,Cumbria County Council,CA3 8NA
Department for Transport,Department for Transport,14/01/2014,CurrGrt Las in AEF/A,Local,DARLINGTON BC,2000021761,11432,Darlington Borough Council,TS19 1JA
Department for Transport,Department for Transport,14/01/2014,CurrGrt Las in AEF/A,Local,Derby City Council,2000021873,9136,Derby City Council,DE1 2FE
Department for Transport,Department for Transport,14/01/2014,CurrGrt Las in AEF/A,Local,DERBYSHIRE COUNTY COUNCIL,2000021762,224147,Derbyshire County Council,DE4 3AH
Department for Transport,Department for Transport,14/01/2014,CurrGrt Las in AEF/A,Local,DEVON COUNTY COUNCIL,2000021763,324399,Devon County Council,EX2 4QJ
Department for Transport,Department for Transport,14/01/2014,CurrGrt Las in AEF/A,Local,DORSET COUNTY COUNCIL,2000021764,125686,Dorset County Council,DT1 1XJ
Department for Transport,Department for Transport,14/01/2014,CurrGrt Las in AEF/A,Local,Durham County Council,2000021874,90659,Durham County Council,DH1 5UL
Department for Transport,Department for Transport,14/01/2014,CurrGrt Las in AEF/A,Local,EAST RIDING OF YORKSHIRE COUNCIL,2000021765,153688,East Riding of Yorkshire Council,HU17 9BA
Department for Transport,Department for Transport,14/01/2014,CurrGrt Las in AEF/A,Local,EAST SUSSEX COUNTY COUNCIL,2000021822,106477,East Sussex County Council,BN7 1UE
Department for Transport,Department for Transport,14/01/2014,CurrGrt Las in AEF/A,Local,Eastleigh Borough Council,2000021875,1446,Eastleigh Borough Council,SO50 9YN
Department for Transport,Department for Transport,14/01/2014,CurrGrt Las in AEF/A,Local,Essex County Council,2000021876,312780,Essex County Council,CM1 1LX
Department for Transport,Department for Transport,14/01/2014,CurrGrt Las in AEF/A,Local,GATESHEAD MBC,2000021803,6710,Gateshead MBC,NE8 1HH
Department for Transport,Department for Transport,14/01/2014,CurrGrt Las in AEF/A,Local,GLOUCESTERSHIRE COUNTY COUNCIL,2000021753,114591,Gloucestershire County Council,GL1 2TJ
Department for Transport,Department for Transport,14/01/2014,CurrGrt Las in AEF/A,Local,HALTON BC,2000021766,25934,Halton Borough Council,WA8 6NB
Department for Transport,Department for Transport,14/01/2014,CurrGrt Las in AEF/A,Local,HAMPSHIRE COUNTY COUNCIL (SSD),2000021805,276554,Hampshire County Council,SO23 8UQ
Department for Transport,Department for Transport,14/01/2014,CurrGrt Las in AEF/A,Local,HARTLEPOOL BOROUGH COUNCIL,2000021836,1477,Hartlepool Borough Council,TS24 7BT
Department for Transport,Department for Transport,14/01/2014,CurrGrt Las in AEF/A,Local,HEREFORDSHIRE COUNCIL,2000021750,54645,Herefordshire County Council,HR4 0XH
Department for Transport,Department for Transport,14/01/2014,CurrGrt Las in AEF/A,Local,Hertfordshire County Council,2000021860,328002,Hertfordshire County Council,SG13 8DN
Department for Transport,Department for Transport,14/01/2014,CurrGrt Las in AEF/A,Local,ISLE OF WIGHT COUNCIL,2000021767,5587,Isle of Wight Council,PO30 1UD
Department for Transport,Department for Transport,14/01/2014,CurrGrt Las in AEF/A,Local,Kent County Council,2000021861,293559,Kent County Council,ME14 1XQ
Department for Transport,Department for Transport,14/01/2014,CurrGrt Las in AEF/A,Local,Kettering Borough Council,2000021862,1269,Kettering Borough Council,NN15 7QX
Department for Transport,Department for Transport,14/01/2014,CurrGrt Las in AEF/A,Local,KINGSTON UPON HULL CITY COUNCIL,2000021768,33600,Kingston upon Hull City Council,HU1 2AB
Department for Transport,Department for Transport,14/01/2014,CurrGrt Las in AEF/A,Local,KNOWSLEY MBC,2000021769,825,Knowsley Metropolitan Borough Council,L32 1TX
Department for Transport,Department for Transport,14/01/2014,CurrGrt Las in AEF/A,Local,LANCASHIRE COUNTY COUNCIL,2000021770,504537,Lancashire County Council,PR1 0LD
Department for Transport,Department for Transport,14/01/2014,CurrGrt Las in AEF/A,Local,LB ISLINGTON,2000021751,853,London Borough of Islington,N1 1XR
Department for Transport,Department for Transport,14/01/2014,CurrGrt Las in AEF/A,Local,LEEDS CITY COUNCIL,2000021807,88767,Leeds City Council,LS2 8JR
Department for Transport,Department for Transport,14/01/2014,CurrGrt Las in AEF/A,Local,LEICESTER CITY COUNCIL,2000021771,39661,Leicester City Council,LE1 6ZG
Department for Transport,Department for Transport,14/01/2014,CurrGrt Las in AEF/A,Local,LEICESTERSHIRE COUNTY COUNCIL,2000021817,161620,Leicestershire County Council,LE3 8RB
Department for Transport,Department for Transport,14/01/2014,CurrGrt Las in AEF/A,Local,Lincolnshire County Council,2000021863,133826,Lincolnshire County Council,LN1 1DN
Department for Transport,Department for Transport,14/01/2014,CurrGrt Las in AEF/A,Local,LIVERPOOL CITY COUNCIL,2000021829,23473,Liverpool City Council,L13 3HS
Department for Transport,Department for Transport,14/01/2014,CurrGrt Las in AEF/A,Local,LONDON BOROUGH OF,2000021832,6995,London Borough of Barking and Dagenham,RM10 7HE
Department for Transport,Department for Transport,14/01/2014,CurrGrt Las in AEF/A,Local,LONDON BOROUGH OF BARNET,2000021844,20314,London Borough of Barnet,N11 1NP
Department for Transport,Department for Transport,14/01/2014,CurrGrt Las in AEF/A,Local,LONDON BOROUGH OF CAMDEN,2000021840,15914,London Borough of Camden,N1C 4BE
Department for Transport,Department for Transport,14/01/2014,CurrGrt Las in AEF/A,Local,London Borough of Enfield,2000021847,9449,London Borough of Enfield,EN3 4QN
Department for Transport,Department for Transport,14/01/2014,CurrGrt Las in AEF/A,Local,LONDON BOROUGH OF HARROW,2000021839,34671,London Borough of Harrow,HA1 2XF
Department for Transport,Department for Transport,14/01/2014,CurrGrt Las in AEF/A,Local,London Borough of Hillingdon,2000021849,10833,London Borough of Hillingdon,UB8 1UW
Department for Transport,Department for Transport,14/01/2014,CurrGrt Las in AEF/A,Local,LONDON BOROUGH OF HOUNSLOW,2000021846,12448,London Borough of Hounslow,TW3 1SQ
Department for Transport,Department for Transport,14/01/2014,CurrGrt Las in AEF/A,Local,LONDON BOROUGH OF MERTON,2000021808,20515,London Borough of Merton,SM4 4AX
Department for Transport,Department for Transport,14/01/2014,CurrGrt Las in AEF/A,Local,LONDON BOROUGH OF NEWHAM,2000021841,21085,London Borough of Newham,E6 4BX
Department for Transport,Department for Transport,14/01/2014,CurrGrt Las in AEF/A,Local,LONDON BOROUGH REDBRIDGE,2000021809,22401,London Borough of Redbridge,IG1 1NN
Department for Transport,Department for Transport,14/01/2014,CurrGrt Las in AEF/A,Local,LUTON BOROUGH COUNCIL,2000021772,26374,Luton Borough Council,LU1 2BQ
Department for Transport,Department for Transport,14/01/2014,CurrGrt Las in AEF/A,Local,Maidstone Borough Council,2000021858,9942,Maidstone Borough Council,ME15 6JQ
Department for Transport,Department for Transport,14/01/2014,CurrGrt Las in AEF/A,Local,MANCHESTER CITY COUNCIL,2000021843,15194,Manchester City Council,M12 5QN
Department for Transport,Department for Transport,14/01/2014,CurrGrt Las in AEF/A,Local,MEDWAY COUNCIL,2000021821,31666,Medway Council,ME4 4TR
Department for Transport,Department for Transport,14/01/2014,CurrGrt Las in AEF/A,Local,MERSEY TRAVEL,2000021815,379102,Merseyside Travel PTE,L3   2AN
Department for Transport,Department for Transport,14/01/2014,CurrGrt Las in AEF/A,Local,MIDDLESBROUGH BC,2000021752,17629,Middlesbrough Borough Council,TS1 2QQ
Department for Transport,Department for Transport,14/01/2014,CurrGrt Las in AEF/A,Local,MILTON KEYNES BC,2000021773,116189,Milton Keynes Council,MK9 3EE
Department for Transport,Department for Transport,14/01/2014,CurrGrt Las in AEF/A,Local,NEWCASTLE CITY COUNCIL,2000021825,9838,Newcastle City Council,NE1 8PA
Department for Transport,Department for Transport,14/01/2014,CurrGrt Las in AEF/A,Local,NEXUS,2000021774,222700,Nexus,NE1 4AX
Department for Transport,Department for Transport,14/01/2014,CurrGrt Las in AEF/A,Local,NORFOLK COUNTY COUNCIL,2000021784,264047,Norfolk County Council,NR1 2UG
Department for Transport,Department for Transport,14/01/2014,CurrGrt Las in AEF/A,Local,NORTH EAST LINCOLNSHIRE COUNCIL,2000021850,4196,North East Lincolnshire Council,DN35 8LN
Department for Transport,Department for Transport,14/01/2014,CurrGrt Las in AEF/A,Local,North Lincolnshire Council,2000021864,62309,North Lincolnshire Council,DN20 8XY
Department for Transport,Department for Transport,14/01/2014,CurrGrt Las in AEF/A,Local,NORTH SOMERSET COUNCIL,2000021775,17038,North Somerset Council,BS23 1UJ
Department for Transport,Department for Transport,14/01/2014,CurrGrt Las in AEF/A,Local,NORTH YORKSHIRE CC,2000021776,276588,North Yorkshire County Council,DL7 8AL
Department for Transport,Department for Transport,14/01/2014,CurrGrt Las in AEF/A,Local,NORTHAMPTONSHIRE CC,2000021777,53796,Northamptonshire County Council,NN4 7DB
Department for Transport,Department for Transport,14/01/2014,CurrGrt Las in AEF/A,Local,Northumberland CC,2000021865,125851,Northumberland County Council,NE61 2EF
Department for Transport,Department for Transport,14/01/2014,CurrGrt Las in AEF/A,Local,NOTTINGHAM CITY COUNCIL,2000021831,59506,Nottingham City Council,NG2 3AH
Department for Transport,Department for Transport,14/01/2014,CurrGrt Las in AEF/A,Local,NOTTINGHAMSHIRE CC,2000021778,265082,Nottinghamshire County Council,NG2 7LA
Department for Transport,Department for Transport,14/01/2014,CurrGrt Las in AEF/A,Local,OXFORDSHIRE CC,2000021779,213415,Oxfordshire County Council,OX1 1TH
Department for Transport,Department for Transport,14/01/2014,CurrGrt Las in AEF/A,Local,PETERBOROUGH CITY COUNCIL,2000021780,26803,Peterborough City Council,PE1 1FF
Department for Transport,Department for Transport,14/01/2014,CurrGrt Las in AEF/A,Local,PLYMOUTH CITY COUNCIL,2000021781,21252,Plymouth City Council,PL1 2AA
Department for Transport,Department for Transport,14/01/2014,CurrGrt Las in AEF/A,Local,POOLE BC,2000021782,47091,Poole Borough Council,BH15 2RZ
Department for Transport,Department for Transport,14/01/2014,CurrGrt Las in AEF/A,Local,PORTSMOUTH CITY COUNCIL,2000021810,21196,Portsmouth City Council,PO1 2BG
Department for Transport,Department for Transport,14/01/2014,CurrGrt Las in AEF/A,Local,READING BC,2000021783,18548,Reading Borough Council,RG1 7TD
Department for Transport,Department for Transport,14/01/2014,CurrGrt Las in AEF/A,Local,REDCAR & CLEVELAND BC,2000021818,29978,Redcar and Cleveland Borough Council,TS6 9AR
Department for Transport,Department for Transport,14/01/2014,CurrGrt Las in AEF/A,Local,ROTHERHAM METROPOLITAN BOROUGH,2000021842,10480,Rotherham MBC,S66 8QL
Department for Transport,Department for Transport,14/01/2014,CurrGrt Las in AEF/A,Local,RUTLAND COUNTY COUNCIL,2000021785,17177,Rutland County Council,LE15 6HP
Department for Transport,Department for Transport,14/01/2014,CurrGrt Las in AEF/A,Local,SHEFFIELD CITY COUNTY COUNCIL,2000021824,53429,Sheffield City Council,S9 3GZ
Department for Transport,Department for Transport,14/01/2014,CurrGrt Las in AEF/A,Local,SHROPSHIRE COUNTY COUNCIL,2000021786,118027,Shropshire County Council,SY2 6ND
Department for Transport,Department for Transport,14/01/2014,CurrGrt Las in AEF/A,Local,Slough Borough Council,2000021866,10785,Slough Borough Council,SL1 3UQ
Department for Transport,Department for Transport,14/01/2014,CurrGrt Las in AEF/A,Local,Somerset County Council,2000021867,124051,Somerset County Council,TA1 4DY
Department for Transport,Department for Transport,14/01/2014,CurrGrt Las in AEF/A,Local,South Gloucestershire Council,2000021868,121317,South Gloucestershire Council,BS35 1HF
Department for Transport,Department for Transport,14/01/2014,CurrGrt Las in AEF/A,Local,SOUTH YORKSHIRE PTE,2000021828,244545,South Yorkshire Passenger Transport Executive,S1 2BQ
Department for Transport,Department for Transport,14/01/2014,CurrGrt Las in AEF/A,Local,SOUTHAMPTON CITY COUNCIL,2000021823,18778,Southampton City Council,SO14 7LY
Department for Transport,Department for Transport,14/01/2014,CurrGrt Las in AEF/A,Local,ST HELENS COUNCIL SOCIAL SERVICES,2000021812,11699,St Helens MBC,WA10 1DY
Department for Transport,Department for Transport,14/01/2014,CurrGrt Las in AEF/A,Local,Staffordshire County Council,2000021869,174967,Staffordshire County Council,ST16 2LP
Department for Transport,Department for Transport,14/01/2014,CurrGrt Las in AEF/A,Local,STOCKPORT MBC SOCIAL SERVICES,2000021813,4492,Stockport MBC,SK3 0XT
Department for Transport,Department for Transport,14/01/2014,CurrGrt Las in AEF/A,Local,STOCKTON ON TEES BC,2000021787,22231,Stockton-on-Tees Borough Council,TS23 2YS
Department for Transport,Department for Transport,14/01/2014,CurrGrt Las in AEF/A,Local,Suffolk County Council,2000021851,153734,Suffolk County Council,IP1 2BX
Department for Transport,Department for Transport,14/01/2014,CurrGrt Las in AEF/A,Local,SURREY COUNTY COUNCIL,2000021788,281351,Surrey County Council,KT1 2DN
Department for Transport,Department for Transport,14/01/2014,CurrGrt Las in AEF/A,Local,SWINDON BC,2000021789,44051,Swindon Borough Council,SN1 2JH
Department for Transport,Department for Transport,14/01/2014,CurrGrt Las in AEF/A,Local,TAMESIDE METROPOLITAN,2000021838,6065,Thameside MBC,SK15 1ST
Department for Transport,Department for Transport,14/01/2014,CurrGrt Las in AEF/A,Local,Telford & Wrekin Council,2000021852,33171,Telford and Wrekin Council,TF3 4WZ
Department for Transport,Department for Transport,14/01/2014,CurrGrt Las in AEF/A,Local,THURROCK DC,2000021790,11316,Thurrock Council,RM17 6LT
Department for Transport,Department for Transport,14/01/2014,CurrGrt Las in AEF/A,Local,Torbay Borough Council,2000021853,6482,Torbay Borough Council,TQ1 3DR
Department for Transport,Department for Transport,14/01/2014,CurrGrt Las in AEF/A,Local,Transport for Greater Manchester,2000021854,730826,Transport for Greater Manchester,M1 3BG
Department for Transport,Department for Transport,14/01/2014,CurrGrt Las in AEF/A,Local,W YORKS PTA,2000021791,513180,Metro,LS1 1QS
Department for Transport,Department for Transport,14/01/2014,CurrGrt Las in AEF/A,Local,WAKEFIELD MDC PASSENGER TRANSPORT,2000021837,18877,Wakefield MDC,WF1 2TU
Department for Transport,Department for Transport,14/01/2014,CurrGrt Las in AEF/A,Local,WARRINGTON BC,2000021792,12238,Warrington Borough Council,WA1 1BN
Department for Transport,Department for Transport,14/01/2014,CurrGrt Las in AEF/A,Local,Warwickshire County Council,2000021819,167278,Warwickshire County Council,CV34 4RH
Department for Transport,Department for Transport,14/01/2014,CurrGrt Las in AEF/A,Local,WEST BERKSHIRE DC,2000021793,34275,West Berkshire District Council,RG14 2AF
Department for Transport,Department for Transport,14/01/2014,CurrGrt Las in AEF/A,Local,West Sussex County Council,2000021855,124538,West Sussex County Council,PO19 1RQ
Department for Transport,Department for Transport,14/01/2014,CurrGrt Las in AEF/A,Local,WIGAN COUNCIL,2000021830,15728,Wigan Council,WN1 1AZ
Department for Transport,Department for Transport,14/01/2014,CurrGrt Las in AEF/A,Local,WILTSHIRE COUNTY COUNCIL,2000021794,246120,Wiltshire County Council,BA14 8JJ
Department for Transport,Department for Transport,14/01/2014,CurrGrt Las in AEF/A,Local,Winchester City Council,2000021856,11339,Winchester City Council,SO23 9LJ
Department for Transport,Department for Transport,14/01/2014,CurrGrt Las in AEF/A,Local,WINDSOR & MAIDENHEAD,2000021795,19037,Royal Borough of Windsor and Maidenhead,SL6 1RF
Department for Transport,Department for Transport,14/01/2014,CurrGrt Las in AEF/A,Local,Wirral Council,2000021826,7268,Wirral Borough Council,CH41 6BU
Department for Transport,Department for Transport,14/01/2014,CurrGrt Las in AEF/A,Local,WOKINGHAM DC,2000021796,27865,Wokingham District Council,RG40 1JW
Department for Transport,Department for Transport,14/01/2014,CurrGrt Las in AEF/A,Local,WORCESTERSHIRE COUNTY COUNCIL,2000021820,123788,Worcestershire County Council,WR5 2NP
Department for Transport,Department for Transport,14/01/2014,Further Educ Cost,Analysis/Science,HM REVENUE & CUSTOMS,2000021804,645,#,BN12 4XH
Department for Transport,Department for Transport,14/01/2014,Gas,Rail Accident Investigation Branch,CORONA ENERGY RETAIL 4 LTD,2000021713,834.16,#,WD17 1JW
Department for Transport,Department for Transport,14/01/2014,Hospitality,Local,KPMG,100027113,1279.8,#,WD17 1DE
Department for Transport,Department for Transport,14/01/2014,Hospitality,Local,KPMG,100027113,-1279.8,#,WD17 1DE
Department for Transport,Department for Transport,14/01/2014,HR Consultancy,Group HR,CABINET OFFICE,2000021800,1529.8,#,CF14 3UW
Department for Transport,Department for Transport,14/01/2014,IT Equip Cap Cost,Air Accident Investigation Branch,Cellebrite Mobile Sycronization Ltd,2000021806,7435,RFT Manual Payment,41930
Department for Transport,Department for Transport,14/01/2014,IT Ser Running Costs,Transport Direct and Travel information,TRAPEZE GROUP (UK) LTD,2000021726,18625.2,#,BA14 6PH
Department for Transport,Department for Transport,14/01/2014,Legal Consultancy,Strategic Roads,DLA PIPER UK LLP,2000021715,8714.04,#,M2 3DL
Department for Transport,Department for Transport,14/01/2014,Legal Consultancy,Refran Prog Off,DLA PIPER UK LLP,2000021715,2306.88,#,M2 3DL
Department for Transport,Department for Transport,14/01/2014,Management Consultan,Rail Commercial Contracts,RAIL MANCHE FINANCE EEIG,2000021731,12500,Accountancy Services - quarter ended 31/3/14,N1 9AW
Department for Transport,Department for Transport,14/01/2014,Other Advertising,Local,PENNA COMMUNICATIONS,2000021735,7504.5,#,EC4M 7RD
Department for Transport,Department for Transport,14/01/2014,Other Advertising,Local,PENNA COMMUNICATIONS,2000021735,7143.03,#,EC4M 7RD
Department for Transport,Department for Transport,14/01/2014,Other Advertising,Local,PENNA COMMUNICATIONS,2000021735,11067.61,#,EC4M 7RD
Department for Transport,Department for Transport,14/01/2014,Other Advertising,Local,PENNA COMMUNICATIONS,2000021735,9631.94,#,EC4M 7RD
Department for Transport,Department for Transport,14/01/2014,Prog&ProjMgmt Consul,Roads,ATKINS LTD (TRANSPORT PLANNING),2000021705,15816.35,#,WR5 1TX
Department for Transport,Department for Transport,14/01/2014,Prog&ProjMgmt Consul,Business Transformation,MACE Limited,2000021748,52800,#,EC2M 6X
Department for Transport,Department for Transport,14/01/2014,Prog&ProjMgmt Consul,Strategic Roads,Rail Settlement Plan,2000021723,285640.8,#,EC1A 4HD
Department for Transport,Department for Transport,14/01/2014,Publications for Res,Business Transformation,CREATIVE CHOICE CIC,2000021738,2700,#,SW1H 0DJ
Department for Transport,Department for Transport,14/01/2014,Publicity,Roads,ABBOTT MEAD VICKERS BBDO LTD,2000021702,825,#,NW1 5QE
Department for Transport,Department for Transport,14/01/2014,Purchasing Card Char,Group Finance,BARCLAYS BANK PLC,2000021709,2054.06,Barclays - DFT/Rail Group - 01 Jan 2014,NN4 7SG
Department for Transport,Department for Transport,14/01/2014,Research,Aviation,CIVIL AVIATION AUTHORITY,2000021711,61933,#,RH10 0YR
Department for Transport,Department for Transport,14/01/2014,Security,General Counsel's Office,FCO SERVICES,2000021802,5964,#,MK19 7BH
Department for Transport,Department for Transport,14/01/2014,Small Software,Business Transformation,THE PRESS ASSOCIATION LTD,2000021732,875.56,#,SW1V 1A
Department for Transport,Department for Transport,14/01/2014,Storage & Distributi,Roads,NEAL DISPLAY LTD,2000021720,2640.56,#,SG13 7BJ
Department for Transport,Department for Transport,14/01/2014,Storage & Distributi,Roads,NEAL DISPLAY LTD,2000021720,534.6,#,SG13 7BJ
Department for Transport,Department for Transport,14/01/2014,Support Services,Air Accident Investigation Branch,ITS TESTING SERVICES (UK) LTD,2000021719,1068,#,RM20 3NL
Department for Transport,Department for Transport,14/01/2014,Support Services,Aviation,EXETER & DEVON AIRPORT LIMITED,2000021717,29988,#,EX5 2BD
Department for Transport,Department for Transport,14/01/2014,Support Services,General Counsel's Office,Department of Work & Pensions,2000021699,37131.45,#,NE38 7SF
Department for Transport,Department for Transport,14/01/2014,Training,Air Accident Investigation Branch,WESTERN AIR (THRUXTON) LTD,2000021740,611.5,#,SP11 8PW
Department for Transport,Department for Transport,14/01/2014,Training,Corporate Governance,MAJOR PROJECTS ASSOCIATION THE,2000021730,855,#,OX1 5NY
Department for Transport,Department for Transport,14/01/2014,Training,Corporate Governance,MAJOR PROJECTS ASSOCIATION THE,2000021730,570,#,OX1 5NY
Department for Transport,Department for Transport,14/01/2014,Transport  Consult,Rail and Road Projects,PARSONS BRINCKERHOFF LTD,2000021722,8676,#,NE4 7YQ
Department for Transport,Department for Transport,14/01/2014,Transport  Consult,Rail and Road Projects,PARSONS BRINCKERHOFF LTD,2000021722,4848,#,NE4 7YQ
Department for Transport,Department for Transport,14/01/2014,Travel Expenses UK,Marine Accident Investigation Branch,CLYDE TRAVEL,2000021712,872.48,27-28/11/13 GLASGOW/SOUTHAMPTON,G51 1HJ
Department for Transport,Department for Transport,14/01/2014,Waste disposal/Refus,Business Transformation,Banner Business Services Ltd,2000021741,1489,#,NR3 1QU
Department for Transport,Department for Transport,15/01/2014,Agency Staff Costs,Managing Director Motoring Services,BADENOCH & CLARK,2000022051,3705,#,EC4V 4BG
Department for Transport,Department for Transport,15/01/2014,Cap Grt Loc Auth,Local,DEVON COUNTY COUNCIL,2000022049,117893.67,Final Claims:East of Exeter & Metrolink Sunk Costs,EX2 4QJ
Department for Transport,Department for Transport,15/01/2014,Cap Grt Loc Auth,Local,GREATER MANCHESTER,2000022054,4523,Final Claims:East of Exeter & Metrolink Sunk Costs,M60 2JR
Department for Transport,Department for Transport,15/01/2014,Cap Grt Pri Sec-Cos.,Highspeed 2,Eversheds LLP,2000022057,396975,HS2 - Old Forge Cottage,CF10 5BT
Department for Transport,Department for Transport,15/01/2014,Cap Grt Pri Sec-Cos.,Highspeed 2,Eversheds LLP,2000022057,747070.68,HS2 - The Old Coach House,CF10 5BT
Department for Transport,Department for Transport,15/01/2014,Curr Grt Overseas,Greener Transport & International,OECD RUE ANDRE PASCAL 2,2000022046,445673.27,UK's 2013 annual contribution to the ITF,75775
Department for Transport,Department for Transport,15/01/2014,CurrGrt Las in AEF/A,Local,BLACKPOOL TRANSPORT SERVICES LTD,2000021913,242466.95,Blackpool Transport Services Ltd,FY1 5DD
Department for Transport,Department for Transport,15/01/2014,CurrGrt Las in AEF/A,Local,BOURNEMOUTH TRANSPORT LTD,2000021914,265841.41,Bournemouth Transport Ltd,BH8 0BQ
Department for Transport,Department for Transport,15/01/2014,CurrGrt Las in AEF/A,Local,WARRINGTON BOROUGH TRANS LTD,2000022004,153172.47,Warrington Borough Transport Ltd,WA4 6PT
Department for Transport,Department for Transport,15/01/2014,CurrGrtPriSec-P&NPIS,DASH,RICARDO - AEA LIMITED,2000022056,44000,NCEC Q3,OX11 0PQ
Department for Transport,Department for Transport,15/01/2014,Grt Aid to NDPBs,Rail,RAIL PASSENGER COUNCIL,2000022045,388000,PF Jan 2013 Claim,M1 1LQ
Department for Transport,Department for Transport,15/01/2014,Hospitality,Business Transformation,AMEY COMMUNITY LIMITED,2000022050,5075.39,Hospitality - November 2013,OX4 4DQ
Department for Transport,Department for Transport,15/01/2014,Net Pay,Motoring Services,DFT ONE TIME VENDOR,2000022048,827.43,#,SW1P 4DR
Department for Transport,Department for Transport,15/01/2014,Printing,DASH,WILLIAMS LEA LIMITED,2000022055,647.41,#,NR3 1PD
Department for Transport,Department for Transport,15/01/2014,Recruitment,Group HR,CABINET OFFICE,2000022043,1190,#,CF14 3UW
Department for Transport,Department for Transport,15/01/2014,Subsidies Private Se,Local,1ST BUS STOP MINIBUS,2000022023,3362.87,1st Bus Stop Minibus,DA13 9EW
Department for Transport,Department for Transport,15/01/2014,Subsidies Private Se,Local,ABELLIO WEST LONDON LTD,2000022000,52422.64,ABELLIO WEST LONDON LTD,SE5 0TF
Department for Transport,Department for Transport,15/01/2014,Subsidies Private Se,Local,ACE TRAVEL (NORTH WEST) LTD,2000021907,21064.95,ACE TRAVEL (NORTH WEST) LTD,L9 7AU
Department for Transport,Department for Transport,15/01/2014,Subsidies Private Se,Local,ACKLAM COACHES LTD,2000022015,1084.08,Acklams Coaches Ltd,HU17 0LA
Department for Transport,Department for Transport,15/01/2014,Subsidies Private Se,Local,ALANSWAY COACHES LTD,2000021908,14456.13,Alansway Coaches Ltd T/A Country Bus,TQ12 6UT
Department for Transport,Department for Transport,15/01/2014,Subsidies Private Se,Local,AXE VALLEY MINI TRAVEL,2000021909,7325.81,Axe Valley Mini Travel,EX12 2NA
Department for Transport,Department for Transport,15/01/2014,Subsidies Private Se,Local,BAKER BUS,2000021910,24075.01,Baker Bus,ST8 7PL
Department for Transport,Department for Transport,15/01/2014,Subsidies Private Se,Local,BENNETTS COACHES LTD,2000021912,12342.81,BENNETTS COACHES LTD,GL4 4LP
Department for Transport,Department for Transport,15/01/2014,Subsidies Private Se,Local,BNG Coaches Ltd,2000022040,539.55,B'N'G Coaches Ltd,SK17 8BL
Department for Transport,Department for Transport,15/01/2014,Subsidies Private Se,Local,BRADSHAW COACHES,2000021915,1650.15,Bradshaw Coaches Ltd,M28 3LX
Department for Transport,Department for Transport,15/01/2014,Subsidies Private Se,Local,Bristol Greyhound Ltd,2000022041,3699.67,Bristol Greyhound LTD,BS5 0EB
Department for Transport,Department for Transport,15/01/2014,Subsidies Private Se,Local,xxxxxx,2000022034,543.92,Mostonian 2000,xxxxxx
Department for Transport,Department for Transport,15/01/2014,Subsidies Private Se,Local,CAROSA LTD,2000021917,903.46,CAROSA LTD t/a FARLEIGH COACHES,ME3 9LB
Department for Transport,Department for Transport,15/01/2014,Subsidies Private Se,Local,CAROUSEL BUSES LTD,2000021918,39866.89,Carousel Buses Ltd,HP13 5SG
Department for Transport,Department for Transport,15/01/2014,Subsidies Private Se,Local,CARTERS COACH SERVICES LTD,2000021919,10754.9,Carters Coach Services Ltd,IP9 2JT
Department for Transport,Department for Transport,15/01/2014,Subsidies Private Se,Local,CASTLEWAYS (WINCHOMBE) LTD,2000021920,9640.06,CASTLEWAYS (WINCHCOMBE) LTD,GL54 5PU
Department for Transport,Department for Transport,15/01/2014,Subsidies Private Se,Local,CENTREBUS EAST LTD,2000021954,63358.69,Centrebus East Ltd,LE4 9HR
Department for Transport,Department for Transport,15/01/2014,Subsidies Private Se,Local,CLARKES OF LONDON,2000021906,31285.57,Clarkes of London,SE26 5AT
Department for Transport,Department for Transport,15/01/2014,Subsidies Private Se,Local,CLEARWAY OF CATSHILL,2000021921,1070.64,CLEARWAY OF CATSHILL,B61 0JL
Department for Transport,Department for Transport,15/01/2014,Subsidies Private Se,Local,CLOWES COACHES,2000021922,885.92,#,SK17 0QP
Department for Transport,Department for Transport,15/01/2014,Subsidies Private Se,Local,COACH HIRE COACHES LTD,2000021923,19889.99,COACH HIRE COACHES LTD,BN5 9UU
Department for Transport,Department for Transport,15/01/2014,Subsidies Private Se,Local,COASTAL LINER LTD,2000021924,1358.52,COASTAL LINER LIMITED,WV13 3RG
Department for Transport,Department for Transport,15/01/2014,Subsidies Private Se,Local,DAC COACHES LTD,2000021926,3762.08,DAC Coaches Ltd,PL18 9HW
Department for Transport,Department for Transport,15/01/2014,Subsidies Private Se,Local,Darren Mayes T/A M Travel,2000021955,72066.21,DARREN MAYES T/A M TRAVEL,WF10 4SB
Department for Transport,Department for Transport,15/01/2014,Subsidies Private Se,Local,DARTLINE COACHES,2000021927,4679.1,DARTLINE COACHES,EX5 1AF
Department for Transport,Department for Transport,15/01/2014,Subsidies Private Se,Local,DUDLEY'S COACHES LTD,2000021928,5313.56,DUDLEY'S COACHES LTD,WR7 4LS
Department for Transport,Department for Transport,15/01/2014,Subsidies Private Se,Local,E STOTT & SONS LTD,2000021929,14858.2,E.STOTT & SONS LTD,HD3 4PG
Department for Transport,Department for Transport,15/01/2014,Subsidies Private Se,Local,EMBLINGS COACHES LTD,2000021930,2373.71,EMBLINGS COACHES LTD,PE13 4ED
Department for Transport,Department for Transport,15/01/2014,Subsidies Private Se,Local,ERIC W BOWERS COACHES LTD,2000021931,76486.93,Bowers Coaches Ltd,LE4 9HU
Department for Transport,Department for Transport,15/01/2014,Subsidies Private Se,Local,ESK VALLEY COACHES LTD,2000021932,921.21,ESK VALLEY COACHES LTD,YO22 4PU
Department for Transport,Department for Transport,15/01/2014,Subsidies Private Se,Local,FARESAVER BUSES,2000021937,55692.06,FARESAVER BUSES,SN14 6NQ
Department for Transport,Department for Transport,15/01/2014,Subsidies Private Se,Local,FARGO COACHES,2000021934,1391.29,FARGO COACHES,RG12 2NB
Department for Transport,Department for Transport,15/01/2014,Subsidies Private Se,Local,FELIX TAXIS,2000021935,1289.49,Felix Taxis,CO10 9AD
Department for Transport,Department for Transport,15/01/2014,Subsidies Private Se,Local,FILERS TRAVEL LTD,2000021936,8135.62,FILER'S TRAVEL LTD,EX34 8LB
Department for Transport,Department for Transport,15/01/2014,Subsidies Private Se,Local,FIRST COACHES,2000022029,11749.17,First Coaches (Luton Service),LE4 0DA
Department for Transport,Department for Transport,15/01/2014,Subsidies Private Se,Local,FOURWAYS COACHES,2000022017,3307.34,Fourways Coaches,CM1 3QL
Department for Transport,Department for Transport,15/01/2014,Subsidies Private Se,Local,xxxxxx,2000021938,7860.2,xxxxxx,xxxxxx
Department for Transport,Department for Transport,15/01/2014,Subsidies Private Se,Local,GARDBUS,2000022026,3760.15,Gardbus,BH24 3AL
Department for Transport,Department for Transport,15/01/2014,Subsidies Private Se,Local,GLOVERS COACHES LTD,2000021939,518.31,GLOVERS COACHES Ltd,DE6 1HD
Department for Transport,Department for Transport,15/01/2014,Subsidies Private Se,Local,GRANT PALMER LIMITED,2000021941,23642.5,Grant Palmer Limited,MK45 5BP
Department for Transport,Department for Transport,15/01/2014,Subsidies Private Se,Local,GRIFFIN COACHES T/A RELIANCE TRAVEL,2000021940,13095.69,Griffin Coaches T/A Reliance Travel,DA12 2PS
Department for Transport,Department for Transport,15/01/2014,Subsidies Private Se,Local,HAMS TRAVEL,2000021943,3777.59,HAMS TRAVEL,TN5 7PL
Department for Transport,Department for Transport,15/01/2014,Subsidies Private Se,Local,HANSONS (WORDSLEY) LTD,2000021944,24119.5,HANSONS (WORDSLEY) LTD,DY9 8RD
Department for Transport,Department for Transport,15/01/2014,Subsidies Private Se,Local,HARWICH CONNEXIONS TRANSPORT,2000022035,706.91,Harwich Connexions Transport Co-Operative Ltd,CO12 3NS
Department for Transport,Department for Transport,15/01/2014,Subsidies Private Se,Local,HOLMESWOOD COACHES,2000021945,18109.65,HOLMESWOOD COACHES LTD,L40 1UB
Department for Transport,Department for Transport,15/01/2014,Subsidies Private Se,Local,HR RICHMOND LTD TA EPSOMCOACHES,2000021946,9161.76,Epsom Coaches,KT19 9AF
Department for Transport,Department for Transport,15/01/2014,Subsidies Private Se,Local,IMPERIAL BUS COMPANY LTD,2000021947,647.99,Imperial Bus Company Limited,PE14 8SH
Department for Transport,Department for Transport,15/01/2014,Subsidies Private Se,Local,J & P EXECUTIVE TRAVEL,2000021948,39997.42,J P Executive Travel,M24 2AZ
Department for Transport,Department for Transport,15/01/2014,Subsidies Private Se,Local,xxxxxx,2000022039,3576.39,xxxxxx,xxxxxx
Department for Transport,Department for Transport,15/01/2014,Subsidies Private Se,Local,JOHN FISHWICK & SONS,2000021949,35632.06,JOHN FISHWICK & SONS,PR25 3LE
Department for Transport,Department for Transport,15/01/2014,Subsidies Private Se,Local,LITTLE JIMS,2000021952,1359.51,Little Jim's,HP4 2BQ
Department for Transport,Department for Transport,15/01/2014,Subsidies Private Se,Local,LUGG VALLEY TRAVEL LTD,2000021953,767.53,LUGG VALLEY TRAVEL,HR6 8PX
Department for Transport,Department for Transport,15/01/2014,Subsidies Private Se,Local,M J CURLEY T/A,2000022038,1572.79,Coach of Langtoft / Langtoft Private Hire,PE6 9LS
Department for Transport,Department for Transport,15/01/2014,Subsidies Private Se,Local,MARSHALLS COACHES LLP,2000021956,5058.67,MARSHALLS COACHES LLP,LU7 4YP
Department for Transport,Department for Transport,15/01/2014,Subsidies Private Se,Local,MAS SPECIAL ENGINEERING LTD,2000021957,58610.96,MAS SPECIAL ENGINEERING LTD,LN5 8LG
Department for Transport,Department for Transport,15/01/2014,Subsidies Private Se,Local,MATTHEWS TRAVEL,2000022025,876.98,Matthew Newall T/A Matthews Travel,OL9 9ER
Department for Transport,Department for Transport,15/01/2014,Subsidies Private Se,Local,MEREDITHS COACHES LIMITED,2000021959,2526.68,Merediths Coaches Ltd,SY14 8DE
Department for Transport,Department for Transport,15/01/2014,Subsidies Private Se,Local,METROBUS LTD,2000021960,303321.94,Metrobus Ltd,RH10 9UA
Department for Transport,Department for Transport,15/01/2014,Subsidies Private Se,Local,MIKE DE COURCEY TRAVEL LTD,2000021961,44343.7,MIKE DE COURCEY TRAVEL LTD,CV3 4FG
Department for Transport,Department for Transport,15/01/2014,Subsidies Private Se,Local,NIP ON TRANSPORT SERVICE,2000021964,13488.55,Nip-On Transport Service,WA9 4AF
Department for Transport,Department for Transport,15/01/2014,Subsidies Private Se,Local,NIPPY BUS LTD,2000021965,7858.92,NIPPY BUS LTD,TA12 6HB
Department for Transport,Department for Transport,15/01/2014,Subsidies Private Se,Local,NN Cresswell Coach Hire Ltd,2000021962,1569.16,N N Cresswell Coach Hire Ltd,WR11 4RA
Department for Transport,Department for Transport,15/01/2014,Subsidies Private Se,Local,NSL SERVICES LTD,2000021963,15275.28,NSL SERVICES LTD,W5 1YY
Department for Transport,Department for Transport,15/01/2014,Subsidies Private Se,Local,PAUL S WINSON (COACHES) LTD,2000021967,12581.76,PAUL S WINSON COACHES LTD,LE11 5XR
Department for Transport,Department for Transport,15/01/2014,Subsidies Private Se,Local,PEOPLESBUS LTD,2000022021,2087.64,Peoplesbus,L30 6UQ
Department for Transport,Department for Transport,15/01/2014,Subsidies Private Se,Local,PETER REYNOLDS COACHES,2000022032,659.88,Peter Reynolds Coaches,HA6 3EF
Department for Transport,Department for Transport,15/01/2014,Subsidies Private Se,Local,PILKINGTONS (ACCRINGTON) LTD,2000021968,19279.63,PILKINGTONS (ACCRINGTON) LTD,BB5 1DQ
Department for Transport,Department for Transport,15/01/2014,Subsidies Private Se,Local,PRESTON BUS LIMITED,2000021969,111641.47,Preston Bus Limited,PR1 6NY
Department for Transport,Department for Transport,15/01/2014,Subsidies Private Se,Local,PRIMROSE MOTOR SERVICES LTD,2000021970,3881.06,LUGG VALLEY PRIMROSE TRAVEL LTD,HR6 8PX
Department for Transport,Department for Transport,15/01/2014,Subsidies Private Se,Local,PROCTERS COACHES,2000021971,9893.39,PROCTERS OF BEDALE,DL7 9UJ
Department for Transport,Department for Transport,15/01/2014,Subsidies Private Se,Local,PULHAM & SON (COACHES) LTD,2000021972,14083.23,PULHAM & SONS LTD,GL542EN
Department for Transport,Department for Transport,15/01/2014,Subsidies Private Se,Local,R & B TRAVEL,2000022018,10473.77,R & B TRAVEL,SY8 3NL
Department for Transport,Department for Transport,15/01/2014,Subsidies Private Se,Local,R S TYRER LIMITED,2000022014,2164.32,R S TYRER LIMITED,PR6 9LQ
Department for Transport,Department for Transport,15/01/2014,Subsidies Private Se,Local,RED BUS,2000022027,1386.03,Red Bus,PE22 8RG
Department for Transport,Department for Transport,15/01/2014,Subsidies Private Se,Local,RED KITE COMMERCIAL SERVICES,2000021973,3373.79,RED KITE COMMERICAL SERVICES,LU7 9PU
Department for Transport,Department for Transport,15/01/2014,Subsidies Private Se,Local,REGS COACHES LTD,2000021974,2499.57,Reg's Coaches Ltd,AL6 9TY
Department for Transport,Department for Transport,15/01/2014,Subsidies Private Se,Local,ROJAY SERVICES T/A WIGAN COACHWAYS,2000022033,5595.5,Rojay Services T/A Wigan Coachways,WN6 7TP
Department for Transport,Department for Transport,15/01/2014,Subsidies Private Se,Local,ROLLING SOLUTIONS LTD,2000022019,24402.29,ROLLING SOLUTIONS T/A STRAWBERRY,ST14 7JD
Department for Transport,Department for Transport,15/01/2014,Subsidies Private Se,Local,ROSSENDALE TRANSPORT LIMITED,2000021978,95331.61,Rossendale Transport Ltd,BB4 4RS
Department for Transport,Department for Transport,15/01/2014,Subsidies Private Se,Local,Routemaster Buses Ltd,2000022030,2478.9,Routemaster Buses Ltd,CW5 6AL
Department for Transport,Department for Transport,15/01/2014,Subsidies Private Se,Local,SAFEGUARD COACHES LTD,2000021979,9936.7,Safeguard Coaches Ltd,GU2 7TH
Department for Transport,Department for Transport,15/01/2014,Subsidies Private Se,Local,SARGEANT BROS,2000021980,689.93,SARGEANT BROS,HR5 3AL
Department for Transport,Department for Transport,15/01/2014,Subsidies Private Se,Local,SGI Community Transport CIC,2000022042,27516.25,SGI Community Transport C.I.C,WF12 9DB
Department for Transport,Department for Transport,15/01/2014,Subsidies Private Se,Local,SHORELINE SUNCRUISERS,2000021982,2972.75,SHORELINE SUNCRUISERS,YO12 5BP
Department for Transport,Department for Transport,15/01/2014,Subsidies Private Se,Local,SLEAFORDIAN COACHES,2000021983,9903.71,Sleafordian Coaches,NG34 7EH
Department for Transport,Department for Transport,15/01/2014,Subsidies Private Se,Local,SMITH MOTORS LEDBURY LTD,2000021984,515.54,Smiths Motors (Ledbury) Ltd,HR8 1BA
Department for Transport,Department for Transport,15/01/2014,Subsidies Private Se,Local,SOUTHDOWN PSV LTD,2000021985,26013.57,Southdown PSV Ltd,RH10 3EN
Department for Transport,Department for Transport,15/01/2014,Subsidies Private Se,Local,STAGECOACH OXFORD,2000021986,396192.19,STAGECOACH IN OXFORD,SK3 0DU
Department for Transport,Department for Transport,15/01/2014,Subsidies Private Se,Local,STREAMLINE,2000022037,5740.8,Streamline,HD1 1JP
Department for Transport,Department for Transport,15/01/2014,Subsidies Private Se,Local,SULLIVAN BUSES,2000021987,21829.41,SULLIVAN BUS & COACH T/A SULLIVAN BUSES,EN6 3NE
Department for Transport,Department for Transport,15/01/2014,Subsidies Private Se,Local,SUMMERCOURT TRAVEL LTD,2000021988,3625.08,SUMMERCOURT TRAVEL,TR8 5DR
Department for Transport,Department for Transport,15/01/2014,Subsidies Private Se,Local,SW COACHES LTD,2000021989,27292.27,SOUTH WEST COACHES LTD,BA9 9EB
Department for Transport,Department for Transport,15/01/2014,Subsidies Private Se,Local,SWANBROOK TRANSPORT LTD,2000021990,7093.78,Swanbrook Transport Ltd,GL51 0TE
Department for Transport,Department for Transport,15/01/2014,Subsidies Private Se,Local,SWEYNE COACHES & CO,2000021991,606.22,Sweyne Coaches,DN14 8EL
Department for Transport,Department for Transport,15/01/2014,Subsidies Private Se,Local,TALLYHO COACHES,2000021992,5776.24,TALLY HO! COACHES LTD,TQ7 1ES
Department for Transport,Department for Transport,15/01/2014,Subsidies Private Se,Local,TARGET TRAVEL,2000021994,5041.77,TARGET TRAVEL,PL7 5BG
Department for Transport,Department for Transport,15/01/2014,Subsidies Private Se,Local,TEES VALLEY STAGE CARRIAGE,2000022024,8895.14,Tees Valley Stage Carriage,TS6 7AR
Department for Transport,Department for Transport,15/01/2014,Subsidies Private Se,Local,Thames Travel (Wallingford),2000021996,83593.92,THAMES TRAVEL (WALLINGFORD) LTD,OX4 6GA
Department for Transport,Department for Transport,15/01/2014,Subsidies Private Se,Local,THAMESDOWN TRANSPORT LTD,2000021997,114360.6,THAMESDOWN TRANSPORT LTD,SN2 2DJ
Department for Transport,Department for Transport,15/01/2014,Subsidies Private Se,Local,THE GREEN BUS COMPANY LIMITED,2000022020,4876.83,THE GREEN BUS COMPANY LTD,B18 5ST
Department for Transport,Department for Transport,15/01/2014,Subsidies Private Se,Local,THE KINGS FERRY TRAVEL GROUP,2000021950,63838.2,THE KING'S FERRY LTD,ME8 6HW
Department for Transport,Department for Transport,15/01/2014,Subsidies Private Se,Local,TM TRAVEL,2000021998,50578.38,T M Travel Ltd,S20 3GZ
Department for Transport,Department for Transport,15/01/2014,Subsidies Private Se,Local,TRAVEL EXPRESS LTD,2000021999,36192.12,Travel Express,WV4 5AT
Department for Transport,Department for Transport,15/01/2014,Subsidies Private Se,Local,UNO BUSES LTD,2000022016,25897.01,Uno Buses Ltd,AL10 9BS
Department for Transport,Department for Transport,15/01/2014,Subsidies Private Se,Local,UTOPIA COACHES LTD,2000022001,6199.92,UTOPIA COACHES LTD,LS25 6EZ
Department for Transport,Department for Transport,15/01/2014,Subsidies Private Se,Local,WALSALL COMMUNITY TRANSPORT,2000022028,599.52,Walsall Community Transport,WS3 3DH
Department for Transport,Department for Transport,15/01/2014,Subsidies Private Se,Local,WEBBERBUS LIMITED,2000022005,54300.74,WEBBERBUS LTD,TA6 5LT
Department for Transport,Department for Transport,15/01/2014,Subsidies Private Se,Local,WESTERN GREYHOUND LTD,2000022006,157706.44,WESTERN GREYHOUND LTD,TR8 5DR
Department for Transport,Department for Transport,15/01/2014,Subsidies Private Se,Local,WESTWARD TRAVEL,2000022007,4484.9,Westward Travel,GL12 8RT
Department for Transport,Department for Transport,15/01/2014,Subsidies Private Se,Local,WHITE BUS SERVICES,2000022009,4600.34,White Bus Services,SL4 4TF
Department for Transport,Department for Transport,15/01/2014,Subsidies Private Se,Local,YARRANTON BROTHERS LTD,2000022011,5535.8,YARRANTON BROS LTD,WR15 8JL
Department for Transport,Department for Transport,15/01/2014,Subsidies Private Se,Local,YEOMANS CANYON TRAVEL,2000022012,7862.63,YEOMANS CANYON TRAVEL,HR4 9PU
Department for Transport,Department for Transport,15/01/2014,Subsidies Private Se,Local,YORKSHIRE TERRIER LTD,2000022013,306626.43,Stagecoach Yorkshire,SK3 0DU
Department for Transport,Department for Transport,15/01/2014,Subsidies Private Se,Local,Your Bus Dunn Motor Traction,2000022022,101729.94,YourBus (Dunn Motor Traction Ltd),DE75 7RJ
Department for Transport,Department for Transport,15/01/2014,Support Services,Roads,HIGHWAYS AGENCY,2000022047,3827.24,#,B1 1RN
Department for Transport,Department for Transport,15/01/2014,Support Services,Group Finance,DD ACCRAILWAY PENS TRUSTEE,2000022053,2984.06,#,DL3 6XR
Department for Transport,Department for Transport,15/01/2014,Support Services,Group Finance,DD ACCRAILWAY PENS TRUSTEE,2000022053,663.33,#,DL3 6XR
Department for Transport,Department for Transport,16/01/2014,Agency Staff Costs,Rail Commercial Contracts,EXPERIS LTD,100027209,6878.04,W/E 27/10 & 3/11/13 - CH,EC1R 3DR
Department for Transport,Department for Transport,16/01/2014,Agency Staff Costs,Rail Commercial Contracts,EXPERIS LTD,100027209,-6878.04,Credit for Invoice 5105973078,EC1R 3DR
Department for Transport,Department for Transport,16/01/2014,Agency Staff Costs,Group Finance,MICHAEL PAGE INTERNATIONAL,2000022124,2304,#,SL1 3SA
Department for Transport,Department for Transport,16/01/2014,Computer equipment,Business Transformation,BT PLC,2000022111,3813.52,#,NE82 6AA
Department for Transport,Department for Transport,16/01/2014,Courier Charges,Business Transformation,DX NETWORK SERVICES LTD,2000022106,1336.6,#,NN3 6YG
Department for Transport,Department for Transport,16/01/2014,Grt Aid to NDPBs,DASH,HS2,2000022125,9000000,HS2 January 2014 2nd Tranche,SW1E 5DU
Department for Transport,Department for Transport,16/01/2014,IT Equip Cap Cost,Commercial & Technical Services,INSIGHT DIRECT (UK) LTD,2000022107,5098.8,#,UB8 1PH
Department for Transport,Department for Transport,16/01/2014,Legal Consultancy,Refran Prog Off,Eversheds LLP,2000022126,314112.54,#,EC2V 7WS
Department for Transport,Department for Transport,16/01/2014,Media & Press,Aviation,UBIQUS UK,2000022119,452.5,#,SE1 0HL
Department for Transport,Department for Transport,16/01/2014,Printing,DASH,WILLIAMS LEA LIMITED,2000022127,1560,#,NR3 1PD
Department for Transport,Department for Transport,16/01/2014,Printing,DASH,WILLIAMS LEA LIMITED,2000022127,429,#,NR3 1PD
Department for Transport,Department for Transport,16/01/2014,Publicity,Transport Security Strategy,INTOUCHUK.COM LTD,2000022115,3157.74,#,SW19 2RR
Department for Transport,Department for Transport,16/01/2014,Research,Roads,WSP UK LTD T/A,100027210,22832.96,#,RG21 4HJ
Department for Transport,Department for Transport,16/01/2014,Research,Roads,WSP UK LTD T/A,100027210,-22832.96,#,RG21 4HJ
Department for Transport,Department for Transport,16/01/2014,Research,Group Finance,CIPFA,2000022108,1260,#,WC2N 6RL
Department for Transport,Department for Transport,16/01/2014,Subsidies Private Se,Maritime,MOUNTAIN RESCUE ENGLAND,2000022128,128000,4015952 MOUNTAIN RESCUE ENGLAND,NP20 4NF
Department for Transport,Department for Transport,16/01/2014,Support Services,DASH,VEHICLE CERTIFICATION AGENCY,2000022120,11602.5,#,BS5 6XX
Department for Transport,Department for Transport,16/01/2014,Training,General Counsel's Office,TREASURY SOLICITOR,2000022130,4344,#,WC2B 4TS
Department for Transport,Department for Transport,16/01/2014,Transport  Consult,Rail and Road Projects,JACOBS UK LTD,2000022116,10144.86,#,G2 7HX
Department for Transport,Department for Transport,16/01/2014,Transport  Consult,Rail Commercial Contracts,PARSONS BRINCKERHOFF LTD,2000022117,36573.92,#,NE4 7YQ
Department for Transport,Department for Transport,17/01/2014,Agency Staff Costs,Business Transformation,NETWORKERS INTERNATIONAL (UK) PLC,2000022208,608.11,#,BR1 1HP
Department for Transport,Department for Transport,17/01/2014,Agency Staff Costs,Group Finance,MICHAEL PAGE INTERNATIONAL,2000022206,4080,#,SL1 3SA
Department for Transport,Department for Transport,17/01/2014,Agency Staff Costs,Group HR,HAYS PERSONNEL SERVICE LTD,2000022179,3384,#,KT3 4JQ
Department for Transport,Department for Transport,17/01/2014,Agency Staff Costs,Group HR,HAYS PERSONNEL SERVICE LTD,2000022179,2030.4,#,KT3 4JQ
Department for Transport,Department for Transport,17/01/2014,Agency Staff Costs,Group HR,HAYS PERSONNEL SERVICE LTD,2000022179,2030.4,#,KT3 4JQ
Department for Transport,Department for Transport,17/01/2014,Agency Staff Costs,Rail and Road Projects,BADENOCH & CLARK,2000022181,1853.28,#,EC4V 4BG
Department for Transport,Department for Transport,17/01/2014,Agency Staff Costs,Rail Commercial Contracts,NETWORKERS INTERNATIONAL (UK) PLC,2000022208,2509.52,#,BR1 1HP
Department for Transport,Department for Transport,17/01/2014,Agency Staff Costs,Rail,CAPITA RESOURCING LTD,2000022207,4026,#,DL1 9HN
Department for Transport,Department for Transport,17/01/2014,Agency Staff Costs,Highspeed 2,BADENOCH & CLARK,2000022181,1053.4,#,EC4V 4BG
Department for Transport,Department for Transport,17/01/2014,Agency Staff Costs,Refran Prog Off,CAPITA RESOURCING LTD,2000022207,11048.89,#,DL1 9HN
Department for Transport,Department for Transport,17/01/2014,Agency Staff Costs,Refran Prog Off,LA INTERNATIONAL COMPUTER,2000022191,6720,#,ST1 5UB
Department for Transport,Department for Transport,17/01/2014,Agency Staff Costs,Refran Prog Off,MICHAEL PAGE INTERNATIONAL,2000022206,666.6,#,SL1 3SA
Department for Transport,Department for Transport,17/01/2014,Agency Staff Costs,Refran Prog Off,CAPITA RESOURCING LTD,2000022207,28830,#,DL1 9HN
Department for Transport,Department for Transport,17/01/2014,Agency Staff Costs,Refran Prog Off,CAPITA RESOURCING LTD,2000022207,18037.5,#,DL1 9HN
Department for Transport,Department for Transport,17/01/2014,Agency Staff Costs,Refran Prog Off,CAPITA RESOURCING LTD,2000022207,13721.22,#,DL1 9HN
Department for Transport,Department for Transport,17/01/2014,Agency Staff Costs,Refran Prog Off,CAPITA RESOURCING LTD,2000022207,4145.04,#,DL1 9HN
Department for Transport,Department for Transport,17/01/2014,Agency Staff Costs,Rail Commercial Contracts,MICHAEL PAGE INTERNATIONAL,2000022206,2220,#,SL1 3SA
Department for Transport,Department for Transport,17/01/2014,Agency Staff Costs,Refran Prog Off,NETWORKERS INTERNATIONAL (UK) PLC,2000022208,1060.7,#,BR1 1HP
Department for Transport,Department for Transport,17/01/2014,Audit Fees (cash),Corporate Governance,PRICEWATERHOUSECOOPERS LLP,2000022200,39600,#,E14 9SQ
Department for Transport,Department for Transport,17/01/2014,CurrGrt Las in AEF/A,Local,Basingstoke & Deane Borough Council,2000022212,6522,Basingstoke and Deane Borough Council,RG21 4AH
Department for Transport,Department for Transport,17/01/2014,CurrGrt Las in AEF/A,Local,LB ISLINGTON,2000022193,853,London Borough of Islington,N1 1XR
Department for Transport,Department for Transport,17/01/2014,Further Educ Cost,Group Finance,FTC KAPLAN,2000022190,610,#,SE1 1HR
Department for Transport,Department for Transport,17/01/2014,IT Ser Running Costs,Greener Transport & International,NETFUNDI LTD,2000022196,810,#,LA1 1SQ
Department for Transport,Department for Transport,17/01/2014,Legal Consultancy,Rail Commercial Contracts,EVERSHEDS LLP,2000022189,45093.05,#,LS11 5DR
Department for Transport,Department for Transport,17/01/2014,Legal Consultancy,General Counsel's Office,LANDMARK CHAMBERS,2000022192,8714.34,#,EC4A 2HG
Department for Transport,Department for Transport,17/01/2014,Legal Consultancy,General Counsel's Office,xxxxxx,2000022218,1560,#,xxxxxx
Department for Transport,Department for Transport,17/01/2014,Other Professional F,Local,VEHICLE & OPERATOR SERVICES AGENCY,2000022177,204597.98,#,SA1 8AN
Department for Transport,Department for Transport,17/01/2014,Printing,DASH,WILLIAMS LEA LIMITED,100027272,15290,#,NR3 1PD
Department for Transport,Department for Transport,17/01/2014,Printing,DASH,WILLIAMS LEA LIMITED,100027272,-15290,#,NR3 1PD
Department for Transport,Department for Transport,17/01/2014,Recruitment,General Counsel's Office,TMP UK LTD,2000022178,6000,#,W1T 7RQ
Department for Transport,Department for Transport,17/01/2014,Small Software,Business Transformation,OPEN OBJECTS SOFTWARE LTD,2000022198,2016,#,CB4 0WS
Department for Transport,Department for Transport,17/01/2014,Small Software,Business Transformation,INSIGHT DIRECT (UK) LTD,2000022180,20189.72,#,UB8 1PH
Department for Transport,Department for Transport,17/01/2014,Subscriptions to Pro,Group HR,BUSINESS DISABILITY FORUM,2000022187,10740.02,#,SE1 2NY
Department for Transport,Department for Transport,17/01/2014,Support Services,Aviation,CIVIL AVIATION AUTHORITY,2000022182,55998.75,#,RH10 0YR
Department for Transport,Department for Transport,17/01/2014,Support Services,Rail and Road Projects,NETWORK RAIL,2000022210,94806.28,#,M60 7RT
Department for Transport,Department for Transport,17/01/2014,Support Services,Aviation,CIVIL AVIATION AUTHORITY,2000022182,80000,#,RH10 0YR
Department for Transport,Department for Transport,17/01/2014,Support Services,Aviation,CIVIL AVIATION AUTHORITY,2000022182,40000,#,RH10 0YR
Department for Transport,Department for Transport,17/01/2014,Support Services,Aviation,CIVIL AVIATION AUTHORITY,2000022182,78750,#,RH10 0YR
Department for Transport,Department for Transport,17/01/2014,Support Services,Aviation,CIVIL AVIATION AUTHORITY,2000022182,10000,#,RH10 0YR
Department for Transport,Department for Transport,17/01/2014,Telephone charges,Air Accident Investigation Branch,ALTERNATIVE NETWORKS PLC,2000022211,999.49,#,SW11 3UL
Department for Transport,Department for Transport,17/01/2014,Training,Air Accident Investigation Branch,HELI AIR LIMITED,2000022215,587,#,CV35 9EU
Department for Transport,Department for Transport,17/01/2014,Training,Air Accident Investigation Branch,HELI AIR LIMITED,2000022215,631,#,CV35 9EU
Department for Transport,Department for Transport,17/01/2014,Transport  Consult,Rail and Road Projects,OVE ARUP & PARTNERS,2000022199,1366.56,#,NE1 3PL
Department for Transport,Department for Transport,17/01/2014,Transport  Consult,Greener Transport & International,ECOFYS UK LTD,2000022209,34728,#,E1 8DE
Department for Transport,Department for Transport,20/01/2014,Agency Staff Costs,Business Transformation,CAPITA RESOURCING LTD,2000022296,3600,#,DL1 9HN
Department for Transport,Department for Transport,20/01/2014,Agency Staff Costs,Centrally held prog,LA INTERNATIONAL COMPUTER,2000022290,2099.16,#,ST1 5UB
Department for Transport,Department for Transport,20/01/2014,Agency Staff Costs,Group Finance,MICHAEL PAGE INTERNATIONAL,2000022295,2592,#,SL1 3SA
Department for Transport,Department for Transport,20/01/2014,Agency Staff Costs,Refran Prog Off,MICHAEL PAGE INTERNATIONAL,2000022295,4666.2,#,SL1 3SA
Department for Transport,Department for Transport,20/01/2014,Agency Staff Costs,Aviation,NETWORKERS INTERNATIONAL (UK) PLC,2000022298,838.2,#,BR1 1HP
Department for Transport,Department for Transport,20/01/2014,Agency Staff Costs,Rail Commercial Contracts,NETWORKERS INTERNATIONAL (UK) PLC,2000022298,6413.88,#,BR1 1HP
Department for Transport,Department for Transport,20/01/2014,Car Hire and Leasing,Motoring Services,Saltco Ltd,2000022306,2663.5,#,SE15 4RF
Department for Transport,Department for Transport,20/01/2014,Childcare Voucher Co,Group HR,COMPUTERSHARE VOUCHER SERVICES,2000022283,29159,#,WS13 8SX
Department for Transport,Department for Transport,20/01/2014,CurrGrt Las in AEF/A,Rail,TRANSPORT FOR LONDON,2000022297,2208700.87,TfL LOROL Grant January 2013 Claim,SW1H 0TL
Department for Transport,Department for Transport,20/01/2014,Further Educ Cost,Group Finance,FTC KAPLAN,2000022288,570,#,SE1 1HR
Department for Transport,Department for Transport,20/01/2014,Further Educ Cost,Group Finance,FTC KAPLAN,2000022288,720,#,SE1 1HR
Department for Transport,Department for Transport,20/01/2014,Further Educ Cost,Group Finance,FTC KAPLAN,2000022288,2160,#,SE1 1HR
Department for Transport,Department for Transport,20/01/2014,Legal Consultancy,Refran Prog Off,xxxxxx,2000022285,1849.2,#,xxxxxx
Department for Transport,Department for Transport,20/01/2014,Machinery Rental,Permanent Secretary,XEROX (UK) LTD,2000022292,850,#,BN13 1QG
Department for Transport,Department for Transport,20/01/2014,Machinery Rental,Permanent Secretary,XEROX (UK) LTD,2000022292,458.58,#,BN13 1QG
Department for Transport,Department for Transport,20/01/2014,Machinery Rental,Analysis/Science,CANON (UK) LTD,2000022287,533.08,#,RH2 8BF
Department for Transport,Department for Transport,20/01/2014,Medical Advisory Ser,Group HR,HEALTH MANAGEMENT LTD,2000022289,1965,#,BN8 5NN
Department for Transport,Department for Transport,20/01/2014,Mobile Phone charges,Centrally held prog,VODAFONE LTD,2000022293,9872.56,Vodafone  Acc No. 604232362 14 Jan 2014,RG14 5FF
Department for Transport,Department for Transport,20/01/2014,Mobile Phone charges,Group Finance,VODAFONE LTD,2000022293,7145.54,VODAFONE A/C 604232420,RG14 5FF
Department for Transport,Department for Transport,20/01/2014,Occup Health Scheme,Group HR,HEALTH MANAGEMENT LTD,2000022289,711,#,BN8 5NN
Department for Transport,Department for Transport,20/01/2014,Printing,Business Transformation,WILLIAMS LEA LIMITED,2000022301,4103,#,NR3 1PD
Department for Transport,Department for Transport,20/01/2014,Printing,DASH,WILLIAMS LEA LIMITED,2000022301,15290,#,NR3 1PD
Department for Transport,Department for Transport,20/01/2014,Rates,Business Transformation,DTZ,2000022284,3909.13,Vacant Rates Savings @ various DFT Sites,EH3 9QG
Department for Transport,Department for Transport,20/01/2014,Support Services,Greener Transport & International,FCO FOREIGN & COMMONWEALTH OFFICE,2000022312,95203.36,#,MK10 1PX
Department for Transport,Department for Transport,20/01/2014,Support Services,Aviation,CAA INTERNATIONAL LTD,2000022286,23750,#,RH6 0YR
Department for Transport,Department for Transport,20/01/2014,Support Services,General Counsel's Office,TREASURY SOLICITOR,2000022310,160,#,WC2B 4TS
Department for Transport,Department for Transport,20/01/2014,Support Services,General Counsel's Office,Thompsons Solicitors,2000022309,42107,BRB 058592,HA1 3AP
Department for Transport,Department for Transport,20/01/2014,Support Services,General Counsel's Office,Thompsons Solicitors,2000022309,81038,BRB 058435,HA1 3AP
Department for Transport,Department for Transport,20/01/2014,Training,Group Finance,FTC KAPLAN,2000022288,1417.65,#,SE1 1HR
Department for Transport,Department for Transport,20/01/2014,Training,Group Finance,FTC KAPLAN,2000022288,934,#,SE1 1HR
Department for Transport,Department for Transport,20/01/2014,Training,Group Finance,FTC KAPLAN,2000022288,2394,#,SE1 1HR
Department for Transport,Department for Transport,20/01/2014,Transport  Consult,Rail and Road Projects,PARSONS BRINCKERHOFF LTD,2000022291,8538,#,NE4 7YQ
Department for Transport,Department for Transport,20/01/2014,Transport  Consult,Rail Commercial Contracts,Directly Operated Railways Ltd,2000022299,208976.96,#,EC4A 1BL
Department for Transport,Department for Transport,20/01/2014,Transport  Consult,Aviation,JACOBS UK LTD,100027357,147514.12,#,G2 7HX
Department for Transport,Department for Transport,20/01/2014,Transport  Consult,Aviation,JACOBS UK LTD,100027357,116587.01,#,G2 7HX
Department for Transport,Department for Transport,20/01/2014,Transport  Consult,Aviation,JACOBS UK LTD,100027357,-116587.01,#,G2 7HX
Department for Transport,Department for Transport,20/01/2014,Transport  Consult,Aviation,JACOBS UK LTD,100027357,-147514.12,#,G2 7HX
Department for Transport,Department for Transport,20/01/2014,Travel Expenses UK,Motoring Services,"Transport For London,",2000022307,8315,#,SE10 1AP
Department for Transport,Department for Transport,20/01/2014,Treasury Solicitors,General Counsel's Office,TREASURY SOLICITOR,2000022310,22564.14,#,WC2B 4TS
Department for Transport,Department for Transport,21/01/2014,Agency Staff Costs,Business Transformation,NETWORKERS INTERNATIONAL (UK) PLC,2000022408,1013.52,#,BR1 1HP
Department for Transport,Department for Transport,21/01/2014,Agency Staff Costs,Group Finance,MICHAEL PAGE INTERNATIONAL,2000022404,3210,#,SL1 3SA
Department for Transport,Department for Transport,21/01/2014,Agency Staff Costs,Group Finance,NETWORKERS INTERNATIONAL (UK) PLC,2000022408,3393.6,#,BR1 1HP
Department for Transport,Department for Transport,21/01/2014,Agency Staff Costs,Rail Commercial Contracts,NETWORKERS INTERNATIONAL (UK) PLC,2000022408,4182.54,#,BR1 1HP
Department for Transport,Department for Transport,21/01/2014,Agency Staff Costs,Rail Commercial Contracts,EXPERIS LTD,2000022389,964.26,#,EC1R 3DR
Department for Transport,Department for Transport,21/01/2014,Agency Staff Costs,Highspeed 2,BADENOCH & CLARK,2000022386,1404.53,#,EC4V 4BG
Department for Transport,Department for Transport,21/01/2014,Agency Staff Costs,Highspeed 2,BADENOCH & CLARK,2000022386,-1404.53,#,EC4V 4BG
Department for Transport,Department for Transport,21/01/2014,Agency Staff Costs,Highspeed 2,BADENOCH & CLARK,2000022386,1755.66,#,EC4V 4BG
Department for Transport,Department for Transport,21/01/2014,Agency Staff Costs,Rail Commercial Contracts,NETWORKERS INTERNATIONAL (UK) PLC,2000022408,1924.16,#,BR1 1HP
Department for Transport,Department for Transport,21/01/2014,Agents Fees,Group Finance,RAILWAYS PENSION MANAGEMENT LT,2000022407,860839.95,#,DL3 6EH
Department for Transport,Department for Transport,21/01/2014,Agents Fees,Group Finance,RAILWAYS PENSION MANAGEMENT LT,2000022407,608542.36,#,DL3 6EH
Department for Transport,Department for Transport,21/01/2014,Agents Fees,Group Finance,RAILWAYS PENSION MANAGEMENT LT,2000022407,727480.33,#,DL3 6EH
Department for Transport,Department for Transport,21/01/2014,Cap Grt Pri Sec-Cos.,Greener Transport & International,BMW UK Ltd,2000022445,190000,PiCG BMW Dec 2013 #190k,RG12 8TA
Department for Transport,Department for Transport,21/01/2014,Cap Grt Pri Sec-Cos.,Greener Transport & International,CHEVROLET UK,2000022419,10000,PiCG Chevrolet Dec 2013 #10k,LU1 3YT
Department for Transport,Department for Transport,21/01/2014,Cap Grt Pri Sec-Cos.,Greener Transport & International,MERCEDES BENZ UK LTD,2000022414,58744.61,PiCG Mercedes Dec 2013 #58.7k,MK15 8BA
Department for Transport,Department for Transport,21/01/2014,Cap Grt Pri Sec-Cos.,Greener Transport & International,NISSAN MOTOR GB LTD,2000022413,549022.67,PiCG Nissan Dec 2013 #549k,WD3 9YS
Department for Transport,Department for Transport,21/01/2014,Cap Grt Pri Sec-Cos.,Greener Transport & International,RENAULT,2000022417,145777.1,PiCG Renault Dec 2013 #145.7k,WD3 9YS
Department for Transport,Department for Transport,21/01/2014,Cap Grt Pri Sec-Cos.,Greener Transport & International,THE COLT CAR COMPANY LTD,2000022412,10000,PiCG Mitsubishi Dec 2013 #10k,GL7 1LF
Department for Transport,Department for Transport,21/01/2014,Cap Grt Pri Sec-Cos.,Greener Transport & International,VAUXHALL MOTORS,2000022418,70000,PiCG Vauxhall Dec 2013 #70k,LU1 3YT
Department for Transport,Department for Transport,21/01/2014,Cap Grt Pri Sec-Cos.,Greener Transport & International,Volvo Car UK Limited,2000022439,30000,PiCG Volvo Dec 2013 #30k,SL6 4FJ
Department for Transport,Department for Transport,21/01/2014,Cars Fuel,Motoring Services,ALLSTAR BUSINESS SOLUTIONS LIMITED,2000022384,7953.12,#,SN5 6PS
Department for Transport,Department for Transport,21/01/2014,Cars Maintenance,Motoring Services,Beadles (Sidcup) Ltd,2000022425,492.47,#,DA14 6PB
Department for Transport,Department for Transport,21/01/2014,Cars Maintenance,Motoring Services,Bristol Street First Investments,2000022426,472.42,#,BR2 9HS
Department for Transport,Department for Transport,21/01/2014,Cars Maintenance,Motoring Services,Goodyear Dunlop Tyres UK Ltd,2000022427,529.72,#,B24 9HY
Department for Transport,Department for Transport,21/01/2014,Cars Maintenance,Motoring Services,Silgo Lubricants Ltd,2000022429,1040.82,#,RM15 4YG
Department for Transport,Department for Transport,21/01/2014,Computer equipment,Air Accident Investigation Branch,INSIGHT DIRECT (UK) LTD,2000022378,1119.65,INSIGHT BLANKET CART SPEND TO 31/1/12,UB8 1PH
Department for Transport,Department for Transport,21/01/2014,Conferences / Semina,Maritime,Dover Marina Hotel,2000022444,710.12,#,CT17 9BP
Department for Transport,Department for Transport,21/01/2014,CurrGrt Las in AEF/A,London and Olympics,GREATER LONDON AUTHORITY,2000022399,76479000,#,SE1 2UT
Department for Transport,Department for Transport,21/01/2014,CurrGrt Las in AEF/A,Rail and Road Projects,SOUTH YORKSHIRE PTE,2000022409,690926.18,South Yorkshire PTE Shef-Rothpilot18,S1 2BQ
Department for Transport,Department for Transport,21/01/2014,CurrGrtOth to NDPBs,Strategic Roads,RAIL PASSENGER COUNCIL,2000022438,40380,Payment for Smart Ticketing Research,M1 1LQ
Department for Transport,Department for Transport,21/01/2014,CurrGrtPriSec-P&NPIS,Transport Direct and Travel information,British Telecommunications PLC,2000022447,97500,BT Grant Payment- A14 Project,EC1A 7AJ
Department for Transport,Department for Transport,21/01/2014,CurrGrtPriSec-P&NPIS,Greener Transport & International,ENERGY SAVING TRUST,2000022403,19800,PIFI December 2013 #19.8k,SW1H 9BP
Department for Transport,Department for Transport,21/01/2014,Data Supply - TD,Transport Direct and Travel information,OAG WORLDWIDE LTD,2000022396,2210,#,LU1 3LU
Department for Transport,Department for Transport,21/01/2014,Financial Consultanc,Refran Prog Off,GRANT THORNTON UK LLP,2000022405,99468,#,NN4 7YE
Department for Transport,Department for Transport,21/01/2014,IT Ser Running Costs,Greener Transport & International,NETFUNDI LTD,2000022395,11205,#,LA1 1SQ
Department for Transport,Department for Transport,21/01/2014,IT Ser Running Costs,Transport Security - Security Compliance Division ,CACI INFORMATION SOLUTIONS LTD,2000022387,2880,#,W14 8TS
Department for Transport,Department for Transport,21/01/2014,Machinery Rental,Group Finance,RICOH UK LTD,2000022390,1097.69,#,NN4 7YB
Department for Transport,Department for Transport,21/01/2014,Machinery Rental,Group Finance,RICOH UK LTD,2000022390,1157.18,#,NN4 7YB
Department for Transport,Department for Transport,21/01/2014,Mobile Phone charges,Group Finance,VODAFONE LTD,2000022402,2778.83,Vodafone 13.2.14 acc 604232442,RG14 5FF
Department for Transport,Department for Transport,21/01/2014,Mobile Phone charges,Group Finance,VODAFONE LTD,2000022402,6575.25,Vodafone - 604232464 x 387 users - 14 Jan 14,RG14 5FF
Department for Transport,Department for Transport,21/01/2014,Other Professional F,Group HR,COMPUTERSHARE VOUCHER SERVICES,2000022377,696.84,#,WS13 8SX
Department for Transport,Department for Transport,21/01/2014,Other Sprs - Ptoc,Rail Commercial Contracts,FIRST RAIL HOLDINGS LIMITED,2000022450,167317,FG Mobilisation Costs No2,W1 1FG
Department for Transport,Department for Transport,21/01/2014,Other Sprs - Ptoc,Rail Commercial Contracts,FIRST RAIL HOLDINGS LIMITED,2000022450,13637,FRH ICWC Bid Costs,W1 1FG
Department for Transport,Department for Transport,21/01/2014,Recruitment,Group HR,Rockpools People & Performance Ltd,2000022397,6000,#,CV1 2TT
Department for Transport,Department for Transport,21/01/2014,Services prov by OGD,Transport Security Strategy,DEFENCE BUSINESS SERVICES,2000022416,2874.36,#,YO10 4AS
Department for Transport,Department for Transport,21/01/2014,Services prov by OGD,Transport Security Strategy,FCO SERVICES,2000022435,11533.2,#,MK19 7BH
Department for Transport,Department for Transport,21/01/2014,Small Software,Roads,Kindred Agency,2000022442,3240,#,WC2E 9RA
Department for Transport,Department for Transport,21/01/2014,Small Software,Business Transformation,PROCSERVE SHARED SERVICES LTD,2000022415,199368,#,SW1W 9SR
Department for Transport,Department for Transport,21/01/2014,Small Software,Transport Security - Security Compliance Division ,TRIAD GROUP PLC,2000022400,4680,#,GU7 1XE
Department for Transport,Department for Transport,21/01/2014,Subscriptions to Pro,Business Transformation,Public Relations Consultants,2000022443,3600,#,SW1P 1JH
Department for Transport,Department for Transport,21/01/2014,Support Services,Air Accident Investigation Branch,TRANSPORT RESEARCH LABORATORY,2000022398,66691.6,#,RG40 3GA
Department for Transport,Department for Transport,21/01/2014,Support Services,Aviation,CIVIL AVIATION AUTHORITY,2000022388,7310.25,#,RH10 0YR
Department for Transport,Department for Transport,21/01/2014,Support Services,Marine Accident Investigation Branch,Lorne Campbell Design,2000022448,5484.54,#,BH18 8BP
Department for Transport,Department for Transport,21/01/2014,Support Services,General Counsel's Office,Department of Work & Pensions,2000022379,26599.15,DWP Benefit Recovery,NE38 7SF
Department for Transport,Department for Transport,21/01/2014,Support Services,General Counsel's Office,Graysons with Watson,2000022449,54474.6,Industrial Injury Claims,S1 1TB
Department for Transport,Department for Transport,21/01/2014,Training,Air Accident Investigation Branch,HELI AIR LIMITED,2000022422,508,#,CV35 9EU
Department for Transport,Department for Transport,21/01/2014,Training,Air Accident Investigation Branch,HELI AIR LIMITED,2000022422,468,#,CV35 9EU
Department for Transport,Department for Transport,21/01/2014,Training,Air Accident Investigation Branch,MONARCH AIRLINES LTD,2000022393,3800,#,LU2 9NU
Department for Transport,Department for Transport,21/01/2014,Transport  Consult,Rail and Road Projects,JACOBS UK LTD,2000022391,2976.59,#,G2 7HX
Department for Transport,Department for Transport,21/01/2014,Transport  Consult,Aviation,FRAZER-NASH CONSULTANCY LTD,2000022420,2112,#,RH4 1HJ
Department for Transport,Department for Transport,21/01/2014,Transport  Consult,Aviation,RED SCIENTIFIC LTD,2000022380,6674.87,#,GU34 2YT
Department for Transport,Department for Transport,21/01/2014,Travel Expenses UK,Group Finance,RAIL STAFF TRAVEL LTD,2000022406,3024.5,#,WC1N 1BY
Department for Transport,Department for Transport,21/01/2014,Treasury Solicitors,General Counsel's Office,TREASURY SOLICITOR,2000022433,6414.99,#,WC2B 4TS
Department for Transport,Department for Transport,22/01/2014,Agency Staff Costs,Corporate Governance,BADENOCH & CLARK,2000022556,3442.44,#,EC4V 4BG
Department for Transport,Department for Transport,22/01/2014,Agency Staff Costs,Corporate Governance,BADENOCH & CLARK,2000022556,688.49,#,EC4V 4BG
Department for Transport,Department for Transport,22/01/2014,Agency Staff Costs,Corporate Governance,BADENOCH & CLARK,2000022556,3442.44,#,EC4V 4BG
Department for Transport,Department for Transport,22/01/2014,Agency Staff Costs,Group Finance,ALLEN LANE FINANCIAL RECRUITMENT,2000022553,4036.38,#,BN11 2BW
Department for Transport,Department for Transport,22/01/2014,Agency Staff Costs,Rail and Road Projects,SPRING TECHNOLOGY LTD  ALSO T/A,2000022608,1320,#,B37 7YE
Department for Transport,Department for Transport,22/01/2014,Agency Staff Costs,Rail and Road Projects,SPRING TECHNOLOGY LTD  ALSO T/A,2000022608,1056,#,B37 7YE
Department for Transport,Department for Transport,22/01/2014,Agency Staff Costs,Rail and Road Projects,EXPERIS LTD,2000022563,2416.01,#,EC1R 3DR
Department for Transport,Department for Transport,22/01/2014,Agency Staff Costs,Rail Commercial Contracts,CAPITA RESOURCING LTD,2000022601,19297.5,#,DL1 9HN
Department for Transport,Department for Transport,22/01/2014,Agency Staff Costs,Rail Commercial Contracts,EXPERIS LTD,2000022563,2751.22,#,EC1R 3DR
Department for Transport,Department for Transport,22/01/2014,Agency Staff Costs,Local,EXPERIS LTD,2000022563,1335.31,#,EC1R 3DR
Department for Transport,Department for Transport,22/01/2014,Agency Staff Costs,Rail,EXPERIS LTD,2000022563,4290.08,#,EC1R 3DR
Department for Transport,Department for Transport,22/01/2014,Agency Staff Costs,Managing Director Motoring Services,SPRING TECHNOLOGY LTD  ALSO T/A,2000022608,3182.4,#,B37 7YE
Department for Transport,Department for Transport,22/01/2014,Agency Staff Costs,Highspeed 2,BADENOCH & CLARK,2000022556,1404.53,#,EC4V 4BG
Department for Transport,Department for Transport,22/01/2014,Agency Staff Costs,Group Finance,EXPERIS LTD,2000022563,3482.06,#,EC1R 3DR
Department for Transport,Department for Transport,22/01/2014,Agency Staff Costs,Group Finance,EXPERIS LTD,2000022563,5390.45,#,EC1R 3DR
Department for Transport,Department for Transport,22/01/2014,Agency Staff Costs,Refran Prog Off,BADENOCH & CLARK,100027475,-3786.66,#,EC4V 4BG
Department for Transport,Department for Transport,22/01/2014,Agency Staff Costs,Refran Prog Off,BADENOCH & CLARK,100027475,3786.66,#,EC4V 4BG
Department for Transport,Department for Transport,22/01/2014,Agency Staff Costs,Refran Prog Off,BADENOCH & CLARK,2000022556,3786.66,#,EC4V 4BG
Department for Transport,Department for Transport,22/01/2014,Agency Staff Costs,Refran Prog Off,EXPERIS LTD,2000022563,9948.1,#,EC1R 3DR
Department for Transport,Department for Transport,22/01/2014,Agency Staff Costs,Refran Prog Off,EXPERIS LTD,2000022563,6706.08,#,EC1R 3DR
Department for Transport,Department for Transport,22/01/2014,Agency Staff Costs,Refran Prog Off,LEND LEASE CONSULTING (EMEA) LTD,2000022600,30504,#,NW1 3BF
Department for Transport,Department for Transport,22/01/2014,Agency Staff Costs,Refran Prog Off,METHODS CONSULTING LTD,2000022566,14125.86,#,WC2H 8AD
Department for Transport,Department for Transport,22/01/2014,Agents Fees,Group Finance,RAILWAYS PENSION MANAGEMENT LT,2000022603,770140.31,#,DL3 6EH
Department for Transport,Department for Transport,22/01/2014,Agents Fees,Group Finance,RAILWAYS PENSION MANAGEMENT LT,2000022603,599769.62,#,DL3 6EH
Department for Transport,Department for Transport,22/01/2014,Agents Fees,Group Finance,RAILWAYS PENSION MANAGEMENT LT,2000022603,588534.97,#,DL3 6EH
Department for Transport,Department for Transport,22/01/2014,Cap Grt Loc Auth,Local,BATH & NE SOMERSET DC,2000022483,916750,Highway Maintenance Block - 2013/14 Quarter 4,BA1 5AW
Department for Transport,Department for Transport,22/01/2014,Cap Grt Loc Auth,Local,BEDFORD BC,2000022576,696250,Highway Maintenance Block - 2013/14 Quarter 4,MK40 1SJ
Department for Transport,Department for Transport,22/01/2014,Cap Grt Loc Auth,Local,BLACKBURN WITH DARWEN BC,2000022537,462000,Highway Maintenance Block - 2013/14 Quarter 4,BB1 7DY
Department for Transport,Department for Transport,22/01/2014,Cap Grt Loc Auth,Local,BLACKPOOL COUNCIL,2000022622,372750,Highway Maintenance Block - 2013/14 Quarter 4,FY3 7HW
Department for Transport,Department for Transport,22/01/2014,Cap Grt Loc Auth,Local,BOURNEMOUTH BC,2000022484,356250,Highway Maintenance Block - 2013/14 Quarter 4,BH2 6DY
Department for Transport,Department for Transport,22/01/2014,Cap Grt Loc Auth,Local,BRACKNELL FOREST BC,2000022559,356750,Highway Maintenance Block - 2013/14 Quarter 4,RG12 1AQ
Department for Transport,Department for Transport,22/01/2014,Cap Grt Loc Auth,Local,BRIGHTON & HOVE COUNCIL,2000022485,820000,Highway Maintenance Block - 2013/14 Quarter 4,BN3 2SR
Department for Transport,Department for Transport,22/01/2014,Cap Grt Loc Auth,Local,BRISTOL CITY COUNCIL,2000022486,790750,Highway Maintenance Block - 2013/14 Quarter 4,BS99 7BL
Department for Transport,Department for Transport,22/01/2014,Cap Grt Loc Auth,Local,BUCKINGHAMSHIRE CC (REVENUE),2000022487,1953000,Highway Maintenance Block - 2013/14 Quarter 4,HP20 1UD
Department for Transport,Department for Transport,22/01/2014,Cap Grt Loc Auth,Local,CAMBRIDGESHIRE COUNTY COUNCIL,2000022488,2700250,Highway Maintenance Block - 2013/14 Quarter 4,CB3 0AP
Department for Transport,Department for Transport,22/01/2014,Cap Grt Loc Auth,Local,CENTRAL BEDFORDSHIRE COUNCIL,2000022612,1001000,Highway Maintenance Block - 2013/14 Quarter 4,MK42 9BD
Department for Transport,Department for Transport,22/01/2014,Cap Grt Loc Auth,Local,CENTRO,2000022609,3895750,Highway Maintenance Block - 2013/14 Quarter 4,B19 3SD
Department for Transport,Department for Transport,22/01/2014,Cap Grt Loc Auth,Local,CHESHIRE EAST BOROUGH COUNCIL,2000022610,2056750,Highway Maintenance Block - 2013/14 Quarter 4,CW11 1HZ
Department for Transport,Department for Transport,22/01/2014,Cap Grt Loc Auth,Local,CHESHIRE WEST &,2000022611,1557250,Highway Maintenance Block - 2013/14 Quarter 4,CH1 9PS
Department for Transport,Department for Transport,22/01/2014,Cap Grt Loc Auth,Local,CITY OF YORK COUNCIL,2000022489,439000,Highway Maintenance Block 2013/14 Quarter 3,Y01 7WH
Department for Transport,Department for Transport,22/01/2014,Cap Grt Loc Auth,Local,CITY OF YORK COUNCIL,2000022489,439000,Highway Maintenance Block 2013/14 Quarter 4,Y01 7WH
Department for Transport,Department for Transport,22/01/2014,Cap Grt Loc Auth,Local,CORNWALL COUNTY COUNCIL,2000022547,4425500,Highway Maintenance Block - 2013/14 Quarter 4,TR1 38D
Department for Transport,Department for Transport,22/01/2014,Cap Grt Loc Auth,Local,CUMBRIA COUNTY COUNCIL,2000022490,5389750,Highway Maintenance Block - 2013/14 Quarter 4,CA3 8NA
Department for Transport,Department for Transport,22/01/2014,Cap Grt Loc Auth,Local,DARLINGTON BC,2000022491,397500,Highway Maintenance Block - 2013/14 Quarter 4,TS19 1JA
Department for Transport,Department for Transport,22/01/2014,Cap Grt Loc Auth,Local,DERBY CITY COUNCIL,2000022492,468750,Highway Maintenance Block - 2013/14 Quarter 4,DE1 2YL
Department for Transport,Department for Transport,22/01/2014,Cap Grt Loc Auth,Local,DERBYSHIRE COUNTY COUNCIL,2000022493,3636250,Highway Maintenance Block - 2013/14 Quarter 4,DE4 3AH
Department for Transport,Department for Transport,22/01/2014,Cap Grt Loc Auth,Local,DEVON COUNTY COUNCIL,2000022494,8353750,Highway Maintenance Block - 2013/14 Quarter 4,EX2 4QJ
Department for Transport,Department for Transport,22/01/2014,Cap Grt Loc Auth,Local,DORSET COUNTY COUNCIL,2000022495,2773250,Highway Maintenance Block - 2013/14 Quarter 4,DT1 1XJ
Department for Transport,Department for Transport,22/01/2014,Cap Grt Loc Auth,Local,DURHAM COUNTY COUNCIL,2000022496,2533000,Highway Maintenance Block - 2013/14 Quarter 4,DH1 5UE
Department for Transport,Department for Transport,22/01/2014,Cap Grt Loc Auth,Local,EAST RIDING OF YORKSHIRE COUNCIL,2000022577,2294000,Highway Maintenance Block - 2013/14 Quarter 4,HU17 9BA
Department for Transport,Department for Transport,22/01/2014,Cap Grt Loc Auth,Local,EAST SUSSEX COUNTY COUNCIL,2000022550,2062250,Highway Maintenance Block - 2013/14 Quarter 4,BN7 1UE
Department for Transport,Department for Transport,22/01/2014,Cap Grt Loc Auth,Local,ESSEX COUNTY COUNCIL,2000022497,4759000,Highway Maintenance Block - 2013/14 Quarter 4,CM1 1LX
Department for Transport,Department for Transport,22/01/2014,Cap Grt Loc Auth,Local,GATESHEAD MBC,2000022538,567250,Highway Maintenance Block - 2013/14 Quarter 4,NE8 1HH
Department for Transport,Department for Transport,22/01/2014,Cap Grt Loc Auth,Local,GLOUCESTERSHIRE COUNTY COUNCIL,2000022482,3743500,Highway Maintenance Block - 2013/14 Quarter 4,GL1 2TJ
Department for Transport,Department for Transport,22/01/2014,Cap Grt Loc Auth,Local,GREATER MANCHESTER,2000022616,6330750,Highway Maintenance Block - 2013/14 Quarter 4,M60 2JR
Department for Transport,Department for Transport,22/01/2014,Cap Grt Loc Auth,Local,HALTON BC,2000022498,490000,Highway Maintenance Block - 2013/14 Quarter 4,WA8 6NB
Department for Transport,Department for Transport,22/01/2014,Cap Grt Loc Auth,Local,HAMPSHIRE COUNTY COUNCIL,2000022499,5513000,Highway Maintenance Block - 2013/14 Quarter 4,SO23 8UB
Department for Transport,Department for Transport,22/01/2014,Cap Grt Loc Auth,Local,HARTLEPOOL BOROUGH COUNCIL,2000022500,195250,Highway Maintenance Block - 2013/14 Quarter 4,TS24 7BT
Department for Transport,Department for Transport,22/01/2014,Cap Grt Loc Auth,Local,HEREFORDSHIRE COUNCIL,2000022583,2194750,Highway Maintenance Block - 2013/14 Quarter 4,HR4 0XH
Department for Transport,Department for Transport,22/01/2014,Cap Grt Loc Auth,Local,HERTFORDSHIRE CC,2000022501,4435500,Highway Maintenance Block - 2013/14 Quarter 4,SG13 8TN
Department for Transport,Department for Transport,22/01/2014,Cap Grt Loc Auth,Local,KENT COUNTY COUNCIL,2000022503,5618250,Highway Maintenance Block - 2013/14 Quarter 4,ME14 1XQ
Department for Transport,Department for Transport,22/01/2014,Cap Grt Loc Auth,Local,KINGSTON UPON HULL CITY COUNCIL,2000022585,449750,Highway Maintenance Block - 2013/14 Quarter 4,HU1 2AB
Department for Transport,Department for Transport,22/01/2014,Cap Grt Loc Auth,Local,KNOWSLEY MBC,2000022504,412000,Highway Maintenance Block - 2013/14 Quarter 4,L32 1TX
Department for Transport,Department for Transport,22/01/2014,Cap Grt Loc Auth,Local,LANCASHIRE COUNTY COUNCIL,2000022505,5024000,Highway Maintenance Block - 2013/14 Quarter 4,PR1 0LD
Department for Transport,Department for Transport,22/01/2014,Cap Grt Loc Auth,Local,LEICESTER CITY COUNCIL,2000022506,550000,Highway Maintenance Block - 2013/14 Quarter 4,LE1 6ZG
Department for Transport,Department for Transport,22/01/2014,Cap Grt Loc Auth,Local,LEICESTERSHIRE COUNTY COUNCIL,2000022539,2814750,Highway Maintenance Block - 2013/14 Quarter 4,LE3 8RB
Department for Transport,Department for Transport,22/01/2014,Cap Grt Loc Auth,Local,LINCOLNSHIRE COUNTY COUNCIL,2000022507,5832500,Highway Maintenance Block - 2013/14 Quarter 4,LN1 1YT
Department for Transport,Department for Transport,22/01/2014,Cap Grt Loc Auth,Local,LIVERPOOL CITY COUNCIL,2000022586,817750,Highway Maintenance Block - 2013/14 Quarter 4,L2 2DH
Department for Transport,Department for Transport,22/01/2014,Cap Grt Loc Auth,Local,LUTON BOROUGH COUNCIL,2000022508,252500,Highway Maintenance Block - 2013/14 Quarter 4,LU1 2BQ
Department for Transport,Department for Transport,22/01/2014,Cap Grt Loc Auth,Local,MEDWAY COUNCIL,2000022548,538250,Highway Maintenance Block - 2013/14 Quarter 4,ME4 4TR
Department for Transport,Department for Transport,22/01/2014,Cap Grt Loc Auth,Local,MIDDLESBROUGH BC,2000022481,406000,Highway Maintenance Block - 2013/14 Quarter 4,TS1 2QQ
Department for Transport,Department for Transport,22/01/2014,Cap Grt Loc Auth,Local,MILTON KEYNES BC,2000022509,1240250,Highway Maintenance Block - 2013/14 Quarter 4,MK9 3EE
Department for Transport,Department for Transport,22/01/2014,Cap Grt Loc Auth,Local,NEWCASTLE CITY COUNCIL,2000022587,573000,Highway Maintenance Block - 2013/14 Quarter 4,NE99 1RD
Department for Transport,Department for Transport,22/01/2014,Cap Grt Loc Auth,Local,NORFOLK COUNTY COUNCIL,2000022518,5132250,Highway Maintenance Block - 2013/14 Quarter 4,NR1 2UG
Department for Transport,Department for Transport,22/01/2014,Cap Grt Loc Auth,Local,NORTH EAST LINCOLN DC,2000022588,408500,Highway Maintenance Block - 2013/14 Quarter 4,DN35 8LN
Department for Transport,Department for Transport,22/01/2014,Cap Grt Loc Auth,Local,NORTH LINCOLNSHIRE DC,2000022540,871000,Highway Maintenance Block - 2013/14 Quarter 4,DN16 1AB
Department for Transport,Department for Transport,22/01/2014,Cap Grt Loc Auth,Local,NORTH SOMERSET COUNCIL,2000022510,849750,Highway Maintenance Block - 2013/14 Quarter 4,BS23 1UJ
Department for Transport,Department for Transport,22/01/2014,Cap Grt Loc Auth,Local,NORTH TYNESIDE COUNCIL,2000022511,450250,Highway Maintenance Block - 2013/14 Quarter 4,NE27 0BY
Department for Transport,Department for Transport,22/01/2014,Cap Grt Loc Auth,Local,NORTH YORKSHIRE CC,2000022589,5459750,Highway Maintenance Block - 2013/14 Quarter 4,DL7 8AL
Department for Transport,Department for Transport,22/01/2014,Cap Grt Loc Auth,Local,NORTHAMPTONSHIRE CC,2000022512,3400750,Highway Maintenance Block - 2013/14 Quarter 4,NN4 7DB
Department for Transport,Department for Transport,22/01/2014,Cap Grt Loc Auth,Local,NORTHUMBERLAND CC,2000022590,3523000,Highway Maintenance Block - 2013/14 Quarter 4,NE61 2EF
Department for Transport,Department for Transport,22/01/2014,Cap Grt Loc Auth,Local,NOTTINGHAM CITY COUNCIL,2000022606,476500,Highway Maintenance Block - 2013/14 Quarter 4,NG1 5NT
Department for Transport,Department for Transport,22/01/2014,Cap Grt Loc Auth,Local,NOTTINGHAMSHIRE CC,2000022591,2796500,Highway Maintenance Block - 2013/14 Quarter 4,NG2 7LA
Department for Transport,Department for Transport,22/01/2014,Cap Grt Loc Auth,Local,OXFORDSHIRE CC,2000022513,3205500,Highway Maintenance Block - 2013/14 Quarter 4,OX1 1TH
Department for Transport,Department for Transport,22/01/2014,Cap Grt Loc Auth,Local,PETERBOROUGH CITY COUNCIL,2000022514,735000,Highway Maintenance Block - 2013/14 Quarter 4,PE1 1FF
Department for Transport,Department for Transport,22/01/2014,Cap Grt Loc Auth,Local,PLYMOUTH CITY COUNCIL,2000022515,528750,Highway Maintenance Block - 2013/14 Quarter 4,PL1 2AA
Department for Transport,Department for Transport,22/01/2014,Cap Grt Loc Auth,Local,POOLE BC,2000022516,384000,Highway Maintenance Block - 2013/14 Quarter 4,BH15 2RZ
Department for Transport,Department for Transport,22/01/2014,Cap Grt Loc Auth,Local,PORTSMOUTH CITY COUNCIL,2000022541,277000,Highway Maintenance Block - 2013/14 Quarter 4,PO1 2BG
Department for Transport,Department for Transport,22/01/2014,Cap Grt Loc Auth,Local,READING BC,2000022517,605250,Highway Maintenance Block - 2013/14 Quarter 4,RG1 7TD
Department for Transport,Department for Transport,22/01/2014,Cap Grt Loc Auth,Local,REDCAR & CLEVELAND BC,2000022542,391250,Highway Maintenance Block - 2013/14 Quarter 4,TS6 9AR
Department for Transport,Department for Transport,22/01/2014,Cap Grt Loc Auth,Local,RUTLAND COUNTY COUNCIL,2000022519,368250,Highway Maintenance Block - 2013/14 Quarter 4,LE15 6HP
Department for Transport,Department for Transport,22/01/2014,Cap Grt Loc Auth,Local,SEFTON MBC,2000022520,588750,Highway Maintenance Block - 2013/14 Quarter 4,PR8 1DA
Department for Transport,Department for Transport,22/01/2014,Cap Grt Loc Auth,Local,SHROPSHIRE COUNTY COUNCIL,2000022593,3178000,Highway Maintenance Block - 2013/14 Quarter 4,SY2 6ND
Department for Transport,Department for Transport,22/01/2014,Cap Grt Loc Auth,Local,SLOUGH BC,2000022521,212000,Highway Maintenance Block - 2013/14 Quarter 4,SL1 3UF
Department for Transport,Department for Transport,22/01/2014,Cap Grt Loc Auth,Local,SOMERSET COUNTY COUNCIL,2000022522,4544250,Highway Maintenance Block - 2013/14 Quarter 4,TA1 4DY
Department for Transport,Department for Transport,22/01/2014,Cap Grt Loc Auth,Local,SOUTH GLOUCESTERSHIRE COUNCIL,2000022523,1081250,Highway Maintenance Block - 2013/14 Quarter 4,BS15 9DW
Department for Transport,Department for Transport,22/01/2014,Cap Grt Loc Auth,Local,SOUTH TYNESIDE MBC,2000022543,309000,Highway Maintenance Block - 2013/14 Quarter 4,NE33 4JP
Department for Transport,Department for Transport,22/01/2014,Cap Grt Loc Auth,Local,SOUTH YORKSHIRE PASSENGER TRANS AUT,2000022595,7477500,Highway Maintenance Block - 2013/14 Quarter 4,S10 2HG
Department for Transport,Department for Transport,22/01/2014,Cap Grt Loc Auth,Local,SOUTHAMPTON CITY COUNCIL,2000022549,425250,Highway Maintenance Block - 2013/14 Quarter 4,SO14 7LF
Department for Transport,Department for Transport,22/01/2014,Cap Grt Loc Auth,Local,SOUTHEND-ON-SEA BC,2000022597,379500,Highway Maintenance Block - 2013/14 Quarter 4,SS2 6AN
Department for Transport,Department for Transport,22/01/2014,Cap Grt Loc Auth,Local,ST HELENS MBC,2000022524,466000,Highway Maintenance Block - 2013/14 Quarter 4,WA10 1UQ
Department for Transport,Department for Transport,22/01/2014,Cap Grt Loc Auth,Local,STAFFORDSHIRE COUNTY COUNCIL,2000022592,4065500,Highway Maintenance Block - 2013/14 Quarter 4,ST16 2NF
Department for Transport,Department for Transport,22/01/2014,Cap Grt Loc Auth,Local,STOCKTON ON TEES BC,2000022525,506750,Highway Maintenance Block - 2013/14 Quarter 4,TS23 2YS
Department for Transport,Department for Transport,22/01/2014,Cap Grt Loc Auth,Local,STOKE ON TRENT CITY COUNCIL,2000022598,462000,Highway Maintenance Block - 2013/14 Quarter 4,ST4 1RF
Department for Transport,Department for Transport,22/01/2014,Cap Grt Loc Auth,Local,SUFFOLK COUNTY COUNCIL,2000022551,4266500,Highway Maintenance Block - 2013/14 Quarter 4,IP1 2DH
Department for Transport,Department for Transport,22/01/2014,Cap Grt Loc Auth,Local,SUNDERLAND CITY COUNCIL,2000022526,719250,Highway Maintenance Block - 2013/14 Quarter 4,SR2 7DN
Department for Transport,Department for Transport,22/01/2014,Cap Grt Loc Auth,Local,SURREY COUNTY COUNCIL,2000022527,3601500,Highway Maintenance Block - 2013/14 Quarter 4,KT1 2DN
Department for Transport,Department for Transport,22/01/2014,Cap Grt Loc Auth,Local,SWINDON BC,2000022528,637250,Highway Maintenance Block - 2013/14 Quarter 4,SN1 2JH
Department for Transport,Department for Transport,22/01/2014,Cap Grt Loc Auth,Local,TELFORD & WREKIN DC,2000022544,665250,Highway Maintenance Block - 2013/14 Quarter 4,TF3 4LF
Department for Transport,Department for Transport,22/01/2014,Cap Grt Loc Auth,Local,THURROCK DC,2000022529,427750,Highway Maintenance Block - 2013/14 Quarter 4,RM17 6LT
Department for Transport,Department for Transport,22/01/2014,Cap Grt Loc Auth,Local,TORBAY BC,2000022530,290250,Highway Maintenance Block - 2013/14 Quarter 4,TQ1 3DS
Department for Transport,Department for Transport,22/01/2014,Cap Grt Loc Auth,Local,W YORKS PTA,2000022599,6377750,Highway Maintenance Block - 2013/14 Quarter 4,LS1 1QS
Department for Transport,Department for Transport,22/01/2014,Cap Grt Loc Auth,Local,WARRINGTON BC,2000022531,818000,Highway Maintenance Block - 2013/14 Quarter 4,WA1 1BN
Department for Transport,Department for Transport,22/01/2014,Cap Grt Loc Auth,Local,Warwickshire County Council,2000022545,2525500,Highway Maintenance Block - 2013/14 Quarter 4,CV34 4RH
Department for Transport,Department for Transport,22/01/2014,Cap Grt Loc Auth,Local,WEST BERKSHIRE DC,2000022532,829750,Highway Maintenance Block - 2013/14 Quarter 4,RG14 2AF
Department for Transport,Department for Transport,22/01/2014,Cap Grt Loc Auth,Local,West Sussex County Council,2000022533,2652500,Highway Maintenance Block - 2013/14 Quarter 4,PO19 1RG
Department for Transport,Department for Transport,22/01/2014,Cap Grt Loc Auth,Local,WILTSHIRE COUNTY COUNCIL,2000022534,3255000,Highway Maintenance Block - 2013/14 Quarter 4,BA14 8JJ
Department for Transport,Department for Transport,22/01/2014,Cap Grt Loc Auth,Local,WINDSOR & MAIDENHEAD,2000022535,464500,Highway Maintenance Block - 2013/14 Quarter 4,SL6 1RF
Department for Transport,Department for Transport,22/01/2014,Cap Grt Loc Auth,Local,WIRRAL COUNCIL,2000022617,716000,Highway Maintenance Block - 2013/14 Quarter 4,CH4 1BU
Department for Transport,Department for Transport,22/01/2014,Cap Grt Loc Auth,Local,WOKINGHAM DC,2000022536,616000,Highway Maintenance Block - 2013/14 Quarter 4,RG40 1JW
Department for Transport,Department for Transport,22/01/2014,Cap Grt Loc Auth,Local,WORCESTERSHIRE COUNTY COUNCIL,2000022546,2930500,Highway Maintenance Block - 2013/14 Quarter 4,WR5 2NP
Department for Transport,Department for Transport,22/01/2014,Cap Grt Loc Auth,Local,BATH & NE SOMERSET DC,2000022483,306250,IT Block - fourth quarterly payment - 2013/14,BA1 5AW
Department for Transport,Department for Transport,22/01/2014,Cap Grt Loc Auth,Local,BEDFORD BC,2000022576,251500,IT Block - fourth quarterly payment - 2013/14,MK40 1SJ
Department for Transport,Department for Transport,22/01/2014,Cap Grt Loc Auth,Local,BLACKBURN WITH DARWEN BC,2000022537,245500,IT Block - fourth quarterly payment - 2013/14,BB1 7DY
Department for Transport,Department for Transport,22/01/2014,Cap Grt Loc Auth,Local,BLACKPOOL COUNCIL,2000022622,342750,IT Block - fourth quarterly payment - 2013/14,FY3 7HW
Department for Transport,Department for Transport,22/01/2014,Cap Grt Loc Auth,Local,BOURNEMOUTH BC,2000022484,383750,IT Block - fourth quarterly payment - 2013/14,BH2 6DY
Department for Transport,Department for Transport,22/01/2014,Cap Grt Loc Auth,Local,BRACKNELL FOREST BC,2000022559,140250,IT Block - fourth quarterly payment - 2013/14,RG12 1AQ
Department for Transport,Department for Transport,22/01/2014,Cap Grt Loc Auth,Local,BRIGHTON & HOVE COUNCIL,2000022485,767250,IT Block - fourth quarterly payment - 2013/14,BN3 2SR
Department for Transport,Department for Transport,22/01/2014,Cap Grt Loc Auth,Local,BRISTOL CITY COUNCIL,2000022486,881750,IT Block - fourth quarterly payment - 2013/14,BS99 7BL
Department for Transport,Department for Transport,22/01/2014,Cap Grt Loc Auth,Local,BUCKINGHAMSHIRE CC (REVENUE),2000022487,715500,IT Block - fourth quarterly payment - 2013/14,HP20 1UD
Department for Transport,Department for Transport,22/01/2014,Cap Grt Loc Auth,Local,CAMBRIDGESHIRE COUNTY COUNCIL,2000022488,1014750,IT Block - fourth quarterly payment - 2013/14,CB3 0AP
Department for Transport,Department for Transport,22/01/2014,Cap Grt Loc Auth,Local,CENTRAL BEDFORDSHIRE COUNCIL,2000022612,334500,IT Block - fourth quarterly payment - 2013/14,MK42 9BD
Department for Transport,Department for Transport,22/01/2014,Cap Grt Loc Auth,Local,CENTRO,2000022609,6648000,IT Block - fourth quarterly payment - 2013/14,B19 3SD
Department for Transport,Department for Transport,22/01/2014,Cap Grt Loc Auth,Local,CHESHIRE EAST BOROUGH COUNCIL,2000022610,570250,IT Block - fourth quarterly payment - 2013/14,CW11 1HZ
Department for Transport,Department for Transport,22/01/2014,Cap Grt Loc Auth,Local,CHESHIRE WEST &,2000022611,578500,IT Block - fourth quarterly payment - 2013/14,CH1 9PS
Department for Transport,Department for Transport,22/01/2014,Cap Grt Loc Auth,Local,CITY OF YORK COUNCIL,2000022489,413000,IT Block - fourht quarterly payment - 2013/14,Y01 7WH
Department for Transport,Department for Transport,22/01/2014,Cap Grt Loc Auth,Local,CORNWALL COUNTY COUNCIL,2000022547,1261500,IT Block - fourth quarterly payment - 2013/14,TR1 38D
Department for Transport,Department for Transport,22/01/2014,Cap Grt Loc Auth,Local,CUMBRIA COUNTY COUNCIL,2000022490,760250,IT Block - fourth quarterly payment - 2013/14,CA3 8NA
Department for Transport,Department for Transport,22/01/2014,Cap Grt Loc Auth,Local,DARLINGTON BC,2000022491,182250,IT Block - fourth quarterly payment - 2013/14,TS19 1JA
Department for Transport,Department for Transport,22/01/2014,Cap Grt Loc Auth,Local,DERBY CITY COUNCIL,2000022492,508500,IT Block - fourth quarterly payment - 2013/14,DE1 2YL
Department for Transport,Department for Transport,22/01/2014,Cap Grt Loc Auth,Local,DERBYSHIRE COUNTY COUNCIL,2000022493,1206000,IT Block - fourth quarterly payment - 2013/14,DE4 3AH
Department for Transport,Department for Transport,22/01/2014,Cap Grt Loc Auth,Local,DEVON COUNTY COUNCIL,2000022494,1095000,IT Block - fourth quarterly payment - 2013/14,EX2 4QJ
Department for Transport,Department for Transport,22/01/2014,Cap Grt Loc Auth,Local,DORSET COUNTY COUNCIL,2000022495,602750,IT Block - fourth quarterly payment - 2013/14,DT1 1XJ
Department for Transport,Department for Transport,22/01/2014,Cap Grt Loc Auth,Local,DURHAM COUNTY COUNCIL,2000022496,795750,IT Block - fourth quarterly payment - 2013/14,DH1 5UE
Department for Transport,Department for Transport,22/01/2014,Cap Grt Loc Auth,Local,EAST RIDING OF YORKSHIRE COUNCIL,2000022577,478500,IT Block - fourth quarterly payment - 2013/14,HU17 9BA
Department for Transport,Department for Transport,22/01/2014,Cap Grt Loc Auth,Local,EAST SUSSEX COUNTY COUNCIL,2000022550,866000,IT Block - fourth quarterly payment - 2013/14,BN7 1UE
Department for Transport,Department for Transport,22/01/2014,Cap Grt Loc Auth,Local,ESSEX COUNTY COUNCIL,2000022497,2091500,IT Block - fourth quarterly payment - 2013/14,CM1 1LX
Department for Transport,Department for Transport,22/01/2014,Cap Grt Loc Auth,Local,GLOUCESTERSHIRE COUNTY COUNCIL,2000022482,910500,IT Block - fourth quarterly payment - 2013/14,GL1 2TJ
Department for Transport,Department for Transport,22/01/2014,Cap Grt Loc Auth,Local,GREATER MANCHESTER,2000022616,5248250,IT Block - fourth quarterly payment - 2013/14,M60 2JR
Department for Transport,Department for Transport,22/01/2014,Cap Grt Loc Auth,Local,HALTON BC,2000022498,181250,IT Block - fourth quarterly payment - 2013/14,WA8 6NB
Department for Transport,Department for Transport,22/01/2014,Cap Grt Loc Auth,Local,HAMPSHIRE COUNTY COUNCIL,2000022499,1746000,IT Block - fourth quarterly payment - 2013/14,SO23 8UB
Department for Transport,Department for Transport,22/01/2014,Cap Grt Loc Auth,Local,HARTLEPOOL BOROUGH COUNCIL,2000022500,140250,IT Block - fourth quarterly payment - 2013/14,TS24 7BT
Department for Transport,Department for Transport,22/01/2014,Cap Grt Loc Auth,Local,HEREFORDSHIRE COUNCIL,2000022583,253250,IT Block - fourth quarterly payment - 2013/14,HR4 0XH
Department for Transport,Department for Transport,22/01/2014,Cap Grt Loc Auth,Local,HERTFORDSHIRE CC,2000022501,1555250,IT Block - fourth quarterly payment - 2013/14,SG13 8TN
Department for Transport,Department for Transport,22/01/2014,Cap Grt Loc Auth,Local,ISLE OF WIGHT COUNCIL,2000022502,204400,IT Block - fourth quarterly payment - 2013/14,PO30 1UD
Department for Transport,Department for Transport,22/01/2014,Cap Grt Loc Auth,Local,KENT COUNTY COUNCIL,2000022503,2186500,IT Block - fourth quarterly payment - 2013/14,ME14 1XQ
Department for Transport,Department for Transport,22/01/2014,Cap Grt Loc Auth,Local,KINGSTON UPON HULL CITY COUNCIL,2000022585,607250,IT Block - fourth quarterly payment - 2013/14,HU1 2AB
Department for Transport,Department for Transport,22/01/2014,Cap Grt Loc Auth,Local,LANCASHIRE COUNTY COUNCIL,2000022505,2187500,IT Block - fourth quarterly payment - 2013/14,PR1 0LD
Department for Transport,Department for Transport,22/01/2014,Cap Grt Loc Auth,Local,LEICESTER CITY COUNCIL,2000022506,759250,IT Block - fourth quarterly payment - 2013/14,LE1 6ZG
Department for Transport,Department for Transport,22/01/2014,Cap Grt Loc Auth,Local,LEICESTERSHIRE COUNTY COUNCIL,2000022539,876750,IT Block - fourth quarterly payment - 2013/14,LE3 8RB
Department for Transport,Department for Transport,22/01/2014,Cap Grt Loc Auth,Local,LINCOLNSHIRE COUNTY COUNCIL,2000022507,1034000,IT Block - fourth quarterly payment - 2013/14,LN1 1YT
Department for Transport,Department for Transport,22/01/2014,Cap Grt Loc Auth,Local,LUTON BOROUGH COUNCIL,2000022508,336000,IT Block - fourth quarterly payment - 2013/14,LU1 2BQ
Department for Transport,Department for Transport,22/01/2014,Cap Grt Loc Auth,Local,MEDWAY COUNCIL,2000022548,394000,IT Block - fourth quarterly payment - 2013/14,ME4 4TR
Department for Transport,Department for Transport,22/01/2014,Cap Grt Loc Auth,Local,MERSEYSIDE PTA,2000022605,3063750,IT Block - fourth quarterly payment - 2013/14,L3 2AN
Department for Transport,Department for Transport,22/01/2014,Cap Grt Loc Auth,Local,MIDDLESBROUGH BC,2000022481,256500,IT Block - fourth quarterly payment - 2013/14,TS1 2QQ
Department for Transport,Department for Transport,22/01/2014,Cap Grt Loc Auth,Local,MILTON KEYNES BC,2000022509,395500,IT Block - fourth quarterly payment - 2013/14,MK9 3EE
Department for Transport,Department for Transport,22/01/2014,Cap Grt Loc Auth,Local,NEWCASTLE CITY COUNCIL,2000022587,3098000,IT Block - fourth quarterly payment - 2013/14,NE99 1RD
Department for Transport,Department for Transport,22/01/2014,Cap Grt Loc Auth,Local,NORFOLK COUNTY COUNCIL,2000022518,1331000,IT Block - fourth quarterly payment - 2013/14,NR1 2UG
Department for Transport,Department for Transport,22/01/2014,Cap Grt Loc Auth,Local,NORTH EAST LINCOLN DC,2000022588,300250,IT Block - fourth quarterly payment - 2013/14,DN35 8LN
Department for Transport,Department for Transport,22/01/2014,Cap Grt Loc Auth,Local,NORTH LINCOLNSHIRE DC,2000022540,264750,IT Block - fourth quarterly payment - 2013/14,DN16 1AB
Department for Transport,Department for Transport,22/01/2014,Cap Grt Loc Auth,Local,NORTH SOMERSET COUNCIL,2000022510,254500,IT Block - fourth quarterly payment - 2013/14,BS23 1UJ
Department for Transport,Department for Transport,22/01/2014,Cap Grt Loc Auth,Local,NORTH YORKSHIRE CC,2000022589,1022750,IT Block - fourth quarterly payment - 2013/14,DL7 8AL
Department for Transport,Department for Transport,22/01/2014,Cap Grt Loc Auth,Local,NORTHAMPTONSHIRE CC,2000022512,1007500,IT Block - fourth quarterly payment - 2013/14,NN4 7DB
Department for Transport,Department for Transport,22/01/2014,Cap Grt Loc Auth,Local,NORTHUMBERLAND CC,2000022590,483500,IT Block - fourth quarterly payment - 2013/14,NE61 2EF
Department for Transport,Department for Transport,22/01/2014,Cap Grt Loc Auth,Local,NOTTINGHAM CITY COUNCIL,2000022606,1023250,IT Block - fourth quarterly payment - 2013/14,NG1 5NT
Department for Transport,Department for Transport,22/01/2014,Cap Grt Loc Auth,Local,NOTTINGHAMSHIRE CC,2000022591,1316750,IT Block - fourth quarterly payment - 2013/14,NG2 7LA
Department for Transport,Department for Transport,22/01/2014,Cap Grt Loc Auth,Local,OXFORDSHIRE CC,2000022513,1113750,IT Block - fourth quarterly payment - 2013/14,OX1 1TH
Department for Transport,Department for Transport,22/01/2014,Cap Grt Loc Auth,Local,PETERBOROUGH CITY COUNCIL,2000022514,375000,IT Block - fourth quarterly payment - 2013/14,PE1 1FF
Department for Transport,Department for Transport,22/01/2014,Cap Grt Loc Auth,Local,PLYMOUTH CITY COUNCIL,2000022515,510000,IT Block - fourth quarterly payment - 2013/14,PL1 2AA
Department for Transport,Department for Transport,22/01/2014,Cap Grt Loc Auth,Local,POOLE BC,2000022516,240500,IT Block - fourth quarterly payment - 2013/14,BH15 2RZ
Department for Transport,Department for Transport,22/01/2014,Cap Grt Loc Auth,Local,PORTSMOUTH CITY COUNCIL,2000022541,395750,IT Block - fourth quarterly payment - 2013/14,PO1 2BG
Department for Transport,Department for Transport,22/01/2014,Cap Grt Loc Auth,Local,READING BC,2000022517,372250,IT Block - fourth quarterly payment - 2013/14,RG1 7TD
Department for Transport,Department for Transport,22/01/2014,Cap Grt Loc Auth,Local,REDCAR & CLEVELAND BC,2000022542,200250,IT Block - fourth quarterly payment - 2013/14,TS6 9AR
Department for Transport,Department for Transport,22/01/2014,Cap Grt Loc Auth,Local,RUTLAND COUNTY COUNCIL,2000022519,52500,IT Block - fourth quarterly payment - 2013/14,LE15 6HP
Department for Transport,Department for Transport,22/01/2014,Cap Grt Loc Auth,Local,SHROPSHIRE COUNTY COUNCIL,2000022593,424000,IT Block - fourth quarterly payment - 2013/14,SY2 6ND
Department for Transport,Department for Transport,22/01/2014,Cap Grt Loc Auth,Local,SLOUGH BC,2000022521,213500,IT Block - fourth quarterly payment - 2013/14,SL1 3UF
Department for Transport,Department for Transport,22/01/2014,Cap Grt Loc Auth,Local,SOMERSET COUNTY COUNCIL,2000022522,716250,IT Block - fourth quarterly payment - 2013/14,TA1 4DY
Department for Transport,Department for Transport,22/01/2014,Cap Grt Loc Auth,Local,SOUTH GLOUCESTERSHIRE COUNCIL,2000022523,366500,IT Block - fourth quarterly payment - 2013/14,BS15 9DW
Department for Transport,Department for Transport,22/01/2014,Cap Grt Loc Auth,Local,SOUTH YORKSHIRE PASSENGER TRANS AUT,2000022595,3000500,IT Block - fourth quarterly payment - 2013/14,S10 2HG
Department for Transport,Department for Transport,22/01/2014,Cap Grt Loc Auth,Local,SOUTHAMPTON CITY COUNCIL,2000022549,506750,IT Block - fourth quarterly payment - 2013/14,SO14 7LF
Department for Transport,Department for Transport,22/01/2014,Cap Grt Loc Auth,Local,SOUTHEND-ON-SEA BC,2000022597,284500,IT Block - fourth quarterly payment - 2013/14,SS2 6AN
Department for Transport,Department for Transport,22/01/2014,Cap Grt Loc Auth,Local,STAFFORDSHIRE COUNTY COUNCIL,2000022592,1098250,IT Block - fourth quarterly payment - 2013/14,ST16 2NF
Department for Transport,Department for Transport,22/01/2014,Cap Grt Loc Auth,Local,STOCKTON ON TEES BC,2000022525,311500,IT Block - fourth quarterly payment - 2013/14,TS23 2YS
Department for Transport,Department for Transport,22/01/2014,Cap Grt Loc Auth,Local,STOKE ON TRENT CITY COUNCIL,2000022598,447750,IT Block - fourth quarterly payment - 2013/14,ST4 1RF
Department for Transport,Department for Transport,22/01/2014,Cap Grt Loc Auth,Local,SUFFOLK COUNTY COUNCIL,2000022551,1030500,IT Block - fourth quarterly payment - 2013/14,IP1 2DH
Department for Transport,Department for Transport,22/01/2014,Cap Grt Loc Auth,Local,SURREY COUNTY COUNCIL,2000022527,1673000,IT Block - fourth quarterly payment - 2013/14,KT1 2DN
Department for Transport,Department for Transport,22/01/2014,Cap Grt Loc Auth,Local,SWINDON BC,2000022528,350250,IT Block - fourth quarterly payment - 2013/14,SN1 2JH
Department for Transport,Department for Transport,22/01/2014,Cap Grt Loc Auth,Local,TELFORD & WREKIN DC,2000022544,234750,IT Block - fourth quarterly payment - 2013/14,TF3 4LF
Department for Transport,Department for Transport,22/01/2014,Cap Grt Loc Auth,Local,THURROCK DC,2000022529,219500,IT Block - fourth quarterly payment - 2013/14,RM17 6LT
Department for Transport,Department for Transport,22/01/2014,Cap Grt Loc Auth,Local,TORBAY BC,2000022530,242750,IT Block - fourth quarterly payment - 2013/14,TQ1 3DS
Department for Transport,Department for Transport,22/01/2014,Cap Grt Loc Auth,Local,W YORKS PTA,2000022599,4829500,IT Block - fourth quarterly payment - 2013/14,LS1 1QS
Department for Transport,Department for Transport,22/01/2014,Cap Grt Loc Auth,Local,WARRINGTON BC,2000022531,371750,IT Block - fourth quarterly payment - 2013/14,WA1 1BN
Department for Transport,Department for Transport,22/01/2014,Cap Grt Loc Auth,Local,Warwickshire County Council,2000022545,842500,IT Block - fourth quarterly payment - 2013/14,CV34 4RH
Department for Transport,Department for Transport,22/01/2014,Cap Grt Loc Auth,Local,WEST BERKSHIRE DC,2000022532,196000,IT Block - fourth quarterly payment - 2013/14,RG14 2AF
Department for Transport,Department for Transport,22/01/2014,Cap Grt Loc Auth,Local,West Sussex County Council,2000022533,1144500,IT Block - fourth quarterly payment - 2013/14,PO19 1RG
Department for Transport,Department for Transport,22/01/2014,Cap Grt Loc Auth,Local,WILTSHIRE COUNTY COUNCIL,2000022534,667000,IT Block - fourth quarterly payment - 2013/14,BA14 8JJ
Department for Transport,Department for Transport,22/01/2014,Cap Grt Loc Auth,Local,WINDSOR & MAIDENHEAD,2000022535,174250,IT Block - fourth quarterly payment - 2013/14,SL6 1RF
Department for Transport,Department for Transport,22/01/2014,Cap Grt Loc Auth,Local,WOKINGHAM DC,2000022536,219250,IT Block - fourth quarterly payment - 2013/14,RG40 1JW
Department for Transport,Department for Transport,22/01/2014,Cap Grt Loc Auth,Local,WORCESTERSHIRE COUNTY COUNCIL,2000022546,769500,IT Block - fourth quarterly payment - 2013/14,WR5 2NP
Department for Transport,Department for Transport,22/01/2014,Car Tax & Insurance,Motoring Services,Clifford Thames (Holdings) Limited,2000022625,536.25,#,CM2 5TH
Department for Transport,Department for Transport,22/01/2014,Computer Consumables,Business Transformation,XMA LIMITED GOSC,2000022624,1030.56,CB381A-LON Longbow HP LJCM6040 CYAN,NG11 7EP
Department for Transport,Department for Transport,22/01/2014,Computer Consumables,Business Transformation,XMA LIMITED GOSC,2000022624,1030.56,CB382A-LON Longbow HP LJCM6040 YELLOW,NG11 7EP
Department for Transport,Department for Transport,22/01/2014,Computer Consumables,Business Transformation,XMA LIMITED GOSC,2000022624,1009.2,CB383A-LON Longbow HP LJCM6040 MAGENTA,NG11 7EP
Department for Transport,Department for Transport,22/01/2014,CurrGrtPriSec-P&NPIS,Greener Transport & International,ENERGY SAVING TRUST,2000022579,259325,EST Nov #263k,SW1H 9BP
Department for Transport,Department for Transport,22/01/2014,CurrGrtPriSec-P&NPIS,Greener Transport & International,LOW CARBON VEHICLE PARTNERSHIP,2000022613,40000,"""LowCVP Jan #40,000 """,SW1H 9JJ
Department for Transport,Department for Transport,22/01/2014,Electricity,Rail Accident Investigation Branch,BRITISH GAS,2000022560,956.6,#,OX4 2JY
Department for Transport,Department for Transport,22/01/2014,Infrastructure Maint,Business Transformation,SPECIALIST COMPUTER CENTRES PLC,2000022607,3060,#,B11 2LE
Department for Transport,Department for Transport,22/01/2014,Insurance,Group HR,CIVIL SERVICE HEALTHCARE SOCIETY,2000022618,15612,#,KT1 2SL
Department for Transport,Department for Transport,22/01/2014,IT Ser Running Costs,Roads,TRAFFICMASTER PLC,2000022572,50940,#,MK43 0TR
Department for Transport,Department for Transport,22/01/2014,Legal Consultancy,Local,LAW COMMISSION,2000022620,25000,#,SW1H 9LJ
Department for Transport,Department for Transport,22/01/2014,Legal Consultancy,Business Transformation,DFT ONE TIME VENDOR,2000022630,4200,#,SW1P 4DR
Department for Transport,Department for Transport,22/01/2014,Legal Consultancy,Business Transformation,CRIPPS HARRIES HALL LLP,2000022621,1047.97,#,TN1 1EG
Department for Transport,Department for Transport,22/01/2014,Legal Consultancy,Rail and Road Projects,FRESHFIELDS,2000022602,3483.78,#,EC4Y 1HS
Department for Transport,Department for Transport,22/01/2014,Legal Consultancy,Refran Prog Off,Eversheds LLP,2000022619,306237.17,#,EC2V 7WS
Department for Transport,Department for Transport,22/01/2014,Legal Consultancy,Refran Prog Off,Eversheds LLP,2000022619,147400.66,#,EC2V 7WS
Department for Transport,Department for Transport,22/01/2014,Postage,Rail Accident Investigation Branch,ROYAL MAIL,2000022571,930,#,PE4 5PG
Department for Transport,Department for Transport,22/01/2014,Recruitment,Roads,GATENBY SANDERSON LTD,2000022615,9875,#,LS1 2HL
Department for Transport,Department for Transport,22/01/2014,Research,Roads,ATKINS LTD (TRANSPORT PLANNING),2000022554,11658.14,#,WR5 1TX
Department for Transport,Department for Transport,22/01/2014,Services prov by OGD,MPL Director's Office,Directly Operated Railways Ltd,2000022614,184546.46,#,EC4A 1BL
Department for Transport,Department for Transport,22/01/2014,Services prov by OGD,DASH,HOUSE OF COMMONS,2000022594,28858,#,SW1A 0AA
Department for Transport,Department for Transport,22/01/2014,Subsidies Private Se,Roads,MSRS Freight Grant,2000022580,18989.73,MSRS Freight Grant,xxxxxx
Department for Transport,Department for Transport,22/01/2014,Subsidies Private Se,Roads,MSRS Freight Grant,2000022578,53839.2,MSRS Freight Grant,xxxxxx
Department for Transport,Department for Transport,22/01/2014,Subsidies Private Se,Roads,MSRS Freight Grant,2000022581,500906.48,MSRS Freight Grant,xxxxxx
Department for Transport,Department for Transport,22/01/2014,Subsidies Private Se,Roads,MSRS Freight Grant,2000022582,209194,MSRS Freight Grant,xxxxxx
Department for Transport,Department for Transport,22/01/2014,Subsidies Private Se,Roads,MSRS Freight Grant,2000022584,67251,MSRS Freight Grant,xxxxxx
Department for Transport,Department for Transport,22/01/2014,Subsidies Private Se,Roads,MSRS Freight Grant,2000022584,68979,MSRS Freight Grant,xxxxxx
Department for Transport,Department for Transport,22/01/2014,Support Services,Greener Transport & International,MET OFFICE,2000022565,3000000,#,EX1 3PB
Department for Transport,Department for Transport,22/01/2014,Support Services,Aviation,BOURNEMOUTH INTERNATIONAL AIRPORT,2000022558,29988,#,BH23 6SE
Department for Transport,Department for Transport,22/01/2014,Support Services,Rail and Road Projects,NETWORK RAIL,100027474,113767.54,#,M60 7RT
Department for Transport,Department for Transport,22/01/2014,Support Services,Rail and Road Projects,NETWORK RAIL,100027474,-113767.54,Match to invoice,M60 7RT
Department for Transport,Department for Transport,22/01/2014,Support Services,General Counsel's Office,Pannone LLP,2000022628,61687,#,M3 2BU
Department for Transport,Department for Transport,22/01/2014,Training,Marine Accident Investigation Branch,March on Stress Ltd,2000022629,4500,#,PO16 9XS
Department for Transport,Department for Transport,22/01/2014,Training,Rail Commercial Contracts,OXFORD SAID BUSINESS SCHOOL LTD,2000022623,25000,#,OX1 5NY
Department for Transport,Department for Transport,22/01/2014,Translation Services,General Counsel's Office,THEBIGWORD INTERPRETING,2000022557,993.5,#,LS12 6AB
Department for Transport,Department for Transport,22/01/2014,Transport  Consult,Rail and Road Projects,FIRST GREATER WESTERN,2000022604,61258.27,#,SN1 1HL
Department for Transport,Department for Transport,22/01/2014,Transport  Consult,Rail and Road Projects,FIRST GREATER WESTERN,2000022604,54795.83,#,SN1 1HL
Department for Transport,Department for Transport,22/01/2014,Transport  Consult,Rail and Road Projects,MOTT MACDONALD,2000022567,87421.75,#,CR9 2UL
Department for Transport,Department for Transport,22/01/2014,Transport  Consult,Rail and Road Projects,MOTT MACDONALD,2000022567,90947.3,#,CR9 2UL
Department for Transport,Department for Transport,22/01/2014,Transport  Consult,Rail and Road Projects,PARSONS BRINCKERHOFF LTD,2000022569,46729.21,#,NE4 7YQ
Department for Transport,Department for Transport,22/01/2014,Transport  Consult,Refran Prog Off,PRICEWATERHOUSECOOPERS LLP,2000022570,11605.2,#,E14 9SQ
Department for Transport,Department for Transport,23/01/2014,Agency Staff Costs,Group HR,HAYS PERSONNEL SERVICE LTD,2000022669,4281.6,#,KT3 4JQ
Department for Transport,Department for Transport,23/01/2014,Agency Staff Costs,Rail and Road Projects,EXPERIS LTD,2000022679,1208,#,EC1R 3DR
Department for Transport,Department for Transport,23/01/2014,Agency Staff Costs,Rail Commercial Contracts,EXPERIS LTD,2000022679,1607.1,#,EC1R 3DR
Department for Transport,Department for Transport,23/01/2014,Agency Staff Costs,Rail Commercial Contracts,EXPERIS LTD,2000022679,2063.41,#,EC1R 3DR
Department for Transport,Department for Transport,23/01/2014,Agency Staff Costs,Group Finance,ALLEN LANE FINANCIAL RECRUITMENT,2000022673,2463.84,#,BN11 2BW
Department for Transport,Department for Transport,23/01/2014,Agency Staff Costs,Group Finance,SPRING TECHNOLOGY LTD  ALSO T/A,2000022698,939.78,#,B37 7YE
Department for Transport,Department for Transport,23/01/2014,Agency Staff Costs,Group Finance,SPRING TECHNOLOGY LTD  ALSO T/A,2000022698,1253.04,#,B37 7YE
Department for Transport,Department for Transport,23/01/2014,Agency Staff Costs,Group Finance,SPRING TECHNOLOGY LTD  ALSO T/A,2000022698,1566.3,#,B37 7YE
Department for Transport,Department for Transport,23/01/2014,Agency Staff Costs,Group Finance,SPRING TECHNOLOGY LTD  ALSO T/A,2000022698,1566.3,#,B37 7YE
Department for Transport,Department for Transport,23/01/2014,Agency Staff Costs,Strategic Roads,EXPERIS LTD,2000022679,13865.28,#,EC1R 3DR
Department for Transport,Department for Transport,23/01/2014,Agency Staff Costs,Group Finance,EXPERIS LTD,2000022679,3850.32,#,EC1R 3DR
Department for Transport,Department for Transport,23/01/2014,Agency Staff Costs,Group Finance,EXPERIS LTD,2000022679,2611.55,#,EC1R 3DR
Department for Transport,Department for Transport,23/01/2014,Agency Staff Costs,Group Finance,MICHAEL PAGE INTERNATIONAL,2000022693,4608,#,SL1 3SA
Department for Transport,Department for Transport,23/01/2014,Agency Staff Costs,Refran Prog Off,MICHAEL PAGE INTERNATIONAL,2000022693,666.6,#,SL1 3SA
Department for Transport,Department for Transport,23/01/2014,Agency Staff Costs,Refran Prog Off,BADENOCH & CLARK,2000022674,3786.66,#,EC4V 4BG
Department for Transport,Department for Transport,23/01/2014,Agency Staff Costs,Refran Prog Off,BADENOCH & CLARK,2000022674,1136,#,EC4V 4BG
Department for Transport,Department for Transport,23/01/2014,Agency Staff Costs,Refran Prog Off,BADENOCH & CLARK,2000022674,3786.66,#,EC4V 4BG
Department for Transport,Department for Transport,23/01/2014,Agency Staff Costs,Refran Prog Off,EXPERIS LTD,2000022679,1341.22,#,EC1R 3DR
Department for Transport,Department for Transport,23/01/2014,Agency Staff Costs,Refran Prog Off,EXPERIS LTD,2000022679,3316.03,#,EC1R 3DR
Department for Transport,Department for Transport,23/01/2014,Agency Staff Costs,Rail Commercial Contracts,MICHAEL PAGE INTERNATIONAL,2000022693,2220,#,SL1 3SA
Department for Transport,Department for Transport,23/01/2014,Agency Staff Costs,Refran Prog Off,MICHAEL PAGE INTERNATIONAL,2000022693,4666.2,#,SL1 3SA
Department for Transport,Department for Transport,23/01/2014,Agents Fees,Managing Director Motoring Services,DRIVER & VEHICLE LICENSING AGENCY,2000022677,15265.4,#,SA6 7JL
Department for Transport,Department for Transport,23/01/2014,Agents Fees,Group Finance,RAILWAYS PENSION MANAGEMENT LT,2000022695,611621.25,#,DL3 6EH
Department for Transport,Department for Transport,23/01/2014,Agents Fees,Group Finance,RAILWAYS PENSION MANAGEMENT LT,2000022695,601700.68,#,DL3 6EH
Department for Transport,Department for Transport,23/01/2014,Agents Fees,Group Finance,RAILWAYS PENSION MANAGEMENT LT,2000022695,556357.98,#,DL3 6EH
Department for Transport,Department for Transport,23/01/2014,Computer equipment,Business Transformation,SPECIALIST COMPUTER CENTRES PLC,2000022697,1736.69,#,B11 2LE
Department for Transport,Department for Transport,23/01/2014,CurrGrt Las in AEF/A,Local,BRISTOL CITY COUNCIL,2000022696,74799,Better Bus Area Top up payment 2013,BS99 7BL
Department for Transport,Department for Transport,23/01/2014,CurrGrtPriSec-P&NPIS,Roads,ROSPA ENTERPRISES LTD,2000022692,64011,Qtr 3 payment 2013-14 DfT Grant in Aid,B15 1RP
Department for Transport,Department for Transport,23/01/2014,Financial Consultanc,Group Finance,RAILWAYS PENSION MANAGEMENT LT,2000022695,9649.5,#,DL3 6EH
Department for Transport,Department for Transport,23/01/2014,IT Equip Cap Cost,Commercial & Technical Services,INSIGHT DIRECT (UK) LTD,2000022670,5904.86,#,UB8 1PH
Department for Transport,Department for Transport,23/01/2014,IT Ser Running Costs,Local,KENDA ELECTRONIC SYSTEMS LTD,2000022700,1296,#,SO40 3NB
Department for Transport,Department for Transport,23/01/2014,Legal Consultancy,Rail and Road Projects,xxxxxx,2000022702,4913.33,#,xxxxxx
Department for Transport,Department for Transport,23/01/2014,Legal Consultancy,Rail and Road Projects,xxxxxx,2000022703,1020,#,xxxxxx
Department for Transport,Department for Transport,23/01/2014,Maintenance Other,Roads,TDC SYSTEMS LIMITED,2000022684,1815,#,BS24 9BP
Department for Transport,Department for Transport,23/01/2014,Maintenance Other,Roads,TDC SYSTEMS LIMITED,2000022684,1920,#,BS24 9BP
Department for Transport,Department for Transport,23/01/2014,Maintenance Other,Roads,TDC SYSTEMS LIMITED,2000022684,1815,#,BS24 9BP
Department for Transport,Department for Transport,23/01/2014,Medical Examinations,Air Accident Investigation Branch,DEFENCE SCIENCE & TECHNOLOGY,2000022676,1833.36,#,PO14 9HL
Department for Transport,Department for Transport,23/01/2014,Property Maintenance,Air Accident Investigation Branch,ELAN SALES LTD,2000022699,714,#,S051 7JF
Department for Transport,Department for Transport,23/01/2014,Research,Local,TRANSPORT RESEARCH LABORATORY,2000022685,4000,#,RG40 3GA
Department for Transport,Department for Transport,23/01/2014,Research,Analysis/Science,UNIVERSITY OF LEEDS,2000022686,4650,#,LS2 9JT
Department for Transport,Department for Transport,23/01/2014,Support Services,Group Finance,DD ACCRAILWAY PENS TRUSTEE,2000022694,1114.53,#,DL3 6XR
Department for Transport,Department for Transport,23/01/2014,Traffic Survey & Cou,Roads,TDC SYSTEMS LIMITED,2000022684,2673,#,BS24 9BP
Department for Transport,Department for Transport,23/01/2014,Traffic Survey & Cou,Roads,JACOBS UK LTD,2000022681,3783,#,G2 7HX
Department for Transport,Department for Transport,23/01/2014,Traffic Survey & Cou,Roads,JACOBS UK LTD,2000022681,1722,#,G2 7HX
Department for Transport,Department for Transport,23/01/2014,Traffic Survey & Cou,Roads,JACOBS UK LTD,2000022681,2571,#,G2 7HX
Department for Transport,Department for Transport,23/01/2014,Training,Air Accident Investigation Branch,CRANFIELD UNIVERSITY,2000022675,2800,#,MK43 0AL
Department for Transport,Department for Transport,23/01/2014,Translation Services,Marine Accident Investigation Branch,K INTERNATIONAL PLC,2000022682,657.56,#,MK5 8PL
Department for Transport,Department for Transport,23/01/2014,Transport  Consult,Transport Direct and Travel information,AECOM LIMITED,2000022680,6164.14,#,B4 6RP
Department for Transport,Department for Transport,24/01/2014,Agency Staff Costs,Group Finance,MICHAEL PAGE INTERNATIONAL,2000022772,4080,#,SL1 3SA
Department for Transport,Department for Transport,24/01/2014,Agency Staff Costs,Local,SPRING TECHNOLOGY LTD  ALSO T/A,2000022780,762.48,#,B37 7YE
Department for Transport,Department for Transport,24/01/2014,Agency Staff Costs,Rail and Road Projects,SPRING TECHNOLOGY LTD  ALSO T/A,2000022780,1320,#,B37 7YE
Department for Transport,Department for Transport,24/01/2014,Agency Staff Costs,Local,EXPERIS LTD,2000022763,3115.73,#,EC1R 3DR
Department for Transport,Department for Transport,24/01/2014,Agency Staff Costs,Rail,EXPERIS LTD,2000022763,953.35,#,EC1R 3DR
Department for Transport,Department for Transport,24/01/2014,Agency Staff Costs,Managing Director Motoring Services,SPRING TECHNOLOGY LTD  ALSO T/A,2000022780,3182.4,#,B37 7YE
Department for Transport,Department for Transport,24/01/2014,CurrGrtPriSec-P&NPIS,Local,YOUTH SPORT TRUST,2000022781,45625,Youths Sports Trust Final Payment 2013-14,LE11 3TU
Department for Transport,Department for Transport,24/01/2014,Electricity,Business Transformation,EDF ENERGY,2000022762,38233.95,"EDF - GMH, London - 1st to 31st Dec 13",DA6 8ET
Department for Transport,Department for Transport,24/01/2014,Financial Consultanc,Refran Prog Off,GRANT THORNTON UK LLP,2000022773,53628,#,NN4 7YE
Department for Transport,Department for Transport,24/01/2014,Gas,Business Transformation,CORONA ENERGY RETAIL 4 LTD,2000022761,2562.8,Corona - Dec 2013 Gas Supplied to SW1P 2AB,WD17 1JW
Department for Transport,Department for Transport,24/01/2014,Grant Payments,Rail Commercial Contracts,GREATER MANCHESTER PTA,2000022777,5331286.21,1411 Wk3 PTE Subsidy incl indexation - Transport f,M1 3BG
Department for Transport,Department for Transport,24/01/2014,Grant Payments,Rail Commercial Contracts,GREATER MANCHESTER PTA,2000022777,325000,1411 Wk3 Through Ticketing Grant 2013/14 - Transpo,M1 3BG
Department for Transport,Department for Transport,24/01/2014,Grant Payments,Rail Commercial Contracts,MERSEYTRAVEL,2000022774,1155549.72,1411 Wk3 PTE Subsidy incl Indexation - MerseyRail,L3 2AN
Department for Transport,Department for Transport,24/01/2014,Grant Payments,Rail Commercial Contracts,NEXUS (TYNE & WEAR),2000022775,315149.92,1411 Wk3 PTE Subsidy incl Indexation - Nexus,NE1 4AX
Department for Transport,Department for Transport,24/01/2014,Grant Payments,Rail Commercial Contracts,SOUTH YORKSHIRE PTE,2000022776,2022212.01,1411 Wk3 PTE Subsidy incl Indexation - South Yorks,S2 5YT
Department for Transport,Department for Transport,24/01/2014,Grant Payments,Rail Commercial Contracts,WEST YORKSHIRE PTA,2000022778,4858561.33,1411 Wk3 PTE Subsidy incl indexation - West Yorksh,LS1 2DE
Department for Transport,Department for Transport,24/01/2014,Legal Consultancy,Refran Prog Off,NORTON ROSE LLP,2000022779,64434.66,#,SE1 2AQ
Department for Transport,Department for Transport,24/01/2014,Legal Consultancy,Refran Prog Off,NORTON ROSE LLP,2000022779,111904.84,#,SE1 2AQ
Department for Transport,Department for Transport,24/01/2014,Legal Consultancy,Refran Prog Off,Eversheds LLP,2000022782,114007.69,#,EC2V 7WS
Department for Transport,Department for Transport,24/01/2014,Legal Consultancy,Refran Prog Off,Eversheds LLP,2000022782,74993.93,#,EC2V 7WS
Department for Transport,Department for Transport,24/01/2014,Pte Cost Of Servs Ch,Rail Commercial Contracts,GREATER MANCHESTER PTA,2000022777,111860.02,1411 Wk3 PTE Admin Grant incl Indexation - Transpo,M1 3BG
Department for Transport,Department for Transport,24/01/2014,Pte Cost Of Servs Ch,Rail Commercial Contracts,NEXUS (TYNE & WEAR),2000022775,19076.13,1411 Wk3 PTE Admin Grant incl Indexation - Nexus,NE1 4AX
Department for Transport,Department for Transport,24/01/2014,Pte Cost Of Servs Ch,Rail Commercial Contracts,SOUTH YORKSHIRE PTE,2000022776,91984.9,1411 Wk3 PTE Admin Grant incl Indexation - South Y,S2 5YT
Department for Transport,Department for Transport,24/01/2014,Pte Cost Of Servs Ch,Rail Commercial Contracts,WEST YORKSHIRE PTA,2000022778,67016.14,1411 Wk3 PTE Admin Grant incl indexation - West Yo,LS1 2DE
Department for Transport,Department for Transport,24/01/2014,Subsidies Private Se,Roads,MSRS Freight Grant,2000022771,55693.7,MSRS Freight Grant,xxxxxx
Department for Transport,Department for Transport,24/01/2014,Subsidies Private Se,Roads,MSRS Freight Grant,2000022771,109636.59,MSRS Freight Grant,xxxxxx
Department for Transport,Department for Transport,24/01/2014,Subsidies Private Se,Roads,MSRS Freight Grant,2000022770,52182,MSRS Freight Grant,xxxxxx
Department for Transport,Department for Transport,24/01/2014,Support Services,Group Finance,EXEL PLC,2000022784,423000,#,MK40 2UB
Department for Transport,Department for Transport,24/01/2014,Traffic Survey & Cou,Roads,JACOBS UK LTD,2000022765,3981,#,G2 7HX
Department for Transport,Department for Transport,24/01/2014,Transport  Consult,Rail Commercial Contracts,STEER DAVIES & GLEAVE LTD,2000022766,14236.49,#,SE1 9PD
Department for Transport,Department for Transport,24/01/2014,Transport  Consult,Refran Prog Off,ATKINS LTD (TRANSPORT PLANNING),2000022759,16808.86,#,WR5 1TX
Department for Transport,Department for Transport,24/01/2014,Transport  Consult,Refran Prog Off,TRANSPORT RESEARCH LABORATORY,2000022767,20775.77,#,RG40 3GA
Department for Transport,Department for Transport,24/01/2014,Travel Expenses UK,Marine Accident Investigation Branch,CLYDE TRAVEL,2000022760,865.2,London Oslo Return,G51 1HJ
Department for Transport,Department for Transport,27/01/2014,Agency Staff Costs,Corporate Governance,BADENOCH & CLARK,2000022851,3442.44,#,EC4V 4BG
Department for Transport,Department for Transport,27/01/2014,Agency Staff Costs,Centrally held prog,LA INTERNATIONAL COMPUTER,2000022855,2099.16,#,ST1 5UB
Department for Transport,Department for Transport,27/01/2014,Agency Staff Costs,Group Finance,MICHAEL PAGE INTERNATIONAL,2000022858,3210,#,SL1 3SA
Department for Transport,Department for Transport,27/01/2014,Agency Staff Costs,Local,SPRING TECHNOLOGY LTD  ALSO T/A,2000022860,762.48,#,B37 7YE
Department for Transport,Department for Transport,27/01/2014,Agency Staff Costs,Strategic Roads,CAPITA RESOURCING LTD,2000022859,8950.93,#,DL1 9HN
Department for Transport,Department for Transport,27/01/2014,Cap Grt Loc Auth,Roads,MSRS Freight Grant,2000022857,55330.8,MSRS Freight Grant,xxxxxx
Department for Transport,Department for Transport,27/01/2014,Cap Grt Loc Auth,Roads,MSRS Freight Grant,2000022857,43313.8,MSRS Freight Grant,xxxxxx
Department for Transport,Department for Transport,27/01/2014,Cap Grt Loc Auth,Roads,MSRS Freight Grant,2000022857,14882.01,MSRS Freight Grant,xxxxxx
Department for Transport,Department for Transport,27/01/2014,IT Ser Running Costs,Refran Prog Off,CONNECT INTERNET SOLUTIONS LTD,2000022853,2880,#,L2 6SG
Department for Transport,Department for Transport,27/01/2014,MAA Proceeds Paid,Group Finance,HM TREASURY-CFER,2000022847,886245.01,#,SW1A 2H
Department for Transport,Department for Transport,27/01/2014,Stationery (Non-stk),DASH,SUPPLIES TEAM,2000022848,789.44,#,S9 1XU
Department for Transport,Department for Transport,27/01/2014,Subsidies Private Se,Roads,MSRS Freight Grant,2000022857,48293.18,MSRS Freight Grant,xxxxxx
Department for Transport,Department for Transport,27/01/2014,Support Services,Aviation,CIVIL AVIATION AUTHORITY,2000022852,22698,#,RH10 0YR
Department for Transport,Department for Transport,27/01/2014,Support Services,Aviation,CIVIL AVIATION AUTHORITY,2000022852,70000,#,RH10 0YR
Department for Transport,Department for Transport,27/01/2014,Support Services,Aviation,CIVIL AVIATION AUTHORITY,2000022852,85000,#,RH10 0YR
Department for Transport,Department for Transport,27/01/2014,Support Services,Aviation,CIVIL AVIATION AUTHORITY,2000022852,41850,#,RH10 0YR
Department for Transport,Department for Transport,27/01/2014,Support Services,Aviation,CIVIL AVIATION AUTHORITY,2000022852,68563,#,RH10 0YR
Department for Transport,Department for Transport,27/01/2014,Support Services,Aviation,CIVIL AVIATION AUTHORITY,2000022852,46750,#,RH10 0YR
Department for Transport,Department for Transport,27/01/2014,Telecom Equipment,Business Transformation,AZZURRI COMMUNICATIONS LTD,2000022861,62833.94,Azzurri -QTR Maint Agreement 07/03/14 to 06/06/14,WS9 0RB
Department for Transport,Department for Transport,27/01/2014,Transport  Consult,Strategic Roads,PA CONSULTING SERVICES LIMITED,2000022856,57335.95,#,SW1W 9SR
Department for Transport,Department for Transport,27/01/2014,Transport  Consult,Refran Prog Off,ATKINS LTD (TRANSPORT PLANNING),2000022849,56847.77,#,WR5 1TX
Department for Transport,Department for Transport,27/01/2014,Transport  Consult,Refran Prog Off,ATKINS LTD (TRANSPORT PLANNING),2000022849,69490.62,#,WR5 1TX
Department for Transport,Department for Transport,27/01/2014,Transport  Consult,Portfolio Office,Portfolio Solutions Ltd,2000022867,780,#,WD17 4UW
Department for Transport,Department for Transport,28/01/2014,Agency Staff Costs,Corporate Governance,BADENOCH & CLARK,2000022938,3442.44,#,EC4V 4BG
Department for Transport,Department for Transport,28/01/2014,Agency Staff Costs,Business Transformation,NETWORKERS INTERNATIONAL (UK) PLC,2000022952,1013.52,#,BR1 1HP
Department for Transport,Department for Transport,28/01/2014,Agency Staff Costs,Group Finance,NETWORKERS INTERNATIONAL (UK) PLC,2000022952,3393.6,#,BR1 1HP
Department for Transport,Department for Transport,28/01/2014,Agency Staff Costs,Rail Commercial Contracts,NETWORKERS INTERNATIONAL (UK) PLC,2000022952,4182.54,#,BR1 1HP
Department for Transport,Department for Transport,28/01/2014,Agency Staff Costs,Group Finance,ALLEN LANE FINANCIAL RECRUITMENT,2000022934,2463.84,#,BN11 2BW
Department for Transport,Department for Transport,28/01/2014,Agency Staff Costs,Group Finance,NETWORKERS INTERNATIONAL (UK) PLC,2000022952,1205.4,#,BR1 1HP
Department for Transport,Department for Transport,28/01/2014,Agency Staff Costs,Group Finance,MICHAEL PAGE INTERNATIONAL,2000022949,4608,#,SL1 3SA
Department for Transport,Department for Transport,28/01/2014,Agency Staff Costs,Refran Prog Off,NETWORKERS INTERNATIONAL (UK) PLC,2000022952,883.92,#,BR1 1HP
Department for Transport,Department for Transport,28/01/2014,Agents Fees,Group Finance,RAILWAYS PENSION MANAGEMENT LT,2000022951,688218.82,#,DL3 6EH
Department for Transport,Department for Transport,28/01/2014,Books,Maritime,Language Services Direct Ltd,2000022959,39.95,#,SE1 1HJ
Department for Transport,Department for Transport,28/01/2014,Cap Grt Pri Sec-Cos.,DASH,Eversheds LLP,2000022958,487500,HS2 - The Croft,CF10 5BT
Department for Transport,Department for Transport,28/01/2014,Cap Grt Pri Sec-Cos.,Highspeed 2,Eversheds LLP,2000022958,462250,HS2 - 2 The Maltings,CF10 5BT
Department for Transport,Department for Transport,28/01/2014,Cap Grt Pri Sec-Cos.,Highspeed 2,Eversheds LLP,2000022958,251000,HS2 - Stanthorne Cottage,CF10 5BT
Department for Transport,Department for Transport,28/01/2014,Cap Grt Pri Sec-Cos.,Highspeed 2,Eversheds LLP,2000022958,165500,HS2 - Apt 25,CF10 5BT
Department for Transport,Department for Transport,28/01/2014,Cap Grt Pri Sec-Cos.,Highspeed 2,Eversheds LLP,2000022958,1185000,HS2 - Hope Cottage,CF10 5BT
Department for Transport,Department for Transport,28/01/2014,Computer equipment,Business Transformation,E-Cycle Limited,2000022957,5269.39,#,CF39 9BW
Department for Transport,Department for Transport,28/01/2014,Computer equipment,Business Transformation,E-Cycle Limited,2000022957,4316.74,#,CF39 9BW
Department for Transport,Department for Transport,28/01/2014,Computer equipment,Business Transformation,E-Cycle Limited,2000022957,5335.25,#,CF39 9BW
Department for Transport,Department for Transport,28/01/2014,CurrGrt Las in AEF/A,Rail,MERSEY TRAVEL,2000022950,6408984.21,Marsey Travel grant 11th payment,L3   2AN
Department for Transport,Department for Transport,28/01/2014,CurrGrtPriSec-P&NPIS,Roads,BRAKE,2000022947,7123,Qtr 3 payment 2013-14 DfT Grant in Aid,HD1 2XZ
Department for Transport,Department for Transport,28/01/2014,Data Supply - TD,Transport Direct and Travel information,ATOS IT SERVICES UK LTD,2000022936,518.93,#,WV10 6UH
Department for Transport,Department for Transport,28/01/2014,Data Supply - TD,Transport Direct and Travel information,LANDMARK INFORMATION GROUP LTD,2000022942,8629.5,#,EX2 7HY
Department for Transport,Department for Transport,28/01/2014,Financial Consultanc,Group Finance,GOVERNMENT ACTUARY'S DEPARTMENT,2000022931,27389.88,#,EC4A 1AB
Department for Transport,Department for Transport,28/01/2014,Long Service Awards,DASH,COMMUNITIES AND LOCAL GOVERNMENT,2000022930,25251.96,#,HP2 4XN
Department for Transport,Department for Transport,28/01/2014,Maintenance Other,Roads,TDC SYSTEMS LIMITED,2000022944,1925,#,BS24 9BP
Department for Transport,Department for Transport,28/01/2014,Maintenance Other,Roads,TDC SYSTEMS LIMITED,2000022944,2300,#,BS24 9BP
Department for Transport,Department for Transport,28/01/2014,Maintenance Other,Roads,TDC SYSTEMS LIMITED,2000022944,3350,#,BS24 9BP
Department for Transport,Department for Transport,28/01/2014,Maintenance Other,Roads,TDC SYSTEMS LIMITED,2000022944,2400,#,BS24 9BP
Department for Transport,Department for Transport,28/01/2014,Medals,DASH,COMMUNITIES AND LOCAL GOVERNMENT,2000022930,75,#,HP2 4XN
Department for Transport,Department for Transport,28/01/2014,Medical Advisory Ser,Group HR,HEALTH MANAGEMENT LTD,2000022941,7967.8,#,BN8 5NN
Department for Transport,Department for Transport,28/01/2014,Mobile Phone charges,Group Finance,VODAFONE LTD,2000022946,9300,Vodafone -BB Curve x50  16.1.2014,RG14 5FF
Department for Transport,Department for Transport,28/01/2014,NLF Interest pay,Aviation,HM TREASURY - NATIONAL LOANS FUND,2000022929,2938.53,#,SW1A 2HQ
Department for Transport,Department for Transport,28/01/2014,NLF Principal Paid,Aviation,HM TREASURY - NATIONAL LOANS FUND,2000022929,504438.61,#,SW1A 2HQ
Department for Transport,Department for Transport,28/01/2014,Occup Health Scheme,Group HR,HEALTH MANAGEMENT LTD,2000022941,1435.5,#,BN8 5NN
Department for Transport,Department for Transport,28/01/2014,Other Professional F,Managing Director Motoring Services,GOVERNMENT ACTUARY'S DEPARTMENT,2000022931,-2375.08,#,EC4A 1AB
Department for Transport,Department for Transport,28/01/2014,Other Professional F,Managing Director Motoring Services,GOVERNMENT ACTUARY'S DEPARTMENT,2000022931,562.5,#,EC4A 1AB
Department for Transport,Department for Transport,28/01/2014,Recruitment,Local,OFFICE FOR NATIONAL STATISTICS,2000022932,-3300,#,NP10 8XG
Department for Transport,Department for Transport,28/01/2014,Recruitment,Local,OFFICE FOR NATIONAL STATISTICS,2000022932,3300,#,NP10 8XG
Department for Transport,Department for Transport,28/01/2014,Research,Local,NATIONAL CENTRE FOR SOCIAL RESEARCH,2000022943,27805.6,#,EC1V 0AX
Department for Transport,Department for Transport,28/01/2014,Research,Local,NATIONAL CENTRE FOR SOCIAL RESEARCH,2000022943,123021,#,EC1V 0AX
Department for Transport,Department for Transport,28/01/2014,Stationery (Non-stk),Permanent Secretary,Banner Business Services Ltd,2000022955,851.4,#,NR3 1QU
Department for Transport,Department for Transport,28/01/2014,Support Services,Aviation,BAE SYSTEMS (OPERATIONS) LTD,2000022939,30106.39,#,NP15 1XL
Department for Transport,Department for Transport,28/01/2014,Support Services,General Counsel's Office,Thompsons Solicitors,2000022956,74791.85,Industrial Injury Claims,HA1 3AP
Department for Transport,Department for Transport,28/01/2014,Training,Corporate Governance,CAMBRIDGE UNIVERSITY,2000022940,1620,#,CB2 1PZ
Department for Transport,Department for Transport,28/01/2014,Training,Maritime,Language Services Direct Ltd,2000022959,678,#,SE1 1HJ
Department for Transport,Department for Transport,28/01/2014,Transport  Consult,Transport Direct and Travel information,ATOS IT SERVICES UK LTD,2000022936,16296,#,WV10 6UH
Department for Transport,Department for Transport,28/01/2014,Transport  Consult,Refran Prog Off,ATKINS LTD (TRANSPORT PLANNING),2000022935,26414.04,#,WR5 1TX
Department for Transport,Department for Transport,28/01/2014,Travel Expenses UK,Rail,ARRIVA UK TRAINS LTD,1500000027,-1880,#,CF10 5DJ
Department for Transport,Department for Transport,28/01/2014,Works Buses,Group Finance,RAILWAYS PENSION MANAGEMENT LT,2000022951,9182.71,#,DL3 6EH
Department for Transport,Department for Transport,29/01/2014,Agency Staff Costs,Group Finance,MICHAEL PAGE INTERNATIONAL,2000023221,2880,#,SL1 3SA
Department for Transport,Department for Transport,29/01/2014,Agency Staff Costs,Rail Commercial Contracts,CAPITA RESOURCING LTD,2000023222,4650,#,DL1 9HN
Department for Transport,Department for Transport,29/01/2014,Agency Staff Costs,Rail,CAPITA RESOURCING LTD,2000023222,4026,#,DL1 9HN
Department for Transport,Department for Transport,29/01/2014,Agency Staff Costs,Refran Prog Off,CAPITA RESOURCING LTD,2000023222,17425.62,#,DL1 9HN
Department for Transport,Department for Transport,29/01/2014,Agency Staff Costs,Refran Prog Off,CAPITA RESOURCING LTD,2000023222,2370,#,DL1 9HN
Department for Transport,Department for Transport,29/01/2014,Agency Staff Costs,Refran Prog Off,CAPITA RESOURCING LTD,2000023222,7560,#,DL1 9HN
Department for Transport,Department for Transport,29/01/2014,Agency Staff Costs,Refran Prog Off,CAPITA RESOURCING LTD,2000023222,11448.96,#,DL1 9HN
Department for Transport,Department for Transport,29/01/2014,Agency Staff Costs,Refran Prog Off,CAPITA RESOURCING LTD,2000023222,7580.34,#,DL1 9HN
Department for Transport,Department for Transport,29/01/2014,Agency Staff Costs,Rail Commercial Contracts,MICHAEL PAGE INTERNATIONAL,2000023221,6399.96,#,SL1 3SA
Department for Transport,Department for Transport,29/01/2014,Basic Franchise Pay,Rail Commercial Contracts,CROSS COUNTRY TRAINS LTD,2000023229,-4810624,1411 Wk3 Basic Franchise Payment P1411 - on accoun,B5 4HA
Department for Transport,Department for Transport,29/01/2014,Basic Franchise Pay,Rail Commercial Contracts,CROSS COUNTRY TRAINS LTD,2000023229,35488.37,1411 Wk3 Interim Determination RPI Adjustment P11,B5 4HA
Department for Transport,Department for Transport,29/01/2014,Basic Franchise Pay,Rail Commercial Contracts,EAST MIDLAND TRAINS (EMT),2000023227,-7342966.46,1411 Wk3 Basic Franchise Payment - Model v8 - East,SE1 8NZ
Department for Transport,Department for Transport,29/01/2014,Basic Franchise Pay,Rail Commercial Contracts,EAST MIDLAND TRAINS (EMT),2000023227,52418.6,1411 Wk3 Interim Determination RPI+0 Adjustment 20,SE1 8NZ
Department for Transport,Department for Transport,29/01/2014,Basic Franchise Pay,Rail Commercial Contracts,LONDON MIDLAND RAILWAY,2000023228,4580036,1411 Wk3 Basic Franchise Payment (Model v3.11) - L,B2 4JB
Department for Transport,Department for Transport,29/01/2014,Basic Franchise Pay,Rail Commercial Contracts,LONDON MIDLAND RAILWAY,2000023228,71953.49,1411 Wk3 Interim Determination RPI+0 Adjustment P1,B2 4JB
Department for Transport,Department for Transport,29/01/2014,Basic Franchise Pay,Rail Commercial Contracts,NORTHERN RAIL LTD,2000023225,10461320.52,1411 Wk3 Basic Franchise Payment - Model v12 - Nor,YO1 6HT
Department for Transport,Department for Transport,29/01/2014,Basic Franchise Pay,Rail Commercial Contracts,NORTHERN RAIL LTD,2000023225,813108,1411 Wk3 Franchise Payment - HLOS - Northern Rail,YO1 6HT
Department for Transport,Department for Transport,29/01/2014,Basic Franchise Pay,Rail Commercial Contracts,FIRST KEOLIS TRANSPENNINE,2000023224,4974928.01,1411 Wk3 Basic Franchise Payment - model v11 on ac,M1 6LT
Department for Transport,Department for Transport,29/01/2014,Basic Franchise Pay,Rail Commercial Contracts,FIRST KEOLIS TRANSPENNINE,2000023224,37441.86,1411 Wk3 Interim Determination Flex Adjustment P11,M1 6LT
Department for Transport,Department for Transport,29/01/2014,Basic Franchise Pay,Rail Commercial Contracts,FIRST KEOLIS TRANSPENNINE,2000023224,31581.4,1411 Wk3 Interim Determination RPI Adjustment P11,M1 6LT
Department for Transport,Department for Transport,29/01/2014,Basic Franchise Pay,Rail Commercial Contracts,FIRST GREATER WESTERN,2000023226,21488.37,1411 Wk3 Interim Determination Flex Adjustment P11,SN1 1HL
Department for Transport,Department for Transport,29/01/2014,Basic Franchise Pay,Rail Commercial Contracts,FIRST GREATER WESTERN,2000023226,155953.49,1411 Wk3 Interim Determination RPI+0 Adjustment P1,SN1 1HL
Department for Transport,Department for Transport,29/01/2014,Cap Grt Loc Auth,Rail and Road Projects,NEXUS,2000023220,1567000,Nexus  P9 Capital Grant,NE1 4AX
Department for Transport,Department for Transport,29/01/2014,Cap Grt Pri Sec-Cos.,Local,SUSTRANS LTD,2000023244,5000000,Junctions (not-London) Fund - Cycling 2013-14,BS1 5DD
Department for Transport,Department for Transport,29/01/2014,Cap Grt Pri Sec-Cos.,Local,SUSTRANS LTD,2000023244,3750000,Linking Local Communities - SUSTRANS Ltd 2013-14,BS1 5DD
Department for Transport,Department for Transport,29/01/2014,Curr Grt Overseas,Aviation,ICAO (TEL SAP HELPDESK),2000023200,6288.33,"Danish Joint Financing Agreement - US$ 10,429.00",H3C 5H7
Department for Transport,Department for Transport,29/01/2014,Curr Grt Overseas,Aviation,ICAO (TEL SAP HELPDESK),2000023200,34213.19,"Danish Joint Financing Agreement - DKK 309,612.00",H3C 5H7
Department for Transport,Department for Transport,29/01/2014,CurrGrt Las in AEF/A,Local,CHESHIRE EAST COUNCIL,2000023141,4947.3,Cheshire East Borough Council,CW1 2LL
Department for Transport,Department for Transport,29/01/2014,CurrGrt Las in AEF/A,Local,DACORUM C V S,2000023008,2255.34,DACORUM COUNCIL FOR VOLUNTARY SERVICES,HP1 3AF
Department for Transport,Department for Transport,29/01/2014,CurrGrt Las in AEF/A,Local,Doncaster Metropolitan B.C,2000023149,22798.25,Doncaster Metropolitan Borough Council,DN1 3BU
Department for Transport,Department for Transport,29/01/2014,CurrGrt Las in AEF/A,Local,EASTBOURNE & DISTRICT MENCAP,2000023121,1437.47,Eastbourne & District Mencap,BN22 8AO
Department for Transport,Department for Transport,29/01/2014,CurrGrt Las in AEF/A,Local,ENTERPRISE RESOURCE CENTRE,2000023119,4799.05,Enterprise Resource Centre,TA1 5AA
Department for Transport,Department for Transport,29/01/2014,CurrGrt Las in AEF/A,Local,HERTFORDSHIRE COUNTY COUNCIL,2000023125,47786.06,HERTFORDSHIRE COUNTY COUNCIL,AL7 1AP
Department for Transport,Department for Transport,29/01/2014,CurrGrt Las in AEF/A,Local,KENT COUNTY COUNCIL,2000023032,976.59,KCC FAVERSHAM D.O.S,CT5 3SS
Department for Transport,Department for Transport,29/01/2014,CurrGrt Las in AEF/A,Local,LIVERPOOL CITY COUNCIL,2000023117,21973.44,Liverpool City Council,L13 3HS
Department for Transport,Department for Transport,29/01/2014,CurrGrt Las in AEF/A,Local,London Borough of Enfield,2000023142,9361.93,London Borough of Enfield,EN3 4QN
Department for Transport,Department for Transport,29/01/2014,CurrGrt Las in AEF/A,Local,LONDON BOROUGH REDBRIDGE,2000023039,24155.22,London Borough of Redbridge,IG1 1NN
Department for Transport,Department for Transport,29/01/2014,CurrGrt Las in AEF/A,Local,LUTON BOROUGH COUNCIL,2000023041,16232.85,LUTON BOROUGH COUNCIL,LU1 2BQ
Department for Transport,Department for Transport,29/01/2014,CurrGrt Las in AEF/A,Local,MOLE VALLEY DC COMMUNITY SERVICES,2000023046,3676.12,MOLE VALLEY DISTRICT COUNCIL COMMUNITY SERVICES,RH4 1SJ
Department for Transport,Department for Transport,29/01/2014,CurrGrt Las in AEF/A,Local,NORTH LINCOLNSHIRE DC,2000023050,6190.72,NORTH LINCOLNSHIRE COUNCIL,DN16 1AB
Department for Transport,Department for Transport,29/01/2014,CurrGrt Las in AEF/A,Local,OSWESTRY COMMUNITY ACTION,2000023053,1635.87,OSWESTRY COMMUNITY ACTION,SY11 1RB
Department for Transport,Department for Transport,29/01/2014,CurrGrt Las in AEF/A,Local,PLYMOUTH CITYBUS LTD,2000023060,13325.09,Plymouth Citybus Ltd,PL3 4AA
Department for Transport,Department for Transport,29/01/2014,CurrGrt Las in AEF/A,Local,READING TRANSPORT LIMITED,2000023065,120161.61,READING TRANSPORT LIMITED,RG1 7HH
Department for Transport,Department for Transport,29/01/2014,CurrGrt Las in AEF/A,Local,SCA SUPPORT SERVICES LTD,2000023073,6106.94,SCA COMMUNITY SUPPORT SERVICES LTD,SO14 0ST
